Workbook

Sheet Bullet Damage Calculator
A1: Weapon 1 | F1: ="Calculation results for " & A1 -> Calculation results for Weapon 1
A3: Max Damage | B3: Max Damage Range | C3: Min Damage | D3: Min Damage Range | E3: Rate of Fire | F3: BTK @ Max Damage | G3: BTK @ Min Damage | H3: DPS @ Max Damage | I3: DPS @ Min Damage | J3: TTK @ Max Damage | K3: TTK @ Min Damage | L3: Range | M3: Damage @ Range | N3: BTK @ Range | O3: TTK @ Range
A4: 143 | B4: 10 | C4: 112 | D4: 78 | E4: 652 | F4: =CEILING(C12/A4,1) -> 7 | G4: =CEILING(C12/C4,1) -> 9 | H4: =CEILING(A4*E4/60,1) -> 1554 | I4: =CEILING(C4*E4/60,1) -> 1218 | J4: =CEILING((F4-1)*60/E4,0.01) -> 0.56 | K4: =CEILING((G4-1)*60/E4,0.01) -> 0.74 | L4: 49 | M4: =CEILING(C4+SQRT(E46*E46-D46*D46),0.1) -> 125.3 | N4: =CEILING(C12/M4,1) -> 8 | O4: =CEILING((N4-1)*60/E4,0.01) -> 0.65 | P4: These values are for normal target: 500 health + 500 shields
F5: =CEILING(C12*1.25/A4,1) -> 9 | G5: =CEILING(C12*1.25/C4,1) -> 12 | J5: =CEILING((F5-1)*60/E4,0.01) -> 0.74 | K5: =CEILING((G5-1)*60/E4,0.01) -> 1.02 | N5: =CEILING(C12*1.25/M4,1) -> 10 | O5: =CEILING((N5-1)*60/E4,0.01) -> 0.83 | P5: These values are for Nanoweave Armor Rank 5 target, 1250 effective health + shields
P6: Yes, 20% damage reduction gives you +25% effective health.
A7: Weapon 2 | F7: ="Calculation results for " & A7 -> Calculation results for Weapon 2
A8: Max Damage | B8: Max Damage Range | C8: Min Damage | D8: Min Damage Range | E8: Rate of Fire | F8: BTK @ Max Damage | G8: BTK @ Min Damage | H8: DPS @ Max Damage | I8: DPS @ Min Damage | J8: TTK @ Max Damage | K8: TTK @ Min Damage | L8: Range | M8: Damage @ Range | N8: BTK @ Range | O8: TTK @ Range
A9: 143 | B9: 10 | C9: 125 | D9: 65 | E9: 652 | F9: =CEILING(C12/A9,1) -> 7 | G9: =CEILING(C12/C9,1) -> 8 | H9: =CEILING(A9*E9/60,1) -> 1554 | I9: =CEILING(C9*E9/60,1) -> 1359 | J9: =CEILING((F9-1)*60/E9,0.01) -> 0.56 | K9: =CEILING((G9-1)*60/E9,0.01) -> 0.65 | L9: 49 | M9: =CEILING(C9+SQRT(E51*E51-D51*D51),0.1) -> 130.3 | N9: =CEILING(C12/M9,1) -> 8 | O9: =CEILING((N9-1)*60/E9,0.01) -> 0.65
F10: =CEILING(C12*1.25/A9,1) -> 9 | G10: =CEILING(C12*1.25/C9,1) -> 10 | J10: =CEILING((F10-1)*60/E9,0.01) -> 0.74 | K10: =CEILING((G10-1)*60/E9,0.01) -> 0.83 | N10: =CEILING(C12*1.25/M9,1) -> 10 | O10: =CEILING((N10-1)*60/E9,0.01) -> 0.83
A11: Target's Base Health | B11: Damage Multiplier | C11: Target's Effective Health | D11: Health values include shields
A12: 1000 | B12: 1 | C12: =A12/B12 -> 1000 | F12: Comparison
A13: Instructions | F13: =F4-F9 -> 0 | G13: =G4-G9 -> 1 | H13: =H4-H9 -> 0 | I13: =I4-I9 -> -141 | J13: =J4-J9 -> 0 | K13: =K4-K9 -> 0.09 | M13: -5 | N13: 0 | O13: 0
A14: Enter statistics of the weapon into the green box | F14: =F5-F10 -> 0 | G14: =G5-G10 -> 2 | J14: =J5-J10 -> 0 | K14: 0.19 | N14: 0 | O14: 0
A16: For SMGs:
A17: If you're using Soft Point Ammo, increase Max Damage Range by 6 meters | G17: BTK Thresholds
A18: If you're using Suppressor, reduce Max Damage Range by 3 meters, and Min Damage Range by 10 meters | G18: =A1 -> Weapon 1 | I18: =A7 -> Weapon 2 | M18: If this button doesn't work -> | O18: To allow the Excel to run programs included with spreadsheets, go to File -> Options -> Trust Center -> Trust Center Settings -> Macro Settings and check the box "enable all macros"
G19: BTK | H19: Range | I19: BTK | J19: Range
A20: For other weapons: | G20: 7 | H20: 0 | I20: 7 | J20: 0
A21: If you're using Soft Point Ammo, increase Max Damage Range by 5 meters | G21: 8 | H21: 11 | I21: 8 | J21: 11
A22: If you're using Suppressor, reduce Max Damage Range by 5 meters, and Min Damage Range by 25 meters | G22: 9 | H22: 50
A23: If you're using High Velocity Ammo, increase Min Damage Range by 14 to 18m
A25: If there's a specific range that you want to calculate for, enter it into the blue box
A27: Enter a damage multiplier if you want to calculate for headshots. Common values are 1.5, 2 and 2.1
A28: Glossary
A29: BTK = bullets to kill
A30: TTK = time to kill = time, needed to fire off the number of bullets listed in BTK
A31: DPS = damage per second
A32: All of these values are ideal, they assume that all shots hit the target
A33: Base Health
A34: 900 for infiltrators
A35: 1000 for other infantry
A36: 2000 for MAX units
A37: Damage multiplier
A38: 1 for body shots
A39: 0.8 for Nanoweave Armor Rank 5
A40: 1.5, 2 or 2.1 for headshots, depending on a weapon
A41: 0.2 for a MAX unit
A42: 0.125 for a MAX unit with Kinetic Armor Rank 5
A44: Don't touch these values
A45: Prikatet | B45: ProtiKatet | C45: Hypotenuse | D45: Down_Prikatet | E45: Down_Hypotenuse
A46: =D4-B4 -> 68 | B46: =A4-C4 -> 31 | C46: =SQRT(B46*B46+A46*A46) -> 74.73285757 | D46: =A46-L4+B4 -> 29 | E46: =C46*D46/A46 -> 31.87136573
A49: Don't touch these values
A50: Prikatet | B50: ProtiKatet | C50: Hypotenuse | D50: Down_Prikatet | E50: Down_Hypotenuse
A51: =D9-B9 -> 55 | B51: =A9-C9 -> 18 | C51: =SQRT(B51*B51+A51*A51) -> 57.87054518 | D51: =A51-L9+B9 -> 16 | E51: =C51*D51/A51 -> 16.83506769

Sheet Temp
A1: 7 | B1: 1 | E1: 7 | F1: 1
A2: 7 | B2: 2 | E2: 7 | F2: 2
A3: 7 | B3: 3 | E3: 7 | F3: 3
A4: 7 | B4: 4 | E4: 7 | F4: 4
A5: 7 | B5: 5 | E5: 7 | F5: 5
A6: 7 | B6: 6 | E6: 7 | F6: 6
A7: 7 | B7: 7 | E7: 7 | F7: 7
A8: 7 | B8: 8 | E8: 7 | F8: 8
A9: 7 | B9: 9 | E9: 7 | F9: 9
A10: 7 | B10: 10 | E10: 7 | F10: 10
A11: 8 | B11: 11 | E11: 8 | F11: 11
A12: 8 | B12: 12 | E12: 8 | F12: 12
A13: 8 | B13: 13 | E13: 8 | F13: 13
A14: 8 | B14: 14 | E14: 8 | F14: 14
A15: 8 | B15: 15 | E15: 8 | F15: 15
A16: 8 | B16: 16 | E16: 8 | F16: 16
A17: 8 | B17: 17 | E17: 8 | F17: 17
A18: 8 | B18: 18 | E18: 8 | F18: 18
A19: 8 | B19: 19 | E19: 8 | F19: 19
A20: 8 | B20: 20 | E20: 8 | F20: 20
A21: 8 | B21: 21 | E21: 8 | F21: 21
A22: 8 | B22: 22 | E22: 8 | F22: 22
A23: 8 | B23: 23 | E23: 8 | F23: 23
A24: 8 | B24: 24 | E24: 8 | F24: 24
A25: 8 | B25: 25 | E25: 8 | F25: 25
A26: 8 | B26: 26 | E26: 8 | F26: 26
A27: 8 | B27: 27 | E27: 8 | F27: 27
A28: 8 | B28: 28 | E28: 8 | F28: 28
A29: 8 | B29: 29 | E29: 8 | F29: 29
A30: 8 | B30: 30 | E30: 8 | F30: 30
A31: 8 | B31: 31 | E31: 8 | F31: 31
A32: 8 | B32: 32 | E32: 8 | F32: 32
A33: 8 | B33: 33 | E33: 8 | F33: 33
A34: 8 | B34: 34 | E34: 8 | F34: 34
A35: 8 | B35: 35 | E35: 8 | F35: 35
A36: 8 | B36: 36 | E36: 8 | F36: 36
A37: 8 | B37: 37 | E37: 8 | F37: 37
A38: 8 | B38: 38 | E38: 8 | F38: 38
A39: 8 | B39: 39 | E39: 8 | F39: 39
A40: 8 | B40: 40 | E40: 8 | F40: 40
A41: 8 | B41: 41 | E41: 8 | F41: 41
A42: 8 | B42: 42 | E42: 8 | F42: 42
A43: 8 | B43: 43 | E43: 8 | F43: 43
A44: 8 | B44: 44 | E44: 8 | F44: 44
A45: 8 | B45: 45 | E45: 8 | F45: 45
A46: 8 | B46: 46 | E46: 8 | F46: 46
A47: 8 | B47: 47 | E47: 8 | F47: 47
A48: 8 | B48: 48 | E48: 8 | F48: 48
A49: 8 | B49: 49 | E49: 8 | F49: 49
A50: 9 | B50: 50 | E50: 8 | F50: 50
A51: 9 | B51: 51 | E51: 8 | F51: 51
A52: 9 | B52: 52 | E52: 8 | F52: 52
A53: 9 | B53: 53 | E53: 8 | F53: 53
A54: 9 | B54: 54 | E54: 8 | F54: 54
A55: 9 | B55: 55 | E55: 8 | F55: 55
A56: 9 | B56: 56 | E56: 8 | F56: 56
A57: 9 | B57: 57 | E57: 8 | F57: 57
A58: 9 | B58: 58 | E58: 8 | F58: 58
A59: 9 | B59: 59 | E59: 8 | F59: 59
A60: 9 | B60: 60 | E60: 8 | F60: 60
A61: 9 | B61: 61 | E61: 8 | F61: 61
A62: 9 | B62: 62 | E62: 8 | F62: 62
A63: 9 | B63: 63 | E63: 8 | F63: 63
A64: 9 | B64: 64 | E64: 8 | F64: 64
A65: 9 | B65: 65 | E65: 8 | F65: 65
A66: 9 | B66: 66 | E66: 8 | F66: 66
A67: 9 | B67: 67 | E67: 8 | F67: 67
A68: 9 | B68: 68 | E68: 8 | F68: 68
A69: 9 | B69: 69 | E69: 8 | F69: 69
A70: 9 | B70: 70 | E70: 8 | F70: 70
A71: 9 | B71: 71 | E71: 8 | F71: 71
A72: 9 | B72: 72 | E72: 8 | F72: 72
A73: 9 | B73: 73 | E73: 8 | F73: 73
A74: 9 | B74: 74 | E74: 8 | F74: 74
A75: 9 | B75: 75 | E75: 8 | F75: 75
A76: 9 | B76: 76
A77: 9 | B77: 77
A78: 9 | B78: 78
A79: 9 | B79: 79
A80: 9 | B80: 80
A81: 9 | B81: 81
A82: 9 | B82: 82
A83: 9 | B83: 83
A84: 9 | B84: 84
A85: 9 | B85: 85
A86: 9 | B86: 86
A87: 9 | B87: 87
A88: 9 | B88: 88

Sheet Nanoweave Armor
B1: Damage multiplier
A2: Base health + shields | B2: Nano 1 | C2: Nano 2 | D2: Nano 3 | E2: Nano 4 | F2: Nano 5 | H2: Damage at range table
A3: 1000 | B3: 0.925 | C3: 0.9 | D3: 0.875 | E3: 0.85 | F3: 0.8
B4: Resulting health + shields
A5: 1000 | B5: =$A$3/B3 -> 1081.081081 | C5: =$A$3/C3 -> 1111.111111 | D5: 1142.857143 | E5: 1176.470588 | F5: 1250
H6: Range | I6: 1 | J6: 2 | K6: 3 | L6: 4 | M6: 5 | N6: 6 | O6: 7 | P6: 8 | Q6: 9 | R6: 10 | S6: 11 | T6: 12 | U6: 13 | V6: 14 | W6: 15 | X6: 16 | Y6: 17 | Z6: 18 | AA6: 19 | AB6: 20 | AC6: 21 | AD6: 22 | AE6: 23 | AF6: 24 | AG6: 25 | AH6: 26 | AI6: 27 | AJ6: 28 | AK6: 29 | AL6: 30 | AM6: 31 | AN6: 32 | AO6: 33 | AP6: 34 | AQ6: 35 | AR6: 36 | AS6: 37 | AT6: 38 | AU6: 39 | AV6: 40 | AW6: 41 | AX6: 42 | AY6: 43 | AZ6: 44 | BA6: 45 | BB6: 46 | BC6: 47 | BD6: 48 | BE6: 49 | BF6: 50 | BG6: 51 | BH6: 52 | BI6: 53 | BJ6: 54 | BK6: 55 | BL6: 56 | BM6: 57 | BN6: 58 | BO6: 59 | BP6: 60 | BQ6: 61 | BR6: 62 | BS6: 63 | BT6: 64 | BU6: 65 | BV6: 66 | BW6: 67 | BX6: 68 | BY6: 69 | BZ6: 70 | CA6: 71 | CB6: 72 | CC6: 73 | CD6: 74 | CE6: 75 | CF6: 76 | CG6: 77 | CH6: 78 | CI6: 79 | CJ6: 80 | CK6: 81 | CL6: 82 | CM6: 83 | CN6: 84 | CO6: 85
A7: Common weapon damage models | B7: Max dmg | C7: Max dmg rng | D7: Min dmg | E7: Min dmg rng | H7: Gauss SAW and Reaper DMR | I7: 200 | J7: 200 | K7: 200 | L7: 200 | M7: 200 | N7: 200 | O7: 200 | P7: 200 | Q7: 200 | R7: =SQRT(SQRT(($B8-$D8)*($B8-$D8) +($E8-$C8)*($E8-$C8))*($E8-R$6)/($E8-$C8)*SQRT(($B8-$D8)*($B8-$D8) +($E8-$C8)*($E8-$C8))*($E8-R$6)/($E8-$C8) - ($E8-R$6)*($E8-R$6)) +$D8 -> 200 | S7: =SQRT(SQRT(($B$8-$D$8)*($B$8-$D$8) +($E$8-$C$8)*($E$8-$C$8))*($E$8-S6)/($E$8-$C$8)*SQRT(($B$8-$D$8)*($B$8-$D$8) +($E$8-$C$8)*($E$8-$C$8))*($E$8-S6)/($E$8-$C$8) - ($E$8-S6)*($E$8-S6)) +$D$8 -> 199.56 | T7: =SQRT(SQRT(($B$8-$D$8)*($B$8-$D$8) +($E$8-$C$8)*($E$8-$C$8))*($E$8-T6)/($E$8-$C$8)*SQRT(($B$8-$D$8)*($B$8-$D$8) +($E$8-$C$8)*($E$8-$C$8))*($E$8-T6)/($E$8-$C$8) - ($E$8-T6)*($E$8-T6)) +$D$8 -> 199.12 | U7: 198.68 | V7: 198.24 | W7: 197.8 | X7: 197.36 | Y7: 196.92 | Z7: 196.48 | AA7: 196.04 | AB7: 195.6 | AC7: 195.16 | AD7: 194.72 | AE7: 194.28 | AF7: 193.84 | AG7: 193.4 | AH7: 192.96 | AI7: 192.52 | AJ7: 192.08 | AK7: 191.64 | AL7: 191.2 | AM7: 190.76 | AN7: 190.32 | AO7: 189.88 | AP7: 189.44 | AQ7: 189 | AR7: 188.56 | AS7: 188.12 | AT7: 187.68 | AU7: 187.24 | AV7: 186.8 | AW7: 186.36 | AX7: 185.92 | AY7: 185.48 | AZ7: 185.04 | BA7: 184.6 | BB7: 184.16 | BC7: 183.72 | BD7: 183.28 | BE7: 182.84 | BF7: 182.4 | BG7: 181.96 | BH7: 181.52 | BI7: 181.08 | BJ7: 180.64 | BK7: 180.2 | BL7: 179.76 | BM7: 179.32 | BN7: 178.88 | BO7: 178.44 | BP7: 178 | BQ7: 177.56 | BR7: 177.12 | BS7: 176.68 | BT7: 176.24 | BU7: 175.8 | BV7: 175.36 | BW7: 174.92 | BX7: 174.48 | BY7: 174.04 | BZ7: 173.6 | CA7: 173.16 | CB7: 172.72 | CC7: 172.28 | CD7: 171.84 | CE7: =SQRT(SQRT(($B$8-$D$8)*($B$8-$D$8) +($E$8-$C$8)*($E$8-$C$8))*($E$8-CE6)/($E$8-$C$8)*SQRT(($B$8-$D$8)*($B$8-$D$8) +($E$8-$C$8)*($E$8-$C$8))*($E$8-CE6)/($E$8-$C$8) - ($E$8-CE6)*($E$8-CE6)) +$D$8 -> 171.4 | CF7: 170.96 | CG7: 170.52 | CH7: 170.08 | CI7: 169.64 | CJ7: 169.2 | CK7: 168.76 | CL7: 168.32 | CM7: 167.88 | CN7: 167.44 | CO7: 167
A8: Gauss SAW and Reaper DMR | B8: 200 | C8: 10 | D8: 167 | E8: 85 | H8: ACX-11 | I8: 200 | J8: 200 | K8: 200 | L8: 200 | M8: 200 | N8: 200 | O8: 200 | P8: 200 | Q8: 200 | R8: =SQRT(SQRT(($B9-$D9)*($B9-$D9) +($E9-$C9)*($E9-$C9))*($E9-R$6)/($E9-$C9)*SQRT(($B9-$D9)*($B9-$D9) +($E9-$C9)*($E9-$C9))*($E9-R$6)/($E9-$C9) - ($E9-R$6)*($E9-R$6)) +$D9 -> 200 | S8: =SQRT(SQRT(($B9-$D9)*($B9-$D9) +($E9-$C9)*($E9-$C9))*($E9-S$6)/($E9-$C9)*SQRT(($B9-$D9)*($B9-$D9) +($E9-$C9)*($E9-$C9))*($E9-S$6)/($E9-$C9) - ($E9-S$6)*($E9-S$6)) +$D9 -> 199.1857143 | T8: 198.3714286 | U8: 197.5571429 | V8: 196.7428571 | W8: 195.9285714 | X8: 195.1142857 | Y8: 194.3 | Z8: 193.4857143 | AA8: 192.6714286 | AB8: 191.8571429 | AC8: 191.0428571 | AD8: 190.2285714 | AE8: 189.4142857 | AF8: 188.6 | AG8: 187.7857143 | AH8: 186.9714286 | AI8: 186.1571429 | AJ8: 185.3428571 | AK8: 184.5285714 | AL8: 183.7142857 | AM8: 182.9 | AN8: 182.0857143 | AO8: 181.2714286 | AP8: 180.4571429 | AQ8: 179.6428571 | AR8: 178.8285714 | AS8: 178.0142857 | AT8: 177.2 | AU8: 176.3857143 | AV8: 175.5714286 | AW8: 174.7571429 | AX8: 173.9428571 | AY8: =SQRT(SQRT(($B9-$D9)*($B9-$D9) +($E9-$C9)*($E9-$C9))*($E9-AY$6)/($E9-$C9)*SQRT(($B9-$D9)*($B9-$D9) +($E9-$C9)*($E9-$C9))*($E9-AY$6)/($E9-$C9) - ($E9-AY$6)*($E9-AY$6)) +$D9 -> 173.1285714 | AZ8: 172.3142857 | BA8: 171.5 | BB8: 170.6857143 | BC8: 169.8714286 | BD8: 169.0571429 | BE8: 168.2428571 | BF8: 167.4285714 | BG8: 166.6142857 | BH8: 165.8 | BI8: 164.9857143 | BJ8: 164.1714286 | BK8: 163.3571429 | BL8: 162.5428571 | BM8: 161.7285714 | BN8: 160.9142857 | BO8: 160.1 | BP8: 159.2857143 | BQ8: 158.4714286 | BR8: 157.6571429 | BS8: 156.8428571 | BT8: 156.0285714 | BU8: 155.2142857 | BV8: 154.4 | BW8: 153.5857143 | BX8: 152.7714286 | BY8: 151.9571429 | BZ8: 151.1428571 | CA8: 150.3285714 | CB8: 149.5142857 | CC8: 148.7 | CD8: 147.8857143 | CE8: =SQRT(SQRT(($B9-$D9)*($B9-$D9) +($E9-$C9)*($E9-$C9))*($E9-CE$6)/($E9-$C9)*SQRT(($B9-$D9)*($B9-$D9) +($E9-$C9)*($E9-$C9))*($E9-CE$6)/($E9-$C9) - ($E9-CE$6)*($E9-CE$6)) +$D9 -> 147.0714286 | CF8: 146.2571429 | CG8: 145.4428571 | CH8: 144.6285714 | CI8: 143.8142857 | CJ8: 143 | CK8: 143 | CL8: 143 | CM8: 143 | CN8: 143 | CO8: 143
A9: ACX-11 | B9: 200 | C9: 10 | D9: 143 | E9: 80 | H9: Gauss Rifle | I9: 167 | J9: 167 | K9: 167 | L9: 167 | M9: 167 | N9: 167 | O9: 167 | P9: 167 | Q9: 167 | R9: =SQRT(SQRT(($B10-$D10)*($B10-$D10) +($E10-$C10)*($E10-$C10))*($E10-R$6)/($E10-$C10)*SQRT(($B10-$D10)*($B10-$D10) +($E10-$C10)*($E10-$C10))*($E10-R$6)/($E10-$C10) - ($E10-R$6)*($E10-R$6)) +$D10 -> 167 | S9: =SQRT(SQRT(($B10-$D10)*($B10-$D10) +($E10-$C10)*($E10-$C10))*($E10-S$6)/($E10-$C10)*SQRT(($B10-$D10)*($B10-$D10) +($E10-$C10)*($E10-$C10))*($E10-S$6)/($E10-$C10) - ($E10-S$6)*($E10-S$6)) +$D10 -> 166.6307692 | T9: 166.2615385 | U9: 165.8923077 | V9: 165.5230769 | W9: 165.1538462 | X9: 164.7846154 | Y9: 164.4153846 | Z9: 164.0461538 | AA9: 163.6769231 | AB9: 163.3076923 | AC9: 162.9384615 | AD9: 162.5692308 | AE9: 162.2 | AF9: 161.8307692 | AG9: 161.4615385 | AH9: 161.0923077 | AI9: 160.7230769 | AJ9: 160.3538462 | AK9: 159.9846154 | AL9: 159.6153846 | AM9: 159.2461538 | AN9: 158.8769231 | AO9: 158.5076923 | AP9: 158.1384615 | AQ9: 157.7692308 | AR9: 157.4 | AS9: 157.0307692 | AT9: 156.6615385 | AU9: 156.2923077 | AV9: 155.9230769 | AW9: 155.5538462 | AX9: 155.1846154 | AY9: =SQRT(SQRT(($B10-$D10)*($B10-$D10) +($E10-$C10)*($E10-$C10))*($E10-AY$6)/($E10-$C10)*SQRT(($B10-$D10)*($B10-$D10) +($E10-$C10)*($E10-$C10))*($E10-AY$6)/($E10-$C10) - ($E10-AY$6)*($E10-AY$6)) +$D10 -> 154.8153846 | AZ9: 154.4461538 | BA9: 154.0769231 | BB9: 153.7076923 | BC9: 153.3384615 | BD9: 152.9692308 | BE9: 152.6 | BF9: 152.2307692 | BG9: 151.8615385 | BH9: 151.4923077 | BI9: 151.1230769 | BJ9: 150.7538462 | BK9: 150.3846154 | BL9: 150.0153846 | BM9: 149.6461538 | BN9: 149.2769231 | BO9: 148.9076923 | BP9: 148.5384615 | BQ9: 148.1692308 | BR9: 147.8 | BS9: 147.4307692 | BT9: 147.0615385 | BU9: 146.6923077 | BV9: 146.3230769 | BW9: 145.9538462 | BX9: 145.5846154 | BY9: 145.2153846 | BZ9: 144.8461538 | CA9: 144.4769231 | CB9: 144.1076923 | CC9: 143.7384615 | CD9: 143.3692308 | CE9: =SQRT(SQRT(($B10-$D10)*($B10-$D10) +($E10-$C10)*($E10-$C10))*($E10-CE$6)/($E10-$C10)*SQRT(($B10-$D10)*($B10-$D10) +($E10-$C10)*($E10-$C10))*($E10-CE$6)/($E10-$C10) - ($E10-CE$6)*($E10-CE$6)) +$D10 -> 143 | CF9: 143 | CG9: 143 | CH9: 143 | CI9: 143 | CJ9: 143 | CK9: 143 | CL9: 143 | CM9: 143 | CN9: 143 | CO9: 143
A10: Gauss Rifle | B10: 167 | C10: 10 | D10: 143 | E10: 75 | H10: Mercenary | I10: 167 | J10: 167 | K10: 167 | L10: 167 | M10: 167 | N10: 167 | O10: 167 | P10: 167 | Q10: 167 | R10: =SQRT(SQRT(($B11-$D11)*($B11-$D11) +($E11-$C11)*($E11-$C11))*($E11-R$6)/($E11-$C11)*SQRT(($B11-$D11)*($B11-$D11) +($E11-$C11)*($E11-$C11))*($E11-R$6)/($E11-$C11) - ($E11-R$6)*($E11-R$6)) +$D11 -> 167 | S10: =SQRT(SQRT(($B11-$D11)*($B11-$D11) +($E11-$C11)*($E11-$C11))*($E11-S$6)/($E11-$C11)*SQRT(($B11-$D11)*($B11-$D11) +($E11-$C11)*($E11-$C11))*($E11-S$6)/($E11-$C11) - ($E11-S$6)*($E11-S$6)) +$D11 -> 166.3 | T10: 165.6 | U10: 164.9 | V10: 164.2 | W10: 163.5 | X10: 162.8 | Y10: 162.1 | Z10: 161.4 | AA10: 160.7 | AB10: 160 | AC10: 159.3 | AD10: 158.6 | AE10: 157.9 | AF10: 157.2 | AG10: 156.5 | AH10: 155.8 | AI10: 155.1 | AJ10: 154.4 | AK10: 153.7 | AL10: 153 | AM10: 152.3 | AN10: 151.6 | AO10: 150.9 | AP10: 150.2 | AQ10: 149.5 | AR10: 148.8 | AS10: 148.1 | AT10: 147.4 | AU10: 146.7 | AV10: 146 | AW10: 145.3 | AX10: 144.6 | AY10: =SQRT(SQRT(($B11-$D11)*($B11-$D11) +($E11-$C11)*($E11-$C11))*($E11-AY$6)/($E11-$C11)*SQRT(($B11-$D11)*($B11-$D11) +($E11-$C11)*($E11-$C11))*($E11-AY$6)/($E11-$C11) - ($E11-AY$6)*($E11-AY$6)) +$D11 -> 143.9 | AZ10: 143.2 | BA10: 142.5 | BB10: 141.8 | BC10: 141.1 | BD10: 140.4 | BE10: 139.7 | BF10: 139 | BG10: 138.3 | BH10: 137.6 | BI10: 136.9 | BJ10: 136.2 | BK10: 135.5 | BL10: 134.8 | BM10: 134.1 | BN10: 133.4 | BO10: 132.7 | BP10: 132 | BQ10: 131.3 | BR10: 130.6 | BS10: 129.9 | BT10: 129.2 | BU10: 128.5 | BV10: 127.8 | BW10: 127.1 | BX10: 126.4 | BY10: 125.7 | BZ10: 125 | CA10: 125 | CB10: 125 | CC10: 125 | CD10: 125 | CE10: 125 | CF10: 125 | CG10: 125 | CH10: 125 | CI10: 125 | CJ10: 125 | CK10: 125 | CL10: 125 | CM10: 125 | CN10: 125 | CO10: 125
A11: Mercenary | B11: 167 | C11: 10 | D11: 125 | E11: 70 | H11: Bandit | I11: 167 | J11: 167 | K11: 167 | L11: 167 | M11: 167 | N11: 167 | O11: 167 | P11: 167 | Q11: 167 | R11: 167 | S11: 167 | T11: 167 | U11: 167 | V11: 167 | W11: =SQRT(SQRT(($B12-$D12)*($B12-$D12) +($E12-$C12)*($E12-$C12))*($E12-W$6)/($E12-$C12)*SQRT(($B12-$D12)*($B12-$D12) +($E12-$C12)*($E12-$C12))*($E12-W$6)/($E12-$C12) - ($E12-W$6)*($E12-W$6)) +$D12 -> 167 | X11: 165.7777778 | Y11: 164.5555556 | Z11: 163.3333333 | AA11: 162.1111111 | AB11: 160.8888889 | AC11: 159.6666667 | AD11: 158.4444444 | AE11: 157.2222222 | AF11: 156 | AG11: =SQRT(SQRT(($B12-$D12)*($B12-$D12) +($E12-$C12)*($E12-$C12))*($E12-AG$6)/($E12-$C12)*SQRT(($B12-$D12)*($B12-$D12) +($E12-$C12)*($E12-$C12))*($E12-AG$6)/($E12-$C12) - ($E12-AG$6)*($E12-AG$6)) +$D12 -> 154.7777778 | AH11: 153.5555556 | AI11: 152.3333333 | AJ11: 151.1111111 | AK11: 149.8888889 | AL11: 148.6666667 | AM11: 147.4444444 | AN11: 146.2222222 | AO11: 145 | AP11: 143.7777778 | AQ11: =SQRT(SQRT(($B12-$D12)*($B12-$D12) +($E12-$C12)*($E12-$C12))*($E12-AQ$6)/($E12-$C12)*SQRT(($B12-$D12)*($B12-$D12) +($E12-$C12)*($E12-$C12))*($E12-AQ$6)/($E12-$C12) - ($E12-AQ$6)*($E12-AQ$6)) +$D12 -> 142.5555556 | AR11: 141.3333333 | AS11: 140.1111111 | AT11: 138.8888889 | AU11: 137.6666667 | AV11: 136.4444444 | AW11: 135.2222222 | AX11: 134 | AY11: 132.7777778 | AZ11: 131.5555556 | BA11: =SQRT(SQRT(($B12-$D12)*($B12-$D12) +($E12-$C12)*($E12-$C12))*($E12-BA$6)/($E12-$C12)*SQRT(($B12-$D12)*($B12-$D12) +($E12-$C12)*($E12-$C12))*($E12-BA$6)/($E12-$C12) - ($E12-BA$6)*($E12-BA$6)) +$D12 -> 130.3333333 | BB11: 129.1111111 | BC11: 127.8888889 | BD11: 126.6666667 | BE11: 125.4444444 | BF11: 124.2222222 | BG11: 123 | BH11: 121.7777778 | BI11: 120.5555556 | BJ11: 119.3333333 | BK11: =SQRT(SQRT(($B12-$D12)*($B12-$D12) +($E12-$C12)*($E12-$C12))*($E12-BK$6)/($E12-$C12)*SQRT(($B12-$D12)*($B12-$D12) +($E12-$C12)*($E12-$C12))*($E12-BK$6)/($E12-$C12) - ($E12-BK$6)*($E12-BK$6)) +$D12 -> 118.1111111 | BL11: 116.8888889 | BM11: 115.6666667 | BN11: 114.4444444 | BO11: 113.2222222 | BP11: 112 | BQ11: 112 | BR11: 112 | BS11: 112 | BT11: 112 | BU11: 112 | BV11: 112 | BW11: 112 | BX11: 112 | BY11: 112 | BZ11: 112 | CA11: 112 | CB11: 112 | CC11: 112 | CD11: 112 | CE11: 112 | CF11: 112 | CG11: 112 | CH11: 112 | CI11: 112 | CJ11: 112 | CK11: 112 | CL11: 112 | CM11: 112 | CN11: 112 | CO11: 112
A12: Bandit | B12: 167 | C12: 15 | D12: 112 | E12: 60 | H12: Carv and Cycler | I12: 143 | J12: 143 | K12: 143 | L12: 143 | M12: 143 | N12: 143 | O12: 143 | P12: 143 | Q12: 143 | R12: =SQRT(SQRT(($B13-$D13)*($B13-$D13) +($E13-$C13)*($E13-$C13))*($E13-R$6)/($E13-$C13)*SQRT(($B13-$D13)*($B13-$D13) +($E13-$C13)*($E13-$C13))*($E13-R$6)/($E13-$C13) - ($E13-R$6)*($E13-R$6)) +$D13 -> 143 | S12: =SQRT(SQRT(($B13-$D13)*($B13-$D13) +($E13-$C13)*($E13-$C13))*($E13-S$6)/($E13-$C13)*SQRT(($B13-$D13)*($B13-$D13) +($E13-$C13)*($E13-$C13))*($E13-S$6)/($E13-$C13) - ($E13-S$6)*($E13-S$6)) +$D13 -> 142.6727273 | T12: =SQRT(SQRT(($B13-$D13)*($B13-$D13) +($E13-$C13)*($E13-$C13))*($E13-T$6)/($E13-$C13)*SQRT(($B13-$D13)*($B13-$D13) +($E13-$C13)*($E13-$C13))*($E13-T$6)/($E13-$C13) - ($E13-T$6)*($E13-T$6)) +$D13 -> 142.3454545 | U12: =SQRT(SQRT(($B13-$D13)*($B13-$D13) +($E13-$C13)*($E13-$C13))*($E13-U$6)/($E13-$C13)*SQRT(($B13-$D13)*($B13-$D13) +($E13-$C13)*($E13-$C13))*($E13-U$6)/($E13-$C13) - ($E13-U$6)*($E13-U$6)) +$D13 -> 142.0181818 | V12: =SQRT(SQRT(($B13-$D13)*($B13-$D13) +($E13-$C13)*($E13-$C13))*($E13-V$6)/($E13-$C13)*SQRT(($B13-$D13)*($B13-$D13) +($E13-$C13)*($E13-$C13))*($E13-V$6)/($E13-$C13) - ($E13-V$6)*($E13-V$6)) +$D13 -> 141.6909091 | W12: 141.3636364 | X12: 141.0363636 | Y12: 140.7090909 | Z12: 140.3818182 | AA12: 140.0545455 | AB12: 139.7272727 | AC12: 139.4 | AD12: 139.0727273 | AE12: 138.7454545 | AF12: 138.4181818 | AG12: 138.0909091 | AH12: 137.7636364 | AI12: 137.4363636 | AJ12: 137.1090909 | AK12: 136.7818182 | AL12: 136.4545455 | AM12: 136.1272727 | AN12: 135.8 | AO12: 135.4727273 | AP12: 135.1454545 | AQ12: 134.8181818 | AR12: 134.4909091 | AS12: 134.1636364 | AT12: 133.8363636 | AU12: 133.5090909 | AV12: 133.1818182 | AW12: 132.8545455 | AX12: 132.5272727 | AY12: 132.2 | AZ12: 131.8727273 | BA12: 131.5454545 | BB12: 131.2181818 | BC12: 130.8909091 | BD12: 130.5636364 | BE12: 130.2363636 | BF12: 129.9090909 | BG12: 129.5818182 | BH12: 129.2545455 | BI12: 128.9272727 | BJ12: 128.6 | BK12: 128.2727273 | BL12: 127.9454545 | BM12: 127.6181818 | BN12: 127.2909091 | BO12: 126.9636364 | BP12: 126.6363636 | BQ12: =SQRT(SQRT(($B13-$D13)*($B13-$D13) +($E13-$C13)*($E13-$C13))*($E13-BQ$6)/($E13-$C13)*SQRT(($B13-$D13)*($B13-$D13) +($E13-$C13)*($E13-$C13))*($E13-BQ$6)/($E13-$C13) - ($E13-BQ$6)*($E13-BQ$6)) +$D13 -> 126.3090909 | BR12: =SQRT(SQRT(($B13-$D13)*($B13-$D13) +($E13-$C13)*($E13-$C13))*($E13-BR$6)/($E13-$C13)*SQRT(($B13-$D13)*($B13-$D13) +($E13-$C13)*($E13-$C13))*($E13-BR$6)/($E13-$C13) - ($E13-BR$6)*($E13-BR$6)) +$D13 -> 125.9818182 | BS12: =SQRT(SQRT(($B13-$D13)*($B13-$D13) +($E13-$C13)*($E13-$C13))*($E13-BS$6)/($E13-$C13)*SQRT(($B13-$D13)*($B13-$D13) +($E13-$C13)*($E13-$C13))*($E13-BS$6)/($E13-$C13) - ($E13-BS$6)*($E13-BS$6)) +$D13 -> 125.6545455 | BT12: =SQRT(SQRT(($B13-$D13)*($B13-$D13) +($E13-$C13)*($E13-$C13))*($E13-BT$6)/($E13-$C13)*SQRT(($B13-$D13)*($B13-$D13) +($E13-$C13)*($E13-$C13))*($E13-BT$6)/($E13-$C13) - ($E13-BT$6)*($E13-BT$6)) +$D13 -> 125.3272727 | BU12: =SQRT(SQRT(($B13-$D13)*($B13-$D13) +($E13-$C13)*($E13-$C13))*($E13-BU$6)/($E13-$C13)*SQRT(($B13-$D13)*($B13-$D13) +($E13-$C13)*($E13-$C13))*($E13-BU$6)/($E13-$C13) - ($E13-BU$6)*($E13-BU$6)) +$D13 -> 125 | BV12: 125 | BW12: 125 | BX12: 125 | BY12: 125 | BZ12: 125 | CA12: 125 | CB12: 125 | CC12: 125 | CD12: 125 | CE12: 125 | CF12: 125 | CG12: 125 | CH12: 125 | CI12: 125 | CJ12: 125 | CK12: 125 | CL12: 125 | CM12: 125 | CN12: 125 | CO12: 125
A13: Carv and Cycler | B13: 143 | C13: 10 | D13: 125 | E13: 65 | H13: TAR, H-V45, GR-22, TRAC 5, Solstice | I13: 143 | J13: 143 | K13: 143 | L13: 143 | M13: 143 | N13: 143 | O13: 143 | P13: 143 | Q13: 143 | R13: 143 | S13: 143 | T13: 143 | U13: 143 | V13: 143 | W13: 143 | X13: 142.3111111 | Y13: 141.6222222 | Z13: 140.9333333 | AA13: 140.2444444 | AB13: 139.5555556 | AC13: 138.8666667 | AD13: 138.1777778 | AE13: 137.4888889 | AF13: 136.8 | AG13: 136.1111111 | AH13: 135.4222222 | AI13: 134.7333333 | AJ13: 134.0444444 | AK13: 133.3555556 | AL13: 132.6666667 | AM13: 131.9777778 | AN13: 131.2888889 | AO13: 130.6 | AP13: 129.9111111 | AQ13: 129.2222222 | AR13: 128.5333333 | AS13: 127.8444444 | AT13: 127.1555556 | AU13: 126.4666667 | AV13: 125.7777778 | AW13: 125.0888889 | AX13: 124.4 | AY13: 123.7111111 | AZ13: 123.0222222 | BA13: 122.3333333 | BB13: 121.6444444 | BC13: 120.9555556 | BD13: 120.2666667 | BE13: 119.5777778 | BF13: 118.8888889 | BG13: 118.2 | BH13: 117.5111111 | BI13: 116.8222222 | BJ13: 116.1333333 | BK13: 115.4444444 | BL13: 114.7555556 | BM13: 114.0666667 | BN13: 113.3777778 | BO13: 112.6888889 | BP13: 112 | BQ13: 112 | BR13: 112 | BS13: 112 | BT13: 112 | BU13: 112 | BV13: 112 | BW13: 112 | BX13: 112 | BY13: 112 | BZ13: 112 | CA13: 112 | CB13: 112 | CC13: 112 | CD13: 112 | CE13: 112 | CF13: 112 | CG13: 112 | CH13: 112 | CI13: 112 | CJ13: 112 | CK13: 112 | CL13: 112 | CM13: 112 | CN13: 112 | CO13: 112
A14: TAR, H-V45, GR-22, TRAC 5, Solstice | B14: 143 | C14: 15 | D14: 112 | E14: 60
H15: GD-7F and Serpent | I15: 143 | J15: 143 | K15: 143 | L15: 143 | M15: 143 | N15: 143 | O15: 143 | P15: 143 | Q15: 143 | R15: 143 | S15: 143 | T15: 143 | U15: 143 | V15: 143 | W15: =SQRT(SQRT(($B16-$D16)*($B16-$D16) +($E16-$C16)*($E16-$C16))*($E16-W$6)/($E16-$C16)*SQRT(($B16-$D16)*($B16-$D16) +($E16-$C16)*($E16-$C16))*($E16-W$6)/($E16-$C16) - ($E16-W$6)*($E16-W$6)) +$D16 -> 143 | X15: 142.0444444 | Y15: 141.0888889 | Z15: 140.1333333 | AA15: 139.1777778 | AB15: 138.2222222 | AC15: 137.2666667 | AD15: 136.3111111 | AE15: 135.3555556 | AF15: 134.4 | AG15: 133.4444444 | AH15: 132.4888889 | AI15: 131.5333333 | AJ15: 130.5777778 | AK15: 129.6222222 | AL15: 128.6666667 | AM15: 127.7111111 | AN15: 126.7555556 | AO15: 125.8 | AP15: 124.8444444 | AQ15: 123.8888889 | AR15: 122.9333333 | AS15: 121.9777778 | AT15: 121.0222222 | AU15: 120.0666667 | AV15: 119.1111111 | AW15: 118.1555556 | AX15: 117.2 | AY15: 116.2444444 | AZ15: 115.2888889 | BA15: 114.3333333 | BB15: 113.3777778 | BC15: 112.4222222 | BD15: 111.4666667 | BE15: 110.5111111 | BF15: 109.5555556 | BG15: 108.6 | BH15: 107.6444444 | BI15: 106.6888889 | BJ15: 105.7333333 | BK15: 104.7777778 | BL15: 103.8222222 | BM15: 102.8666667 | BN15: 101.9111111 | BO15: 100.9555556 | BP15: 100 | BQ15: 100 | BR15: 100 | BS15: 100 | BT15: 100 | BU15: 100 | BV15: 100 | BW15: 100 | BX15: 100 | BY15: 100 | BZ15: 100 | CA15: 100 | CB15: 100 | CC15: 100 | CD15: 100 | CE15: 100 | CF15: 100 | CG15: 100 | CH15: 100 | CI15: 100 | CJ15: 100 | CK15: 100 | CL15: 100 | CM15: 100 | CN15: 100 | CO15: 100
A16: GD-7F and Serpent | B16: 143 | C16: 15 | D16: 100 | E16: 60
H17: 2nd gen SMGs | I17: 125 | J17: 125 | K17: 125 | L17: 125 | M17: 125 | N17: 125 | O17: 125 | P17: 125 | Q17: 125 | R17: 125 | S17: 125 | T17: =SQRT(SQRT(($B18-$D18)*($B18-$D18) +($E18-$C18)*($E18-$C18))*($E18-T$6)/($E18-$C18)*SQRT(($B18-$D18)*($B18-$D18) +($E18-$C18)*($E18-$C18))*($E18-T$6)/($E18-$C18) - ($E18-T$6)*($E18-T$6)) +$D18 -> 125 | U17: 123.6333333 | V17: 122.2666667 | W17: 120.9 | X17: 119.5333333 | Y17: 118.1666667 | Z17: 116.8 | AA17: 115.4333333 | AB17: 114.0666667 | AC17: 112.7 | AD17: 111.3333333 | AE17: 109.9666667 | AF17: 108.6 | AG17: 107.2333333 | AH17: 105.8666667 | AI17: 104.5 | AJ17: 103.1333333 | AK17: 101.7666667 | AL17: 100.4 | AM17: 99.03333333 | AN17: 97.66666667 | AO17: 96.3 | AP17: 94.93333333 | AQ17: 93.56666667 | AR17: 92.2 | AS17: 90.83333333 | AT17: 89.46666667 | AU17: 88.1 | AV17: 86.73333333 | AW17: 85.36666667 | AX17: 84 | AY17: 84 | AZ17: 84 | BA17: 84 | BB17: 84 | BC17: 84 | BD17: 84 | BE17: 84 | BF17: 84 | BG17: 84 | BH17: 84 | BI17: 84 | BJ17: 84 | BK17: 84 | BL17: 84 | BM17: 84 | BN17: 84 | BO17: 84 | BP17: 84 | BQ17: 84 | BR17: 84 | BS17: 84 | BT17: 84 | BU17: 84 | BV17: 84 | BW17: 84 | BX17: 84 | BY17: 84 | BZ17: 84 | CA17: 84 | CB17: 84 | CC17: 84 | CD17: 84 | CE17: 84 | CF17: 84 | CG17: 84 | CH17: 84 | CI17: 84 | CJ17: 84 | CK17: 84 | CL17: 84 | CM17: 84 | CN17: 84 | CO17: 84
A18: 2nd gen SMGs | B18: 125 | C18: 12 | D18: 84 | E18: 42 | I18: BTK
G19: Gauss SAW and Reaper DMR | H19: Default | I19: =CEILING($A$3/I$7,1) -> 5 | J19: =CEILING($A$3/J$7,1) -> 5 | K19: 5 | L19: 5 | M19: 5 | N19: 5 | O19: 5 | P19: 5 | Q19: 5 | R19: 5 | S19: 6 | T19: 6 | U19: 6 | V19: 6 | W19: 6 | X19: 6 | Y19: 6 | Z19: 6 | AA19: 6 | AB19: 6 | AC19: 6 | AD19: 6 | AE19: 6 | AF19: 6 | AG19: 6 | AH19: 6 | AI19: 6 | AJ19: 6 | AK19: 6 | AL19: 6 | AM19: 6 | AN19: 6 | AO19: =CEILING($A$3/AO$7,1) -> 6 | AP19: 6 | AQ19: 6 | AR19: 6 | AS19: 6 | AT19: 6 | AU19: 6 | AV19: 6 | AW19: 6 | AX19: 6 | AY19: 6 | AZ19: 6 | BA19: 6 | BB19: 6 | BC19: 6 | BD19: 6 | BE19: 6 | BF19: 6 | BG19: 6 | BH19: 6 | BI19: 6 | BJ19: 6 | BK19: 6 | BL19: 6 | BM19: 6 | BN19: 6 | BO19: 6 | BP19: 6 | BQ19: 6 | BR19: 6 | BS19: 6 | BT19: 6 | BU19: =CEILING($A$3/BU$7,1) -> 6 | BV19: 6 | BW19: 6 | BX19: 6 | BY19: 6 | BZ19: 6 | CA19: 6 | CB19: 6 | CC19: 6 | CD19: 6 | CE19: 6 | CF19: 6 | CG19: 6 | CH19: 6 | CI19: 6 | CJ19: 6 | CK19: 6 | CL19: 6 | CM19: 6 | CN19: 6 | CO19: 6
A20: Range | B20: Damage | C20: E46 | H20: Nano 1 | I20: =CEILING($B$5/I$7,1) -> 6 | J20: 6 | K20: 6 | L20: 6 | M20: 6 | N20: 6 | O20: 6 | P20: 6 | Q20: 6 | R20: 6 | S20: 6 | T20: 6 | U20: 6 | V20: 6 | W20: 6 | X20: 6 | Y20: 6 | Z20: 6 | AA20: 6 | AB20: 6 | AC20: 6 | AD20: 6 | AE20: 6 | AF20: 6 | AG20: 6 | AH20: 6 | AI20: 6 | AJ20: 6 | AK20: 6 | AL20: 6 | AM20: 6 | AN20: 6 | AO20: =CEILING($B$5/AO$7,1) -> 6 | AP20: 6 | AQ20: 6 | AR20: 6 | AS20: 6 | AT20: 6 | AU20: 6 | AV20: 6 | AW20: 6 | AX20: 6 | AY20: 6 | AZ20: 6 | BA20: 6 | BB20: 6 | BC20: 6 | BD20: 6 | BE20: 6 | BF20: 6 | BG20: 6 | BH20: 6 | BI20: 6 | BJ20: 6 | BK20: 6 | BL20: 7 | BM20: 7 | BN20: 7 | BO20: 7 | BP20: 7 | BQ20: 7 | BR20: 7 | BS20: 7 | BT20: 7 | BU20: =CEILING($B$5/BU$7,1) -> 7 | BV20: 7 | BW20: 7 | BX20: 7 | BY20: 7 | BZ20: 7 | CA20: 7 | CB20: 7 | CC20: 7 | CD20: 7 | CE20: 7 | CF20: 7 | CG20: 7 | CH20: 7 | CI20: 7 | CJ20: 7 | CK20: 7 | CL20: 7 | CM20: 7 | CN20: 7 | CO20: 7
A21: 1 | H21: Nano 2 | I21: =CEILING($C$5/I$7,1) -> 6 | J21: 6 | K21: 6 | L21: 6 | M21: 6 | N21: 6 | O21: 6 | P21: 6 | Q21: 6 | R21: 6 | S21: 6 | T21: 6 | U21: 6 | V21: 6 | W21: 6 | X21: 6 | Y21: 6 | Z21: 6 | AA21: 6 | AB21: 6 | AC21: 6 | AD21: 6 | AE21: 6 | AF21: 6 | AG21: 6 | AH21: 6 | AI21: 6 | AJ21: 6 | AK21: 6 | AL21: 6 | AM21: 6 | AN21: 6 | AO21: =CEILING($C$5/AO$7,1) -> 6 | AP21: 6 | AQ21: 6 | AR21: 6 | AS21: 6 | AT21: 6 | AU21: 6 | AV21: 6 | AW21: 6 | AX21: 6 | AY21: 6 | AZ21: 7 | BA21: 7 | BB21: 7 | BC21: 7 | BD21: 7 | BE21: 7 | BF21: 7 | BG21: 7 | BH21: 7 | BI21: 7 | BJ21: 7 | BK21: 7 | BL21: 7 | BM21: 7 | BN21: 7 | BO21: 7 | BP21: 7 | BQ21: 7 | BR21: 7 | BS21: 7 | BT21: 7 | BU21: =CEILING($C$5/BU$7,1) -> 7 | BV21: 7 | BW21: 7 | BX21: 7 | BY21: 7 | BZ21: 7 | CA21: 7 | CB21: 7 | CC21: 7 | CD21: 7 | CE21: 7 | CF21: 7 | CG21: 7 | CH21: 7 | CI21: 7 | CJ21: 7 | CK21: 7 | CL21: 7 | CM21: 7 | CN21: 7 | CO21: 7
A22: 2 | H22: Nano 3 | I22: =CEILING($D$5/I$7,1) -> 6 | J22: 6 | K22: 6 | L22: 6 | M22: 6 | N22: 6 | O22: 6 | P22: 6 | Q22: 6 | R22: 6 | S22: 6 | T22: 6 | U22: 6 | V22: 6 | W22: 6 | X22: 6 | Y22: 6 | Z22: 6 | AA22: 6 | AB22: 6 | AC22: 6 | AD22: 6 | AE22: 6 | AF22: 6 | AG22: 6 | AH22: 6 | AI22: 6 | AJ22: 6 | AK22: 6 | AL22: 6 | AM22: 6 | AN22: 7 | AO22: =CEILING($D$5/AO$7,1) -> 7 | AP22: 7 | AQ22: 7 | AR22: 7 | AS22: 7 | AT22: 7 | AU22: 7 | AV22: 7 | AW22: 7 | AX22: 7 | AY22: 7 | AZ22: 7 | BA22: 7 | BB22: 7 | BC22: 7 | BD22: 7 | BE22: 7 | BF22: 7 | BG22: 7 | BH22: 7 | BI22: 7 | BJ22: 7 | BK22: 7 | BL22: 7 | BM22: 7 | BN22: 7 | BO22: 7 | BP22: 7 | BQ22: 7 | BR22: 7 | BS22: 7 | BT22: 7 | BU22: =CEILING($D$5/BU$7,1) -> 7 | BV22: 7 | BW22: 7 | BX22: 7 | BY22: 7 | BZ22: 7 | CA22: 7 | CB22: 7 | CC22: 7 | CD22: 7 | CE22: 7 | CF22: 7 | CG22: 7 | CH22: 7 | CI22: 7 | CJ22: 7 | CK22: 7 | CL22: 7 | CM22: 7 | CN22: 7 | CO22: 7
A23: 3 | H23: Nano 4 | I23: =CEILING($E$5/I$7,1) -> 6 | J23: 6 | K23: 6 | L23: 6 | M23: 6 | N23: 6 | O23: 6 | P23: 6 | Q23: 6 | R23: 6 | S23: 6 | T23: 6 | U23: 6 | V23: 6 | W23: 6 | X23: 6 | Y23: 6 | Z23: 6 | AA23: 7 | AB23: 7 | AC23: 7 | AD23: 7 | AE23: 7 | AF23: 7 | AG23: 7 | AH23: 7 | AI23: 7 | AJ23: 7 | AK23: 7 | AL23: 7 | AM23: 7 | AN23: 7 | AO23: =CEILING($E$5/AO$7,1) -> 7 | AP23: 7 | AQ23: 7 | AR23: 7 | AS23: 7 | AT23: 7 | AU23: 7 | AV23: 7 | AW23: 7 | AX23: 7 | AY23: 7 | AZ23: 7 | BA23: 7 | BB23: 7 | BC23: 7 | BD23: 7 | BE23: 7 | BF23: 7 | BG23: 7 | BH23: 7 | BI23: 7 | BJ23: 7 | BK23: 7 | BL23: 7 | BM23: 7 | BN23: 7 | BO23: 7 | BP23: 7 | BQ23: 7 | BR23: 7 | BS23: 7 | BT23: 7 | BU23: =CEILING($E$5/BU$7,1) -> 7 | BV23: 7 | BW23: 7 | BX23: 7 | BY23: 7 | BZ23: 7 | CA23: 7 | CB23: 7 | CC23: 7 | CD23: 7 | CE23: 7 | CF23: 7 | CG23: 7 | CH23: 7 | CI23: 7 | CJ23: 7 | CK23: 7 | CL23: 7 | CM23: 8 | CN23: 8 | CO23: 8
A24: 4 | H24: Nano 5 | I24: =CEILING($F$5/I$7,1) -> 7 | J24: 7 | K24: 7 | L24: 7 | M24: 7 | N24: 7 | O24: 7 | P24: 7 | Q24: 7 | R24: 7 | S24: 7 | T24: 7 | U24: 7 | V24: 7 | W24: 7 | X24: 7 | Y24: 7 | Z24: 7 | AA24: 7 | AB24: 7 | AC24: 7 | AD24: 7 | AE24: 7 | AF24: 7 | AG24: 7 | AH24: 7 | AI24: 7 | AJ24: 7 | AK24: 7 | AL24: 7 | AM24: 7 | AN24: 7 | AO24: =CEILING($F$5/AO$7,1) -> 7 | AP24: 7 | AQ24: 7 | AR24: 7 | AS24: 7 | AT24: 7 | AU24: 7 | AV24: 7 | AW24: 7 | AX24: 7 | AY24: 7 | AZ24: 7 | BA24: 7 | BB24: 7 | BC24: 7 | BD24: 7 | BE24: 7 | BF24: 7 | BG24: 7 | BH24: 7 | BI24: 7 | BJ24: 7 | BK24: 7 | BL24: 7 | BM24: 7 | BN24: 7 | BO24: 8 | BP24: 8 | BQ24: 8 | BR24: 8 | BS24: 8 | BT24: 8 | BU24: =CEILING($F$5/BU$7,1) -> 8 | BV24: 8 | BW24: 8 | BX24: 8 | BY24: 8 | BZ24: 8 | CA24: 8 | CB24: 8 | CC24: 8 | CD24: 8 | CE24: 8 | CF24: 8 | CG24: 8 | CH24: 8 | CI24: 8 | CJ24: 8 | CK24: 8 | CL24: 8 | CM24: 8 | CN24: 8 | CO24: 8
A25: 5
A26: 6 | G26: ACX-11 | H26: Default | I26: =CEILING($A$5/I$8,1) -> 5 | J26: 5 | K26: 5 | L26: 5 | M26: 5 | N26: 5 | O26: 5 | P26: 5 | Q26: 5 | R26: 5 | S26: 6 | T26: 6 | U26: 6 | V26: 6 | W26: 6 | X26: 6 | Y26: 6 | Z26: 6 | AA26: 6 | AB26: 6 | AC26: 6 | AD26: 6 | AE26: 6 | AF26: 6 | AG26: 6 | AH26: 6 | AI26: 6 | AJ26: 6 | AK26: 6 | AL26: 6 | AM26: 6 | AN26: 6 | AO26: =CEILING($A$5/AO$8,1) -> 6 | AP26: 6 | AQ26: 6 | AR26: 6 | AS26: 6 | AT26: 6 | AU26: 6 | AV26: 6 | AW26: 6 | AX26: 6 | AY26: 6 | AZ26: 6 | BA26: 6 | BB26: 6 | BC26: 6 | BD26: 6 | BE26: 6 | BF26: 6 | BG26: 7 | BH26: 7 | BI26: 7 | BJ26: 7 | BK26: 7 | BL26: 7 | BM26: 7 | BN26: 7 | BO26: 7 | BP26: 7 | BQ26: 7 | BR26: 7 | BS26: 7 | BT26: 7 | BU26: =CEILING($A$5/BU$8,1) -> 7 | BV26: 7 | BW26: 7 | BX26: 7 | BY26: 7 | BZ26: 7 | CA26: 7 | CB26: 7 | CC26: 7 | CD26: 7 | CE26: 7 | CF26: 7 | CG26: 7 | CH26: 7 | CI26: 7 | CJ26: 7 | CK26: 7 | CL26: 7 | CM26: 7 | CN26: 7 | CO26: 7
A27: 7 | H27: Nano 1 | I27: =CEILING($B$5/I$8,1) -> 6 | J27: 6 | K27: 6 | L27: 6 | M27: 6 | N27: 6 | O27: 6 | P27: 6 | Q27: 6 | R27: 6 | S27: 6 | T27: 6 | U27: 6 | V27: 6 | W27: 6 | X27: 6 | Y27: 6 | Z27: 6 | AA27: 6 | AB27: 6 | AC27: 6 | AD27: 6 | AE27: 6 | AF27: 6 | AG27: 6 | AH27: 6 | AI27: 6 | AJ27: 6 | AK27: 6 | AL27: 6 | AM27: 6 | AN27: 6 | AO27: =CEILING($B$5/AO$8,1) -> 6 | AP27: 6 | AQ27: 7 | AR27: 7 | AS27: 7 | AT27: 7 | AU27: 7 | AV27: 7 | AW27: 7 | AX27: 7 | AY27: 7 | AZ27: 7 | BA27: 7 | BB27: 7 | BC27: 7 | BD27: 7 | BE27: 7 | BF27: 7 | BG27: 7 | BH27: 7 | BI27: 7 | BJ27: 7 | BK27: 7 | BL27: 7 | BM27: 7 | BN27: 7 | BO27: 7 | BP27: 7 | BQ27: 7 | BR27: 7 | BS27: 7 | BT27: 7 | BU27: =CEILING($B$5/BU$8,1) -> 7 | BV27: 8 | BW27: 8 | BX27: 8 | BY27: 8 | BZ27: 8 | CA27: 8 | CB27: 8 | CC27: 8 | CD27: 8 | CE27: 8 | CF27: 8 | CG27: 8 | CH27: 8 | CI27: 8 | CJ27: 8 | CK27: 8 | CL27: 8 | CM27: 8 | CN27: 8 | CO27: 8
A28: 8 | H28: Nano 2 | I28: =CEILING($C$5/I$8,1) -> 6 | J28: 6 | K28: 6 | L28: 6 | M28: 6 | N28: 6 | O28: 6 | P28: 6 | Q28: 6 | R28: 6 | S28: 6 | T28: 6 | U28: 6 | V28: 6 | W28: 6 | X28: 6 | Y28: 6 | Z28: 6 | AA28: 6 | AB28: 6 | AC28: 6 | AD28: 6 | AE28: 6 | AF28: 6 | AG28: 6 | AH28: 6 | AI28: 6 | AJ28: 6 | AK28: 7 | AL28: 7 | AM28: 7 | AN28: 7 | AO28: =CEILING($C$5/AO$8,1) -> 7 | AP28: 7 | AQ28: 7 | AR28: 7 | AS28: 7 | AT28: 7 | AU28: 7 | AV28: 7 | AW28: 7 | AX28: 7 | AY28: 7 | AZ28: 7 | BA28: 7 | BB28: 7 | BC28: 7 | BD28: 7 | BE28: 7 | BF28: 7 | BG28: 7 | BH28: 7 | BI28: 7 | BJ28: 7 | BK28: 7 | BL28: 7 | BM28: 7 | BN28: 7 | BO28: 7 | BP28: 7 | BQ28: 8 | BR28: 8 | BS28: 8 | BT28: 8 | BU28: =CEILING($C$5/BU$8,1) -> 8 | BV28: 8 | BW28: 8 | BX28: 8 | BY28: 8 | BZ28: 8 | CA28: 8 | CB28: 8 | CC28: 8 | CD28: 8 | CE28: 8 | CF28: 8 | CG28: 8 | CH28: 8 | CI28: 8 | CJ28: 8 | CK28: 8 | CL28: 8 | CM28: 8 | CN28: 8 | CO28: 8
A29: 9 | H29: Nano 3 | I29: =CEILING($D$5/I$8,1) -> 6 | J29: 6 | K29: 6 | L29: 6 | M29: 6 | N29: 6 | O29: 6 | P29: 6 | Q29: 6 | R29: 6 | S29: 6 | T29: 6 | U29: 6 | V29: 6 | W29: 6 | X29: 6 | Y29: 6 | Z29: 6 | AA29: 6 | AB29: 6 | AC29: 6 | AD29: 7 | AE29: 7 | AF29: 7 | AG29: 7 | AH29: 7 | AI29: 7 | AJ29: 7 | AK29: 7 | AL29: 7 | AM29: 7 | AN29: 7 | AO29: =CEILING($D$5/AO$8,1) -> 7 | AP29: 7 | AQ29: 7 | AR29: 7 | AS29: 7 | AT29: 7 | AU29: 7 | AV29: 7 | AW29: 7 | AX29: 7 | AY29: 7 | AZ29: 7 | BA29: 7 | BB29: 7 | BC29: 7 | BD29: 7 | BE29: 7 | BF29: 7 | BG29: 7 | BH29: 7 | BI29: 7 | BJ29: 7 | BK29: 7 | BL29: 8 | BM29: 8 | BN29: 8 | BO29: 8 | BP29: 8 | BQ29: 8 | BR29: 8 | BS29: 8 | BT29: 8 | BU29: =CEILING($D$5/BU$8,1) -> 8 | BV29: 8 | BW29: 8 | BX29: 8 | BY29: 8 | BZ29: 8 | CA29: 8 | CB29: 8 | CC29: 8 | CD29: 8 | CE29: 8 | CF29: 8 | CG29: 8 | CH29: 8 | CI29: 8 | CJ29: 8 | CK29: 8 | CL29: 8 | CM29: 8 | CN29: 8 | CO29: 8
A30: 10 | B30: =SQRT(SQRT(($B$8-$D$8)*($B$8-$D$8) +($E$8-$C$8)*($E$8-$C$8))*($E$8-R6)/($E$8-$C$8)*SQRT(($B$8-$D$8)*($B$8-$D$8) +($E$8-$C$8)*($E$8-$C$8))*($E$8-R6)/($E$8-$C$8) - ($E$8-R6)*($E$8-R6)) +$D$8 -> 200 | C30: =SQRT(SQRT((C8-E8)*(C8-E8) +(F8-D8)*(F8-D8))*(F8-B30)/(F8-D8)*SQRT((C8-E8)*(C8-E8) +(F8-D8)*(F8-D8))*(F8-B30)/(F8-D8) - (F8-B30)*(F8-B30)) + E8 -> 174.8203593 | H30: Nano 4 | I30: =CEILING($E$5/I$8,1) -> 6 | J30: 6 | K30: 6 | L30: 6 | M30: 6 | N30: 6 | O30: 6 | P30: 6 | Q30: 6 | R30: 6 | S30: 6 | T30: 6 | U30: 6 | V30: 6 | W30: 7 | X30: 7 | Y30: 7 | Z30: 7 | AA30: 7 | AB30: 7 | AC30: 7 | AD30: 7 | AE30: 7 | AF30: 7 | AG30: 7 | AH30: 7 | AI30: 7 | AJ30: 7 | AK30: 7 | AL30: 7 | AM30: 7 | AN30: 7 | AO30: =CEILING($E$5/AO$8,1) -> 7 | AP30: 7 | AQ30: 7 | AR30: 7 | AS30: 7 | AT30: 7 | AU30: 7 | AV30: 7 | AW30: 7 | AX30: 7 | AY30: 7 | AZ30: 7 | BA30: 7 | BB30: 7 | BC30: 7 | BD30: 7 | BE30: 7 | BF30: 8 | BG30: 8 | BH30: 8 | BI30: 8 | BJ30: 8 | BK30: 8 | BL30: 8 | BM30: 8 | BN30: 8 | BO30: 8 | BP30: 8 | BQ30: 8 | BR30: 8 | BS30: 8 | BT30: 8 | BU30: =CEILING($E$5/BU$8,1) -> 8 | BV30: 8 | BW30: 8 | BX30: 8 | BY30: 8 | BZ30: 8 | CA30: 8 | CB30: 8 | CC30: 8 | CD30: 8 | CE30: 8 | CF30: 9 | CG30: 9 | CH30: 9 | CI30: 9 | CJ30: 9 | CK30: 9 | CL30: 9 | CM30: 9 | CN30: 9 | CO30: 9
A31: 11 | H31: Nano 5 | I31: =CEILING($F$5/I$8,1) -> 7 | J31: 7 | K31: 7 | L31: 7 | M31: 7 | N31: 7 | O31: 7 | P31: 7 | Q31: 7 | R31: 7 | S31: 7 | T31: 7 | U31: 7 | V31: 7 | W31: 7 | X31: 7 | Y31: 7 | Z31: 7 | AA31: 7 | AB31: 7 | AC31: 7 | AD31: 7 | AE31: 7 | AF31: 7 | AG31: 7 | AH31: 7 | AI31: 7 | AJ31: 7 | AK31: 7 | AL31: 7 | AM31: 7 | AN31: 7 | AO31: =CEILING($F$5/AO$8,1) -> 7 | AP31: 7 | AQ31: 7 | AR31: 7 | AS31: 8 | AT31: 8 | AU31: 8 | AV31: 8 | AW31: 8 | AX31: 8 | AY31: 8 | AZ31: 8 | BA31: 8 | BB31: 8 | BC31: 8 | BD31: 8 | BE31: 8 | BF31: 8 | BG31: 8 | BH31: 8 | BI31: 8 | BJ31: 8 | BK31: 8 | BL31: 8 | BM31: 8 | BN31: 8 | BO31: 8 | BP31: 8 | BQ31: 8 | BR31: 8 | BS31: 8 | BT31: 9 | BU31: =CEILING($F$5/BU$8,1) -> 9 | BV31: 9 | BW31: 9 | BX31: 9 | BY31: 9 | BZ31: 9 | CA31: 9 | CB31: 9 | CC31: 9 | CD31: 9 | CE31: 9 | CF31: 9 | CG31: 9 | CH31: 9 | CI31: 9 | CJ31: 9 | CK31: 9 | CL31: 9 | CM31: 9 | CN31: 9 | CO31: 9
A32: 12
A33: 13 | G33: Gauss Rifle | H33: Default | I33: =CEILING($A$5/I$9,1) -> 6 | J33: 6 | K33: 6 | L33: 6 | M33: 6 | N33: 6 | O33: 6 | P33: 6 | Q33: 6 | R33: 6 | S33: 7 | T33: 7 | U33: 7 | V33: 7 | W33: 7 | X33: 7 | Y33: 7 | Z33: 7 | AA33: 7 | AB33: 7 | AC33: 7 | AD33: 7 | AE33: 7 | AF33: 7 | AG33: 7 | AH33: 7 | AI33: 7 | AJ33: 7 | AK33: 7 | AL33: 7 | AM33: 7 | AN33: 7 | AO33: =CEILING($A$5/AO$9,1) -> 7 | AP33: 7 | AQ33: 7 | AR33: 7 | AS33: 7 | AT33: 7 | AU33: 7 | AV33: 7 | AW33: 7 | AX33: 7 | AY33: 7 | AZ33: 7 | BA33: 7 | BB33: 7 | BC33: 7 | BD33: 7 | BE33: 7 | BF33: 7 | BG33: 7 | BH33: 7 | BI33: 7 | BJ33: 7 | BK33: 7 | BL33: 7 | BM33: 7 | BN33: 7 | BO33: 7 | BP33: 7 | BQ33: 7 | BR33: 7 | BS33: 7 | BT33: 7 | BU33: =CEILING($A$5/BU$9,1) -> 7 | BV33: 7 | BW33: 7 | BX33: 7 | BY33: 7 | BZ33: 7 | CA33: 7 | CB33: 7 | CC33: 7 | CD33: 7 | CE33: 7 | CF33: 7 | CG33: 7 | CH33: 7 | CI33: 7 | CJ33: 7 | CK33: 7 | CL33: 7 | CM33: 7 | CN33: 7 | CO33: 7
A34: 14 | H34: Nano 1 | I34: =CEILING($B$5/I$9,1) -> 7 | J34: 7 | K34: 7 | L34: 7 | M34: 7 | N34: 7 | O34: 7 | P34: 7 | Q34: 7 | R34: 7 | S34: 7 | T34: 7 | U34: 7 | V34: 7 | W34: 7 | X34: 7 | Y34: 7 | Z34: 7 | AA34: 7 | AB34: 7 | AC34: 7 | AD34: 7 | AE34: 7 | AF34: 7 | AG34: 7 | AH34: 7 | AI34: 7 | AJ34: 7 | AK34: 7 | AL34: 7 | AM34: 7 | AN34: 7 | AO34: =CEILING($B$5/AO$9,1) -> 7 | AP34: 7 | AQ34: 7 | AR34: 7 | AS34: 7 | AT34: 7 | AU34: 7 | AV34: 7 | AW34: 7 | AX34: 7 | AY34: 7 | AZ34: 7 | BA34: 8 | BB34: 8 | BC34: 8 | BD34: 8 | BE34: 8 | BF34: 8 | BG34: 8 | BH34: 8 | BI34: 8 | BJ34: 8 | BK34: 8 | BL34: 8 | BM34: 8 | BN34: 8 | BO34: 8 | BP34: 8 | BQ34: 8 | BR34: 8 | BS34: 8 | BT34: 8 | BU34: =CEILING($B$5/BU$9,1) -> 8 | BV34: 8 | BW34: 8 | BX34: 8 | BY34: 8 | BZ34: 8 | CA34: 8 | CB34: 8 | CC34: 8 | CD34: 8 | CE34: 8 | CF34: 8 | CG34: 8 | CH34: 8 | CI34: 8 | CJ34: 8 | CK34: 8 | CL34: 8 | CM34: 8 | CN34: 8 | CO34: 8
A35: 15 | H35: Nano 2 | I35: =CEILING($C$5/I$9,1) -> 7 | J35: 7 | K35: 7 | L35: 7 | M35: 7 | N35: 7 | O35: 7 | P35: 7 | Q35: 7 | R35: 7 | S35: 7 | T35: 7 | U35: 7 | V35: 7 | W35: 7 | X35: 7 | Y35: 7 | Z35: 7 | AA35: 7 | AB35: 7 | AC35: 7 | AD35: 7 | AE35: 7 | AF35: 7 | AG35: 7 | AH35: 7 | AI35: 7 | AJ35: 7 | AK35: 7 | AL35: 7 | AM35: 7 | AN35: 7 | AO35: =CEILING($C$5/AO$9,1) -> 8 | AP35: 8 | AQ35: 8 | AR35: 8 | AS35: 8 | AT35: 8 | AU35: 8 | AV35: 8 | AW35: 8 | AX35: 8 | AY35: 8 | AZ35: 8 | BA35: 8 | BB35: 8 | BC35: 8 | BD35: 8 | BE35: 8 | BF35: 8 | BG35: 8 | BH35: 8 | BI35: 8 | BJ35: 8 | BK35: 8 | BL35: 8 | BM35: 8 | BN35: 8 | BO35: 8 | BP35: 8 | BQ35: 8 | BR35: 8 | BS35: 8 | BT35: 8 | BU35: =CEILING($C$5/BU$9,1) -> 8 | BV35: 8 | BW35: 8 | BX35: 8 | BY35: 8 | BZ35: 8 | CA35: 8 | CB35: 8 | CC35: 8 | CD35: 8 | CE35: 8 | CF35: 8 | CG35: 8 | CH35: 8 | CI35: 8 | CJ35: 8 | CK35: 8 | CL35: 8 | CM35: 8 | CN35: 8 | CO35: 8
A36: 16 | H36: Nano 3 | I36: =CEILING($D$5/I$9,1) -> 7 | J36: 7 | K36: 7 | L36: 7 | M36: 7 | N36: 7 | O36: 7 | P36: 7 | Q36: 7 | R36: 7 | S36: 7 | T36: 7 | U36: 7 | V36: 7 | W36: 7 | X36: 7 | Y36: 7 | Z36: 7 | AA36: 7 | AB36: 7 | AC36: 8 | AD36: 8 | AE36: 8 | AF36: 8 | AG36: 8 | AH36: 8 | AI36: 8 | AJ36: 8 | AK36: 8 | AL36: 8 | AM36: 8 | AN36: 8 | AO36: =CEILING($D$5/AO$9,1) -> 8 | AP36: 8 | AQ36: 8 | AR36: 8 | AS36: 8 | AT36: 8 | AU36: 8 | AV36: 8 | AW36: 8 | AX36: 8 | AY36: 8 | AZ36: 8 | BA36: 8 | BB36: 8 | BC36: 8 | BD36: 8 | BE36: 8 | BF36: 8 | BG36: 8 | BH36: 8 | BI36: 8 | BJ36: 8 | BK36: 8 | BL36: 8 | BM36: 8 | BN36: 8 | BO36: 8 | BP36: 8 | BQ36: 8 | BR36: 8 | BS36: 8 | BT36: 8 | BU36: =CEILING($D$5/BU$9,1) -> 8 | BV36: 8 | BW36: 8 | BX36: 8 | BY36: 8 | BZ36: 8 | CA36: 8 | CB36: 8 | CC36: 8 | CD36: 8 | CE36: 8 | CF36: 8 | CG36: 8 | CH36: 8 | CI36: 8 | CJ36: 8 | CK36: 8 | CL36: 8 | CM36: 8 | CN36: 8 | CO36: 8
A37: 17 | H37: Nano 4 | I37: =CEILING($E$5/I$9,1) -> 8 | J37: 8 | K37: 8 | L37: 8 | M37: 8 | N37: 8 | O37: 8 | P37: 8 | Q37: 8 | R37: 8 | S37: 8 | T37: 8 | U37: 8 | V37: 8 | W37: 8 | X37: 8 | Y37: 8 | Z37: 8 | AA37: 8 | AB37: 8 | AC37: 8 | AD37: 8 | AE37: 8 | AF37: 8 | AG37: 8 | AH37: 8 | AI37: 8 | AJ37: 8 | AK37: 8 | AL37: 8 | AM37: 8 | AN37: 8 | AO37: =CEILING($E$5/AO$9,1) -> 8 | AP37: 8 | AQ37: 8 | AR37: 8 | AS37: 8 | AT37: 8 | AU37: 8 | AV37: 8 | AW37: 8 | AX37: 8 | AY37: 8 | AZ37: 8 | BA37: 8 | BB37: 8 | BC37: 8 | BD37: 8 | BE37: 8 | BF37: 8 | BG37: 8 | BH37: 8 | BI37: 8 | BJ37: 8 | BK37: 8 | BL37: 8 | BM37: 8 | BN37: 8 | BO37: 8 | BP37: 8 | BQ37: 8 | BR37: 8 | BS37: 8 | BT37: 8 | BU37: =CEILING($E$5/BU$9,1) -> 9 | BV37: 9 | BW37: 9 | BX37: 9 | BY37: 9 | BZ37: 9 | CA37: 9 | CB37: 9 | CC37: 9 | CD37: 9 | CE37: 9 | CF37: 9 | CG37: 9 | CH37: 9 | CI37: 9 | CJ37: 9 | CK37: 9 | CL37: 9 | CM37: 9 | CN37: 9 | CO37: 9
A38: 18 | H38: Nano 5 | I38: =CEILING($F$5/I$9,1) -> 8 | J38: 8 | K38: 8 | L38: 8 | M38: 8 | N38: 8 | O38: 8 | P38: 8 | Q38: 8 | R38: 8 | S38: 8 | T38: 8 | U38: 8 | V38: 8 | W38: 8 | X38: 8 | Y38: 8 | Z38: 8 | AA38: 8 | AB38: 8 | AC38: 8 | AD38: 8 | AE38: 8 | AF38: 8 | AG38: 8 | AH38: 8 | AI38: 8 | AJ38: 8 | AK38: 8 | AL38: 8 | AM38: 8 | AN38: 8 | AO38: =CEILING($F$5/AO$9,1) -> 8 | AP38: 8 | AQ38: 8 | AR38: 8 | AS38: 8 | AT38: 8 | AU38: 8 | AV38: 9 | AW38: 9 | AX38: 9 | AY38: 9 | AZ38: 9 | BA38: 9 | BB38: 9 | BC38: 9 | BD38: 9 | BE38: 9 | BF38: 9 | BG38: 9 | BH38: 9 | BI38: 9 | BJ38: 9 | BK38: 9 | BL38: 9 | BM38: 9 | BN38: 9 | BO38: 9 | BP38: 9 | BQ38: 9 | BR38: 9 | BS38: 9 | BT38: 9 | BU38: =CEILING($F$5/BU$9,1) -> 9 | BV38: 9 | BW38: 9 | BX38: 9 | BY38: 9 | BZ38: 9 | CA38: 9 | CB38: 9 | CC38: 9 | CD38: 9 | CE38: 9 | CF38: 9 | CG38: 9 | CH38: 9 | CI38: 9 | CJ38: 9 | CK38: 9 | CL38: 9 | CM38: 9 | CN38: 9 | CO38: 9
A39: 19
A40: 20 | G40: Mercenary | H40: Default | I40: =CEILING($A$5/I$10,1) -> 6 | J40: 6 | K40: 6 | L40: 6 | M40: 6 | N40: 6 | O40: 6 | P40: 6 | Q40: 6 | R40: 6 | S40: 7 | T40: 7 | U40: 7 | V40: 7 | W40: 7 | X40: 7 | Y40: 7 | Z40: 7 | AA40: 7 | AB40: 7 | AC40: 7 | AD40: 7 | AE40: 7 | AF40: 7 | AG40: 7 | AH40: 7 | AI40: 7 | AJ40: 7 | AK40: 7 | AL40: 7 | AM40: 7 | AN40: 7 | AO40: =CEILING($A$5/AO$10,1) -> 7 | AP40: 7 | AQ40: 7 | AR40: 7 | AS40: 7 | AT40: 7 | AU40: 7 | AV40: 7 | AW40: 7 | AX40: 7 | AY40: 7 | AZ40: 7 | BA40: 8 | BB40: 8 | BC40: 8 | BD40: 8 | BE40: 8 | BF40: 8 | BG40: 8 | BH40: 8 | BI40: 8 | BJ40: 8 | BK40: 8 | BL40: 8 | BM40: 8 | BN40: 8 | BO40: 8 | BP40: 8 | BQ40: 8 | BR40: 8 | BS40: 8 | BT40: 8 | BU40: =CEILING($A$5/BU$10,1) -> 8 | BV40: 8 | BW40: 8 | BX40: 8 | BY40: 8 | BZ40: 8 | CA40: 8 | CB40: 8 | CC40: 8 | CD40: 8 | CE40: 8 | CF40: 8 | CG40: 8 | CH40: 8 | CI40: 8 | CJ40: 8 | CK40: 8 | CL40: 8 | CM40: 8 | CN40: 8 | CO40: 8
A41: 21 | H41: Nano 1 | I41: =CEILING($B$5/I$10,1) -> 7 | J41: 7 | K41: 7 | L41: 7 | M41: 7 | N41: 7 | O41: 7 | P41: 7 | Q41: 7 | R41: 7 | S41: 7 | T41: 7 | U41: 7 | V41: 7 | W41: 7 | X41: 7 | Y41: 7 | Z41: 7 | AA41: 7 | AB41: 7 | AC41: 7 | AD41: 7 | AE41: 7 | AF41: 7 | AG41: 7 | AH41: 7 | AI41: 7 | AJ41: 8 | AK41: 8 | AL41: 8 | AM41: 8 | AN41: 8 | AO41: =CEILING($B$5/AO$10,1) -> 8 | AP41: 8 | AQ41: 8 | AR41: 8 | AS41: 8 | AT41: 8 | AU41: 8 | AV41: 8 | AW41: 8 | AX41: 8 | AY41: 8 | AZ41: 8 | BA41: 8 | BB41: 8 | BC41: 8 | BD41: 8 | BE41: 8 | BF41: 8 | BG41: 8 | BH41: 8 | BI41: 8 | BJ41: 8 | BK41: 8 | BL41: 9 | BM41: 9 | BN41: 9 | BO41: 9 | BP41: 9 | BQ41: 9 | BR41: 9 | BS41: 9 | BT41: 9 | BU41: =CEILING($B$5/BU$10,1) -> 9 | BV41: 9 | BW41: 9 | BX41: 9 | BY41: 9 | BZ41: 9 | CA41: 9 | CB41: 9 | CC41: 9 | CD41: 9 | CE41: 9 | CF41: 9 | CG41: 9 | CH41: 9 | CI41: 9 | CJ41: 9 | CK41: 9 | CL41: 9 | CM41: 9 | CN41: 9 | CO41: 9
A42: 22 | H42: Nano 2 | I42: =CEILING($C$5/I$10,1) -> 7 | J42: 7 | K42: 7 | L42: 7 | M42: 7 | N42: 7 | O42: 7 | P42: 7 | Q42: 7 | R42: 7 | S42: 7 | T42: 7 | U42: 7 | V42: 7 | W42: 7 | X42: 7 | Y42: 7 | Z42: 7 | AA42: 7 | AB42: 7 | AC42: 7 | AD42: 8 | AE42: 8 | AF42: 8 | AG42: 8 | AH42: 8 | AI42: 8 | AJ42: 8 | AK42: 8 | AL42: 8 | AM42: 8 | AN42: 8 | AO42: =CEILING($C$5/AO$10,1) -> 8 | AP42: 8 | AQ42: 8 | AR42: 8 | AS42: 8 | AT42: 8 | AU42: 8 | AV42: 8 | AW42: 8 | AX42: 8 | AY42: 8 | AZ42: 8 | BA42: 8 | BB42: 8 | BC42: 8 | BD42: 8 | BE42: 8 | BF42: 8 | BG42: 9 | BH42: 9 | BI42: 9 | BJ42: 9 | BK42: 9 | BL42: 9 | BM42: 9 | BN42: 9 | BO42: 9 | BP42: 9 | BQ42: 9 | BR42: 9 | BS42: 9 | BT42: 9 | BU42: =CEILING($C$5/BU$10,1) -> 9 | BV42: 9 | BW42: 9 | BX42: 9 | BY42: 9 | BZ42: 9 | CA42: 9 | CB42: 9 | CC42: 9 | CD42: 9 | CE42: 9 | CF42: 9 | CG42: 9 | CH42: 9 | CI42: 9 | CJ42: 9 | CK42: 9 | CL42: 9 | CM42: 9 | CN42: 9 | CO42: 9
A43: 23 | H43: Nano 3 | I43: =CEILING($D$5/I$10,1) -> 7 | J43: 7 | K43: 7 | L43: 7 | M43: 7 | N43: 7 | O43: 7 | P43: 7 | Q43: 7 | R43: 7 | S43: 7 | T43: 7 | U43: 7 | V43: 7 | W43: 7 | X43: 8 | Y43: 8 | Z43: 8 | AA43: 8 | AB43: 8 | AC43: 8 | AD43: 8 | AE43: 8 | AF43: 8 | AG43: 8 | AH43: 8 | AI43: 8 | AJ43: 8 | AK43: 8 | AL43: 8 | AM43: 8 | AN43: 8 | AO43: =CEILING($D$5/AO$10,1) -> 8 | AP43: 8 | AQ43: 8 | AR43: 8 | AS43: 8 | AT43: 8 | AU43: 8 | AV43: 8 | AW43: 8 | AX43: 8 | AY43: 8 | AZ43: 8 | BA43: 9 | BB43: 9 | BC43: 9 | BD43: 9 | BE43: 9 | BF43: 9 | BG43: 9 | BH43: 9 | BI43: 9 | BJ43: 9 | BK43: 9 | BL43: 9 | BM43: 9 | BN43: 9 | BO43: 9 | BP43: 9 | BQ43: 9 | BR43: 9 | BS43: 9 | BT43: 9 | BU43: =CEILING($D$5/BU$10,1) -> 9 | BV43: 9 | BW43: 9 | BX43: 10 | BY43: 10 | BZ43: 10 | CA43: 10 | CB43: 10 | CC43: 10 | CD43: 10 | CE43: 10 | CF43: 10 | CG43: 10 | CH43: 10 | CI43: 10 | CJ43: 10 | CK43: 10 | CL43: 10 | CM43: 10 | CN43: 10 | CO43: 10
A44: 24 | H44: Nano 4 | I44: =CEILING($E$5/I$10,1) -> 8 | J44: 8 | K44: 8 | L44: 8 | M44: 8 | N44: 8 | O44: 8 | P44: 8 | Q44: 8 | R44: 8 | S44: 8 | T44: 8 | U44: 8 | V44: 8 | W44: 8 | X44: 8 | Y44: 8 | Z44: 8 | AA44: 8 | AB44: 8 | AC44: 8 | AD44: 8 | AE44: 8 | AF44: 8 | AG44: 8 | AH44: 8 | AI44: 8 | AJ44: 8 | AK44: 8 | AL44: 8 | AM44: 8 | AN44: 8 | AO44: =CEILING($E$5/AO$10,1) -> 8 | AP44: 8 | AQ44: 8 | AR44: 8 | AS44: 8 | AT44: 8 | AU44: 9 | AV44: 9 | AW44: 9 | AX44: 9 | AY44: 9 | AZ44: 9 | BA44: 9 | BB44: 9 | BC44: 9 | BD44: 9 | BE44: 9 | BF44: 9 | BG44: 9 | BH44: 9 | BI44: 9 | BJ44: 9 | BK44: 9 | BL44: 9 | BM44: 9 | BN44: 9 | BO44: 9 | BP44: 9 | BQ44: 9 | BR44: 10 | BS44: 10 | BT44: 10 | BU44: =CEILING($E$5/BU$10,1) -> 10 | BV44: 10 | BW44: 10 | BX44: 10 | BY44: 10 | BZ44: 10 | CA44: 10 | CB44: 10 | CC44: 10 | CD44: 10 | CE44: 10 | CF44: 10 | CG44: 10 | CH44: 10 | CI44: 10 | CJ44: 10 | CK44: 10 | CL44: 10 | CM44: 10 | CN44: 10 | CO44: 10
A45: 25 | H45: Nano 5 | I45: =CEILING($F$5/I$10,1) -> 8 | J45: 8 | K45: 8 | L45: 8 | M45: 8 | N45: 8 | O45: 8 | P45: 8 | Q45: 8 | R45: 8 | S45: 8 | T45: 8 | U45: 8 | V45: 8 | W45: 8 | X45: 8 | Y45: 8 | Z45: 8 | AA45: 8 | AB45: 8 | AC45: 8 | AD45: 8 | AE45: 8 | AF45: 8 | AG45: 8 | AH45: 9 | AI45: 9 | AJ45: 9 | AK45: 9 | AL45: 9 | AM45: 9 | AN45: 9 | AO45: =CEILING($F$5/AO$10,1) -> 9 | AP45: 9 | AQ45: 9 | AR45: 9 | AS45: 9 | AT45: 9 | AU45: 9 | AV45: 9 | AW45: 9 | AX45: 9 | AY45: 9 | AZ45: 9 | BA45: 9 | BB45: 9 | BC45: 9 | BD45: 9 | BE45: 9 | BF45: 9 | BG45: 10 | BH45: 10 | BI45: 10 | BJ45: 10 | BK45: 10 | BL45: 10 | BM45: 10 | BN45: 10 | BO45: 10 | BP45: 10 | BQ45: 10 | BR45: 10 | BS45: 10 | BT45: 10 | BU45: =CEILING($F$5/BU$10,1) -> 10 | BV45: 10 | BW45: 10 | BX45: 10 | BY45: 10 | BZ45: 10 | CA45: 10 | CB45: 10 | CC45: 10 | CD45: 10 | CE45: 10 | CF45: 10 | CG45: 10 | CH45: 10 | CI45: 10 | CJ45: 10 | CK45: 10 | CL45: 10 | CM45: 10 | CN45: 10 | CO45: 10
A46: 26
A47: 27 | G47: Bandit | H47: Default | I47: =CEILING($A$5/I$11,1) -> 6 | J47: 6 | K47: 6 | L47: 6 | M47: 6 | N47: 6 | O47: 6 | P47: 6 | Q47: 6 | R47: 6 | S47: 6 | T47: 6 | U47: 6 | V47: 6 | W47: 6 | X47: 7 | Y47: 7 | Z47: 7 | AA47: 7 | AB47: 7 | AC47: 7 | AD47: 7 | AE47: 7 | AF47: 7 | AG47: 7 | AH47: 7 | AI47: 7 | AJ47: 7 | AK47: 7 | AL47: 7 | AM47: 7 | AN47: 7 | AO47: =CEILING($A$5/AO$11,1) -> 7 | AP47: 7 | AQ47: 8 | AR47: 8 | AS47: 8 | AT47: 8 | AU47: 8 | AV47: 8 | AW47: 8 | AX47: 8 | AY47: 8 | AZ47: 8 | BA47: 8 | BB47: 8 | BC47: 8 | BD47: 8 | BE47: 8 | BF47: 9 | BG47: 9 | BH47: 9 | BI47: 9 | BJ47: 9 | BK47: 9 | BL47: 9 | BM47: 9 | BN47: 9 | BO47: 9 | BP47: 9 | BQ47: 9 | BR47: 9 | BS47: 9 | BT47: 9 | BU47: =CEILING($A$5/BU$11,1) -> 9 | BV47: 9 | BW47: 9 | BX47: 9 | BY47: 9 | BZ47: 9 | CA47: 9 | CB47: 9 | CC47: 9 | CD47: 9 | CE47: 9 | CF47: 9 | CG47: 9 | CH47: 9 | CI47: 9 | CJ47: 9 | CK47: 9 | CL47: 9 | CM47: 9 | CN47: 9 | CO47: 9
A48: 28 | H48: Nano 1 | I48: =CEILING($B$5/I$11,1) -> 7 | J48: 7 | K48: 7 | L48: 7 | M48: 7 | N48: 7 | O48: 7 | P48: 7 | Q48: 7 | R48: 7 | S48: 7 | T48: 7 | U48: 7 | V48: 7 | W48: 7 | X48: 7 | Y48: 7 | Z48: 7 | AA48: 7 | AB48: 7 | AC48: 7 | AD48: 7 | AE48: 7 | AF48: 7 | AG48: 7 | AH48: 8 | AI48: 8 | AJ48: 8 | AK48: 8 | AL48: 8 | AM48: 8 | AN48: 8 | AO48: =CEILING($B$5/AO$11,1) -> 8 | AP48: 8 | AQ48: 8 | AR48: 8 | AS48: 8 | AT48: 8 | AU48: 8 | AV48: 8 | AW48: 8 | AX48: 9 | AY48: 9 | AZ48: 9 | BA48: 9 | BB48: 9 | BC48: 9 | BD48: 9 | BE48: 9 | BF48: 9 | BG48: 9 | BH48: 9 | BI48: 9 | BJ48: 10 | BK48: 10 | BL48: 10 | BM48: 10 | BN48: 10 | BO48: 10 | BP48: 10 | BQ48: 10 | BR48: 10 | BS48: 10 | BT48: 10 | BU48: =CEILING($B$5/BU$11,1) -> 10 | BV48: 10 | BW48: 10 | BX48: 10 | BY48: 10 | BZ48: 10 | CA48: 10 | CB48: 10 | CC48: 10 | CD48: 10 | CE48: 10 | CF48: 10 | CG48: 10 | CH48: 10 | CI48: 10 | CJ48: 10 | CK48: 10 | CL48: 10 | CM48: 10 | CN48: 10 | CO48: 10
A49: 29 | H49: Nano 2 | I49: =CEILING($C$5/I$11,1) -> 7 | J49: 7 | K49: 7 | L49: 7 | M49: 7 | N49: 7 | O49: 7 | P49: 7 | Q49: 7 | R49: 7 | S49: 7 | T49: 7 | U49: 7 | V49: 7 | W49: 7 | X49: 7 | Y49: 7 | Z49: 7 | AA49: 7 | AB49: 7 | AC49: 7 | AD49: 8 | AE49: 8 | AF49: 8 | AG49: 8 | AH49: 8 | AI49: 8 | AJ49: 8 | AK49: 8 | AL49: 8 | AM49: 8 | AN49: 8 | AO49: =CEILING($C$5/AO$11,1) -> 8 | AP49: 8 | AQ49: 8 | AR49: 8 | AS49: 8 | AT49: 8 | AU49: 9 | AV49: 9 | AW49: 9 | AX49: 9 | AY49: 9 | AZ49: 9 | BA49: 9 | BB49: 9 | BC49: 9 | BD49: 9 | BE49: 9 | BF49: 9 | BG49: 10 | BH49: 10 | BI49: 10 | BJ49: 10 | BK49: 10 | BL49: 10 | BM49: 10 | BN49: 10 | BO49: 10 | BP49: 10 | BQ49: 10 | BR49: 10 | BS49: 10 | BT49: 10 | BU49: =CEILING($C$5/BU$11,1) -> 10 | BV49: 10 | BW49: 10 | BX49: 10 | BY49: 10 | BZ49: 10 | CA49: 10 | CB49: 10 | CC49: 10 | CD49: 10 | CE49: 10 | CF49: 10 | CG49: 10 | CH49: 10 | CI49: 10 | CJ49: 10 | CK49: 10 | CL49: 10 | CM49: 10 | CN49: 10 | CO49: 10
A50: 30 | H50: Nano 3 | I50: =CEILING($D$5/I$11,1) -> 7 | J50: 7 | K50: 7 | L50: 7 | M50: 7 | N50: 7 | O50: 7 | P50: 7 | Q50: 7 | R50: 7 | S50: 7 | T50: 7 | U50: 7 | V50: 7 | W50: 7 | X50: 7 | Y50: 7 | Z50: 7 | AA50: 8 | AB50: 8 | AC50: 8 | AD50: 8 | AE50: 8 | AF50: 8 | AG50: 8 | AH50: 8 | AI50: 8 | AJ50: 8 | AK50: 8 | AL50: 8 | AM50: 8 | AN50: 8 | AO50: =CEILING($D$5/AO$11,1) -> 8 | AP50: 8 | AQ50: 9 | AR50: 9 | AS50: 9 | AT50: 9 | AU50: 9 | AV50: 9 | AW50: 9 | AX50: 9 | AY50: 9 | AZ50: 9 | BA50: 9 | BB50: 9 | BC50: 9 | BD50: 10 | BE50: 10 | BF50: 10 | BG50: 10 | BH50: 10 | BI50: 10 | BJ50: 10 | BK50: 10 | BL50: 10 | BM50: 10 | BN50: 10 | BO50: 11 | BP50: 11 | BQ50: 11 | BR50: 11 | BS50: 11 | BT50: 11 | BU50: =CEILING($D$5/BU$11,1) -> 11 | BV50: 11 | BW50: 11 | BX50: 11 | BY50: 11 | BZ50: 11 | CA50: 11 | CB50: 11 | CC50: 11 | CD50: 11 | CE50: 11 | CF50: 11 | CG50: 11 | CH50: 11 | CI50: 11 | CJ50: 11 | CK50: 11 | CL50: 11 | CM50: 11 | CN50: 11 | CO50: 11
A51: 31 | H51: Nano 4 | I51: =CEILING($E$5/I$11,1) -> 8 | J51: 8 | K51: 8 | L51: 8 | M51: 8 | N51: 8 | O51: 8 | P51: 8 | Q51: 8 | R51: 8 | S51: 8 | T51: 8 | U51: 8 | V51: 8 | W51: 8 | X51: 8 | Y51: 8 | Z51: 8 | AA51: 8 | AB51: 8 | AC51: 8 | AD51: 8 | AE51: 8 | AF51: 8 | AG51: 8 | AH51: 8 | AI51: 8 | AJ51: 8 | AK51: 8 | AL51: 8 | AM51: 8 | AN51: 9 | AO51: =CEILING($E$5/AO$11,1) -> 9 | AP51: 9 | AQ51: 9 | AR51: 9 | AS51: 9 | AT51: 9 | AU51: 9 | AV51: 9 | AW51: 9 | AX51: 9 | AY51: 9 | AZ51: 9 | BA51: 10 | BB51: 10 | BC51: 10 | BD51: 10 | BE51: 10 | BF51: 10 | BG51: 10 | BH51: 10 | BI51: 10 | BJ51: 10 | BK51: 10 | BL51: 11 | BM51: 11 | BN51: 11 | BO51: 11 | BP51: 11 | BQ51: 11 | BR51: 11 | BS51: 11 | BT51: 11 | BU51: =CEILING($E$5/BU$11,1) -> 11 | BV51: 11 | BW51: 11 | BX51: 11 | BY51: 11 | BZ51: 11 | CA51: 11 | CB51: 11 | CC51: 11 | CD51: 11 | CE51: 11 | CF51: 11 | CG51: 11 | CH51: 11 | CI51: 11 | CJ51: 11 | CK51: 11 | CL51: 11 | CM51: 11 | CN51: 11 | CO51: 11
A52: 32 | H52: Nano 5 | I52: =CEILING($F$5/I$11,1) -> 8 | J52: 8 | K52: 8 | L52: 8 | M52: 8 | N52: 8 | O52: 8 | P52: 8 | Q52: 8 | R52: 8 | S52: 8 | T52: 8 | U52: 8 | V52: 8 | W52: 8 | X52: 8 | Y52: 8 | Z52: 8 | AA52: 8 | AB52: 8 | AC52: 8 | AD52: 8 | AE52: 8 | AF52: 9 | AG52: 9 | AH52: 9 | AI52: 9 | AJ52: 9 | AK52: 9 | AL52: 9 | AM52: 9 | AN52: 9 | AO52: =CEILING($F$5/AO$11,1) -> 9 | AP52: 9 | AQ52: 9 | AR52: 9 | AS52: 9 | AT52: 9 | AU52: 10 | AV52: 10 | AW52: 10 | AX52: 10 | AY52: 10 | AZ52: 10 | BA52: 10 | BB52: 10 | BC52: 10 | BD52: 10 | BE52: 10 | BF52: 11 | BG52: 11 | BH52: 11 | BI52: 11 | BJ52: 11 | BK52: 11 | BL52: 11 | BM52: 11 | BN52: 11 | BO52: 12 | BP52: 12 | BQ52: 12 | BR52: 12 | BS52: 12 | BT52: 12 | BU52: =CEILING($F$5/BU$11,1) -> 12 | BV52: 12 | BW52: 12 | BX52: 12 | BY52: 12 | BZ52: 12 | CA52: 12 | CB52: 12 | CC52: 12 | CD52: 12 | CE52: 12 | CF52: 12 | CG52: 12 | CH52: 12 | CI52: 12 | CJ52: 12 | CK52: 12 | CL52: 12 | CM52: 12 | CN52: 12 | CO52: 12
A53: 33
A54: 34 | G54: Carv and Cycler | H54: Default | I54: =CEILING($A$5/I$12,1) -> 7 | J54: 7 | K54: 7 | L54: 7 | M54: 7 | N54: 7 | O54: 7 | P54: 7 | Q54: 7 | R54: 7 | S54: 8 | T54: 8 | U54: 8 | V54: 8 | W54: 8 | X54: 8 | Y54: 8 | Z54: 8 | AA54: 8 | AB54: 8 | AC54: 8 | AD54: 8 | AE54: 8 | AF54: 8 | AG54: 8 | AH54: 8 | AI54: 8 | AJ54: 8 | AK54: 8 | AL54: 8 | AM54: 8 | AN54: 8 | AO54: =CEILING($A$5/AO$12,1) -> 8 | AP54: 8 | AQ54: 8 | AR54: 8 | AS54: 8 | AT54: 8 | AU54: 8 | AV54: 8 | AW54: 8 | AX54: 8 | AY54: 8 | AZ54: 8 | BA54: 8 | BB54: 8 | BC54: 8 | BD54: 8 | BE54: 8 | BF54: 8 | BG54: 8 | BH54: 8 | BI54: 8 | BJ54: 8 | BK54: 8 | BL54: 8 | BM54: 8 | BN54: 8 | BO54: 8 | BP54: 8 | BQ54: 8 | BR54: 8 | BS54: 8 | BT54: 8 | BU54: =CEILING($A$5/BU$12,1) -> 8 | BV54: 8 | BW54: 8 | BX54: 8 | BY54: 8 | BZ54: 8 | CA54: 8 | CB54: 8 | CC54: 8 | CD54: 8 | CE54: 8 | CF54: 8 | CG54: 8 | CH54: 8 | CI54: 8 | CJ54: 8 | CK54: 8 | CL54: 8 | CM54: 8 | CN54: 8 | CO54: 8
A55: 35 | H55: Nano 1 | I55: =CEILING($B$5/I$12,1) -> 8 | J55: 8 | K55: 8 | L55: 8 | M55: 8 | N55: 8 | O55: 8 | P55: 8 | Q55: 8 | R55: 8 | S55: 8 | T55: 8 | U55: 8 | V55: 8 | W55: 8 | X55: 8 | Y55: 8 | Z55: 8 | AA55: 8 | AB55: 8 | AC55: 8 | AD55: 8 | AE55: 8 | AF55: 8 | AG55: 8 | AH55: 8 | AI55: 8 | AJ55: 8 | AK55: 8 | AL55: 8 | AM55: 8 | AN55: 8 | AO55: =CEILING($B$5/AO$12,1) -> 8 | AP55: 8 | AQ55: 9 | AR55: 9 | AS55: 9 | AT55: 9 | AU55: 9 | AV55: 9 | AW55: 9 | AX55: 9 | AY55: 9 | AZ55: 9 | BA55: 9 | BB55: 9 | BC55: 9 | BD55: 9 | BE55: 9 | BF55: 9 | BG55: 9 | BH55: 9 | BI55: 9 | BJ55: 9 | BK55: 9 | BL55: 9 | BM55: 9 | BN55: 9 | BO55: 9 | BP55: 9 | BQ55: 9 | BR55: 9 | BS55: 9 | BT55: 9 | BU55: =CEILING($B$5/BU$12,1) -> 9 | BV55: 9 | BW55: 9 | BX55: 9 | BY55: 9 | BZ55: 9 | CA55: 9 | CB55: 9 | CC55: 9 | CD55: 9 | CE55: 9 | CF55: 9 | CG55: 9 | CH55: 9 | CI55: 9 | CJ55: 9 | CK55: 9 | CL55: 9 | CM55: 9 | CN55: 9 | CO55: 9
A56: 36 | H56: Nano 2 | I56: =CEILING($C$5/I$12,1) -> 8 | J56: 8 | K56: 8 | L56: 8 | M56: 8 | N56: 8 | O56: 8 | P56: 8 | Q56: 8 | R56: 8 | S56: 8 | T56: 8 | U56: 8 | V56: 8 | W56: 8 | X56: 8 | Y56: 8 | Z56: 8 | AA56: 8 | AB56: 8 | AC56: 8 | AD56: 8 | AE56: 9 | AF56: 9 | AG56: 9 | AH56: 9 | AI56: 9 | AJ56: 9 | AK56: 9 | AL56: 9 | AM56: 9 | AN56: 9 | AO56: =CEILING($C$5/AO$12,1) -> 9 | AP56: 9 | AQ56: 9 | AR56: 9 | AS56: 9 | AT56: 9 | AU56: 9 | AV56: 9 | AW56: 9 | AX56: 9 | AY56: 9 | AZ56: 9 | BA56: 9 | BB56: 9 | BC56: 9 | BD56: 9 | BE56: 9 | BF56: 9 | BG56: 9 | BH56: 9 | BI56: 9 | BJ56: 9 | BK56: 9 | BL56: 9 | BM56: 9 | BN56: 9 | BO56: 9 | BP56: 9 | BQ56: 9 | BR56: 9 | BS56: 9 | BT56: 9 | BU56: =CEILING($C$5/BU$12,1) -> 9 | BV56: 9 | BW56: 9 | BX56: 9 | BY56: 9 | BZ56: 9 | CA56: 9 | CB56: 9 | CC56: 9 | CD56: 9 | CE56: 9 | CF56: 9 | CG56: 9 | CH56: 9 | CI56: 9 | CJ56: 9 | CK56: 9 | CL56: 9 | CM56: 9 | CN56: 9 | CO56: 9
A57: 37 | H57: Nano 3 | I57: =CEILING($D$5/I$12,1) -> 8 | J57: 8 | K57: 8 | L57: 8 | M57: 8 | N57: 8 | O57: 8 | P57: 8 | Q57: 8 | R57: 8 | S57: 9 | T57: 9 | U57: 9 | V57: 9 | W57: 9 | X57: 9 | Y57: 9 | Z57: 9 | AA57: 9 | AB57: 9 | AC57: 9 | AD57: 9 | AE57: 9 | AF57: 9 | AG57: 9 | AH57: 9 | AI57: 9 | AJ57: 9 | AK57: 9 | AL57: 9 | AM57: 9 | AN57: 9 | AO57: =CEILING($D$5/AO$12,1) -> 9 | AP57: 9 | AQ57: 9 | AR57: 9 | AS57: 9 | AT57: 9 | AU57: 9 | AV57: 9 | AW57: 9 | AX57: 9 | AY57: 9 | AZ57: 9 | BA57: 9 | BB57: 9 | BC57: 9 | BD57: 9 | BE57: 9 | BF57: 9 | BG57: 9 | BH57: 9 | BI57: 9 | BJ57: 9 | BK57: 9 | BL57: 9 | BM57: 9 | BN57: 9 | BO57: 10 | BP57: 10 | BQ57: 10 | BR57: 10 | BS57: 10 | BT57: 10 | BU57: =CEILING($D$5/BU$12,1) -> 10 | BV57: 10 | BW57: 10 | BX57: 10 | BY57: 10 | BZ57: 10 | CA57: 10 | CB57: 10 | CC57: 10 | CD57: 10 | CE57: 10 | CF57: 10 | CG57: 10 | CH57: 10 | CI57: 10 | CJ57: 10 | CK57: 10 | CL57: 10 | CM57: 10 | CN57: 10 | CO57: 10
A58: 38 | H58: Nano 4 | I58: =CEILING($E$5/I$12,1) -> 9 | J58: 9 | K58: 9 | L58: 9 | M58: 9 | N58: 9 | O58: 9 | P58: 9 | Q58: 9 | R58: 9 | S58: 9 | T58: 9 | U58: 9 | V58: 9 | W58: 9 | X58: 9 | Y58: 9 | Z58: 9 | AA58: 9 | AB58: 9 | AC58: 9 | AD58: 9 | AE58: 9 | AF58: 9 | AG58: 9 | AH58: 9 | AI58: 9 | AJ58: 9 | AK58: 9 | AL58: 9 | AM58: 9 | AN58: 9 | AO58: =CEILING($E$5/AO$12,1) -> 9 | AP58: 9 | AQ58: 9 | AR58: 9 | AS58: 9 | AT58: 9 | AU58: 9 | AV58: 9 | AW58: 9 | AX58: 9 | AY58: 9 | AZ58: 9 | BA58: 9 | BB58: 9 | BC58: 9 | BD58: 10 | BE58: 10 | BF58: 10 | BG58: 10 | BH58: 10 | BI58: 10 | BJ58: 10 | BK58: 10 | BL58: 10 | BM58: 10 | BN58: 10 | BO58: 10 | BP58: 10 | BQ58: 10 | BR58: 10 | BS58: 10 | BT58: 10 | BU58: =CEILING($E$5/BU$12,1) -> 10 | BV58: 10 | BW58: 10 | BX58: 10 | BY58: 10 | BZ58: 10 | CA58: 10 | CB58: 10 | CC58: 10 | CD58: 10 | CE58: 10 | CF58: 10 | CG58: 10 | CH58: 10 | CI58: 10 | CJ58: 10 | CK58: 10 | CL58: 10 | CM58: 10 | CN58: 10 | CO58: 10
A59: 39 | H59: Nano 5 | I59: =CEILING($F$5/I$12,1) -> 9 | J59: 9 | K59: 9 | L59: 9 | M59: 9 | N59: 9 | O59: 9 | P59: 9 | Q59: 9 | R59: 9 | S59: 9 | T59: 9 | U59: 9 | V59: 9 | W59: 9 | X59: 9 | Y59: 9 | Z59: 9 | AA59: 9 | AB59: 9 | AC59: 9 | AD59: 9 | AE59: 10 | AF59: 10 | AG59: 10 | AH59: 10 | AI59: 10 | AJ59: 10 | AK59: 10 | AL59: 10 | AM59: 10 | AN59: 10 | AO59: =CEILING($F$5/AO$12,1) -> 10 | AP59: 10 | AQ59: 10 | AR59: 10 | AS59: 10 | AT59: 10 | AU59: 10 | AV59: 10 | AW59: 10 | AX59: 10 | AY59: 10 | AZ59: 10 | BA59: 10 | BB59: 10 | BC59: 10 | BD59: 10 | BE59: 10 | BF59: 10 | BG59: 10 | BH59: 10 | BI59: 10 | BJ59: 10 | BK59: 10 | BL59: 10 | BM59: 10 | BN59: 10 | BO59: 10 | BP59: 10 | BQ59: 10 | BR59: 10 | BS59: 10 | BT59: 10 | BU59: =CEILING($F$5/BU$12,1) -> 10 | BV59: 10 | BW59: 10 | BX59: 10 | BY59: 10 | BZ59: 10 | CA59: 10 | CB59: 10 | CC59: 10 | CD59: 10 | CE59: 10 | CF59: 10 | CG59: 10 | CH59: 10 | CI59: 10 | CJ59: 10 | CK59: 10 | CL59: 10 | CM59: 10 | CN59: 10 | CO59: 10
A60: 40
A61: 41 | G61: TAR, H-V45, GR-22, TRAC 5, Solstice | H61: Default | I61: =CEILING($A$5/I$13,1) -> 7 | J61: 7 | K61: 7 | L61: 7 | M61: 7 | N61: 7 | O61: 7 | P61: 7 | Q61: 7 | R61: 7 | S61: 7 | T61: 7 | U61: 7 | V61: 7 | W61: 7 | X61: 8 | Y61: 8 | Z61: 8 | AA61: 8 | AB61: 8 | AC61: 8 | AD61: 8 | AE61: 8 | AF61: 8 | AG61: 8 | AH61: 8 | AI61: 8 | AJ61: 8 | AK61: 8 | AL61: 8 | AM61: 8 | AN61: 8 | AO61: =CEILING($A$5/AO$13,1) -> 8 | AP61: 8 | AQ61: 8 | AR61: 8 | AS61: 8 | AT61: 8 | AU61: 8 | AV61: 8 | AW61: 8 | AX61: 9 | AY61: 9 | AZ61: 9 | BA61: 9 | BB61: 9 | BC61: 9 | BD61: 9 | BE61: 9 | BF61: 9 | BG61: 9 | BH61: 9 | BI61: 9 | BJ61: 9 | BK61: 9 | BL61: 9 | BM61: 9 | BN61: 9 | BO61: 9 | BP61: 9 | BQ61: 9 | BR61: 9 | BS61: 9 | BT61: 9 | BU61: =CEILING($A$5/BU$13,1) -> 9 | BV61: 9 | BW61: 9 | BX61: 9 | BY61: 9 | BZ61: 9 | CA61: 9 | CB61: 9 | CC61: 9 | CD61: 9 | CE61: 9 | CF61: 9 | CG61: 9 | CH61: 9 | CI61: 9 | CJ61: 9 | CK61: 9 | CL61: 9 | CM61: 9 | CN61: 9 | CO61: 9
A62: 42 | H62: Nano 1 | I62: =CEILING($B$5/I$13,1) -> 8 | J62: 8 | K62: 8 | L62: 8 | M62: 8 | N62: 8 | O62: 8 | P62: 8 | Q62: 8 | R62: 8 | S62: 8 | T62: 8 | U62: 8 | V62: 8 | W62: 8 | X62: 8 | Y62: 8 | Z62: 8 | AA62: 8 | AB62: 8 | AC62: 8 | AD62: 8 | AE62: 8 | AF62: 8 | AG62: 8 | AH62: 8 | AI62: 9 | AJ62: 9 | AK62: 9 | AL62: 9 | AM62: 9 | AN62: 9 | AO62: =CEILING($B$5/AO$13,1) -> 9 | AP62: 9 | AQ62: 9 | AR62: 9 | AS62: 9 | AT62: 9 | AU62: 9 | AV62: 9 | AW62: 9 | AX62: 9 | AY62: 9 | AZ62: 9 | BA62: 9 | BB62: 9 | BC62: 9 | BD62: 9 | BE62: 10 | BF62: 10 | BG62: 10 | BH62: 10 | BI62: 10 | BJ62: 10 | BK62: 10 | BL62: 10 | BM62: 10 | BN62: 10 | BO62: 10 | BP62: 10 | BQ62: 10 | BR62: 10 | BS62: 10 | BT62: 10 | BU62: =CEILING($B$5/BU$13,1) -> 10 | BV62: 10 | BW62: 10 | BX62: 10 | BY62: 10 | BZ62: 10 | CA62: 10 | CB62: 10 | CC62: 10 | CD62: 10 | CE62: 10 | CF62: 10 | CG62: 10 | CH62: 10 | CI62: 10 | CJ62: 10 | CK62: 10 | CL62: 10 | CM62: 10 | CN62: 10 | CO62: 10
A63: 43 | H63: Nano 2 | I63: =CEILING($C$5/I$13,1) -> 8 | J63: 8 | K63: 8 | L63: 8 | M63: 8 | N63: 8 | O63: 8 | P63: 8 | Q63: 8 | R63: 8 | S63: 8 | T63: 8 | U63: 8 | V63: 8 | W63: 8 | X63: 8 | Y63: 8 | Z63: 8 | AA63: 8 | AB63: 8 | AC63: 9 | AD63: 9 | AE63: 9 | AF63: 9 | AG63: 9 | AH63: 9 | AI63: 9 | AJ63: 9 | AK63: 9 | AL63: 9 | AM63: 9 | AN63: 9 | AO63: =CEILING($C$5/AO$13,1) -> 9 | AP63: 9 | AQ63: 9 | AR63: 9 | AS63: 9 | AT63: 9 | AU63: 9 | AV63: 9 | AW63: 9 | AX63: 9 | AY63: 9 | AZ63: 10 | BA63: 10 | BB63: 10 | BC63: 10 | BD63: 10 | BE63: 10 | BF63: 10 | BG63: 10 | BH63: 10 | BI63: 10 | BJ63: 10 | BK63: 10 | BL63: 10 | BM63: 10 | BN63: 10 | BO63: 10 | BP63: 10 | BQ63: 10 | BR63: 10 | BS63: 10 | BT63: 10 | BU63: =CEILING($C$5/BU$13,1) -> 10 | BV63: 10 | BW63: 10 | BX63: 10 | BY63: 10 | BZ63: 10 | CA63: 10 | CB63: 10 | CC63: 10 | CD63: 10 | CE63: 10 | CF63: 10 | CG63: 10 | CH63: 10 | CI63: 10 | CJ63: 10 | CK63: 10 | CL63: 10 | CM63: 10 | CN63: 10 | CO63: 10
A64: 44 | H64: Nano 3 | I64: =CEILING($D$5/I$13,1) -> 8 | J64: 8 | K64: 8 | L64: 8 | M64: 8 | N64: 8 | O64: 8 | P64: 8 | Q64: 8 | R64: 8 | S64: 8 | T64: 8 | U64: 8 | V64: 8 | W64: 8 | X64: 9 | Y64: 9 | Z64: 9 | AA64: 9 | AB64: 9 | AC64: 9 | AD64: 9 | AE64: 9 | AF64: 9 | AG64: 9 | AH64: 9 | AI64: 9 | AJ64: 9 | AK64: 9 | AL64: 9 | AM64: 9 | AN64: 9 | AO64: =CEILING($D$5/AO$13,1) -> 9 | AP64: 9 | AQ64: 9 | AR64: 9 | AS64: 9 | AT64: 9 | AU64: 10 | AV64: 10 | AW64: 10 | AX64: 10 | AY64: 10 | AZ64: 10 | BA64: 10 | BB64: 10 | BC64: 10 | BD64: 10 | BE64: 10 | BF64: 10 | BG64: 10 | BH64: 10 | BI64: 10 | BJ64: 10 | BK64: 10 | BL64: 10 | BM64: 11 | BN64: 11 | BO64: 11 | BP64: 11 | BQ64: 11 | BR64: 11 | BS64: 11 | BT64: 11 | BU64: =CEILING($D$5/BU$13,1) -> 11 | BV64: 11 | BW64: 11 | BX64: 11 | BY64: 11 | BZ64: 11 | CA64: 11 | CB64: 11 | CC64: 11 | CD64: 11 | CE64: 11 | CF64: 11 | CG64: 11 | CH64: 11 | CI64: 11 | CJ64: 11 | CK64: 11 | CL64: 11 | CM64: 11 | CN64: 11 | CO64: 11
A65: 45 | H65: Nano 4 | I65: =CEILING($E$5/I$13,1) -> 9 | J65: 9 | K65: 9 | L65: 9 | M65: 9 | N65: 9 | O65: 9 | P65: 9 | Q65: 9 | R65: 9 | S65: 9 | T65: 9 | U65: 9 | V65: 9 | W65: 9 | X65: 9 | Y65: 9 | Z65: 9 | AA65: 9 | AB65: 9 | AC65: 9 | AD65: 9 | AE65: 9 | AF65: 9 | AG65: 9 | AH65: 9 | AI65: 9 | AJ65: 9 | AK65: 9 | AL65: 9 | AM65: 9 | AN65: 9 | AO65: =CEILING($E$5/AO$13,1) -> 10 | AP65: 10 | AQ65: 10 | AR65: 10 | AS65: 10 | AT65: 10 | AU65: 10 | AV65: 10 | AW65: 10 | AX65: 10 | AY65: 10 | AZ65: 10 | BA65: 10 | BB65: 10 | BC65: 10 | BD65: 10 | BE65: 10 | BF65: 10 | BG65: 10 | BH65: 11 | BI65: 11 | BJ65: 11 | BK65: 11 | BL65: 11 | BM65: 11 | BN65: 11 | BO65: 11 | BP65: 11 | BQ65: 11 | BR65: 11 | BS65: 11 | BT65: 11 | BU65: =CEILING($E$5/BU$13,1) -> 11 | BV65: 11 | BW65: 11 | BX65: 11 | BY65: 11 | BZ65: 11 | CA65: 11 | CB65: 11 | CC65: 11 | CD65: 11 | CE65: 11 | CF65: 11 | CG65: 11 | CH65: 11 | CI65: 11 | CJ65: 11 | CK65: 11 | CL65: 11 | CM65: 11 | CN65: 11 | CO65: 11
A66: 46 | H66: Nano 5 | I66: =CEILING($F$5/I$13,1) -> 9 | J66: 9 | K66: 9 | L66: 9 | M66: 9 | N66: 9 | O66: 9 | P66: 9 | Q66: 9 | R66: 9 | S66: 9 | T66: 9 | U66: 9 | V66: 9 | W66: 9 | X66: 9 | Y66: 9 | Z66: 9 | AA66: 9 | AB66: 9 | AC66: 10 | AD66: 10 | AE66: 10 | AF66: 10 | AG66: 10 | AH66: 10 | AI66: 10 | AJ66: 10 | AK66: 10 | AL66: 10 | AM66: 10 | AN66: 10 | AO66: =CEILING($F$5/AO$13,1) -> 10 | AP66: 10 | AQ66: 10 | AR66: 10 | AS66: 10 | AT66: 10 | AU66: 10 | AV66: 10 | AW66: 10 | AX66: 11 | AY66: 11 | AZ66: 11 | BA66: 11 | BB66: 11 | BC66: 11 | BD66: 11 | BE66: 11 | BF66: 11 | BG66: 11 | BH66: 11 | BI66: 11 | BJ66: 11 | BK66: 11 | BL66: 11 | BM66: 11 | BN66: 12 | BO66: 12 | BP66: 12 | BQ66: 12 | BR66: 12 | BS66: 12 | BT66: 12 | BU66: =CEILING($F$5/BU$13,1) -> 12 | BV66: 12 | BW66: 12 | BX66: 12 | BY66: 12 | BZ66: 12 | CA66: 12 | CB66: 12 | CC66: 12 | CD66: 12 | CE66: 12 | CF66: 12 | CG66: 12 | CH66: 12 | CI66: 12 | CJ66: 12 | CK66: 12 | CL66: 12 | CM66: 12 | CN66: 12 | CO66: 12
A67: 47
A68: 48 | G68: GD-7F and Serpent | H68: Default | I68: =CEILING($A$5/I$15,1) -> 7 | J68: 7 | K68: 7 | L68: 7 | M68: 7 | N68: 7 | O68: 7 | P68: 7 | Q68: 7 | R68: 7 | S68: 7 | T68: 7 | U68: 7 | V68: 7 | W68: 7 | X68: 8 | Y68: 8 | Z68: 8 | AA68: 8 | AB68: 8 | AC68: 8 | AD68: 8 | AE68: 8 | AF68: 8 | AG68: 8 | AH68: 8 | AI68: 8 | AJ68: 8 | AK68: 8 | AL68: 8 | AM68: 8 | AN68: 8 | AO68: =CEILING($A$5/AO$15,1) -> 8 | AP68: 9 | AQ68: 9 | AR68: 9 | AS68: 9 | AT68: 9 | AU68: 9 | AV68: 9 | AW68: 9 | AX68: 9 | AY68: 9 | AZ68: 9 | BA68: 9 | BB68: 9 | BC68: 9 | BD68: 9 | BE68: 10 | BF68: 10 | BG68: 10 | BH68: 10 | BI68: 10 | BJ68: 10 | BK68: 10 | BL68: 10 | BM68: 10 | BN68: 10 | BO68: 10 | BP68: 10 | BQ68: 10 | BR68: 10 | BS68: 10 | BT68: 10 | BU68: =CEILING($A$5/BU$15,1) -> 10 | BV68: 10 | BW68: 10 | BX68: 10 | BY68: 10 | BZ68: 10 | CA68: 10 | CB68: 10 | CC68: 10 | CD68: 10 | CE68: 10 | CF68: 10 | CG68: 10 | CH68: 10 | CI68: 10 | CJ68: 10 | CK68: 10 | CL68: 10 | CM68: 10 | CN68: 10 | CO68: 10
A69: 49 | H69: Nano 1 | I69: =CEILING($B$5/I$15,1) -> 8 | J69: 8 | K69: 8 | L69: 8 | M69: 8 | N69: 8 | O69: 8 | P69: 8 | Q69: 8 | R69: 8 | S69: 8 | T69: 8 | U69: 8 | V69: 8 | W69: 8 | X69: 8 | Y69: 8 | Z69: 8 | AA69: 8 | AB69: 8 | AC69: 8 | AD69: 8 | AE69: 8 | AF69: 9 | AG69: 9 | AH69: 9 | AI69: 9 | AJ69: 9 | AK69: 9 | AL69: 9 | AM69: 9 | AN69: 9 | AO69: =CEILING($B$5/AO$15,1) -> 9 | AP69: 9 | AQ69: 9 | AR69: 9 | AS69: 9 | AT69: 9 | AU69: 10 | AV69: 10 | AW69: 10 | AX69: 10 | AY69: 10 | AZ69: 10 | BA69: 10 | BB69: 10 | BC69: 10 | BD69: 10 | BE69: 10 | BF69: 10 | BG69: 10 | BH69: 11 | BI69: 11 | BJ69: 11 | BK69: 11 | BL69: 11 | BM69: 11 | BN69: 11 | BO69: 11 | BP69: 11 | BQ69: 11 | BR69: 11 | BS69: 11 | BT69: 11 | BU69: =CEILING($B$5/BU$15,1) -> 11 | BV69: 11 | BW69: 11 | BX69: 11 | BY69: 11 | BZ69: 11 | CA69: 11 | CB69: 11 | CC69: 11 | CD69: 11 | CE69: 11 | CF69: 11 | CG69: 11 | CH69: 11 | CI69: 11 | CJ69: 11 | CK69: 11 | CL69: 11 | CM69: 11 | CN69: 11 | CO69: 11
A70: 50 | H70: Nano 2 | I70: =CEILING($C$5/I$15,1) -> 8 | J70: 8 | K70: 8 | L70: 8 | M70: 8 | N70: 8 | O70: 8 | P70: 8 | Q70: 8 | R70: 8 | S70: 8 | T70: 8 | U70: 8 | V70: 8 | W70: 8 | X70: 8 | Y70: 8 | Z70: 8 | AA70: 8 | AB70: 9 | AC70: 9 | AD70: 9 | AE70: 9 | AF70: 9 | AG70: 9 | AH70: 9 | AI70: 9 | AJ70: 9 | AK70: 9 | AL70: 9 | AM70: 9 | AN70: 9 | AO70: =CEILING($C$5/AO$15,1) -> 9 | AP70: 9 | AQ70: 9 | AR70: 10 | AS70: 10 | AT70: 10 | AU70: 10 | AV70: 10 | AW70: 10 | AX70: 10 | AY70: 10 | AZ70: 10 | BA70: 10 | BB70: 10 | BC70: 10 | BD70: 10 | BE70: 11 | BF70: 11 | BG70: 11 | BH70: 11 | BI70: 11 | BJ70: 11 | BK70: 11 | BL70: 11 | BM70: 11 | BN70: 11 | BO70: 12 | BP70: 12 | BQ70: 12 | BR70: 12 | BS70: 12 | BT70: 12 | BU70: =CEILING($C$5/BU$15,1) -> 12 | BV70: 12 | BW70: 12 | BX70: 12 | BY70: 12 | BZ70: 12 | CA70: 12 | CB70: 12 | CC70: 12 | CD70: 12 | CE70: 12 | CF70: 12 | CG70: 12 | CH70: 12 | CI70: 12 | CJ70: 12 | CK70: 12 | CL70: 12 | CM70: 12 | CN70: 12 | CO70: 12
A71: 51 | H71: Nano 3 | I71: =CEILING($D$5/I$15,1) -> 8 | J71: 8 | K71: 8 | L71: 8 | M71: 8 | N71: 8 | O71: 8 | P71: 8 | Q71: 8 | R71: 8 | S71: 8 | T71: 8 | U71: 8 | V71: 8 | W71: 8 | X71: 9 | Y71: 9 | Z71: 9 | AA71: 9 | AB71: 9 | AC71: 9 | AD71: 9 | AE71: 9 | AF71: 9 | AG71: 9 | AH71: 9 | AI71: 9 | AJ71: 9 | AK71: 9 | AL71: 9 | AM71: 9 | AN71: 10 | AO71: =CEILING($D$5/AO$15,1) -> 10 | AP71: 10 | AQ71: 10 | AR71: 10 | AS71: 10 | AT71: 10 | AU71: 10 | AV71: 10 | AW71: 10 | AX71: 10 | AY71: 10 | AZ71: 10 | BA71: 10 | BB71: 11 | BC71: 11 | BD71: 11 | BE71: 11 | BF71: 11 | BG71: 11 | BH71: 11 | BI71: 11 | BJ71: 11 | BK71: 11 | BL71: 12 | BM71: 12 | BN71: 12 | BO71: 12 | BP71: 12 | BQ71: 12 | BR71: 12 | BS71: 12 | BT71: 12 | BU71: =CEILING($D$5/BU$15,1) -> 12 | BV71: 12 | BW71: 12 | BX71: 12 | BY71: 12 | BZ71: 12 | CA71: 12 | CB71: 12 | CC71: 12 | CD71: 12 | CE71: 12 | CF71: 12 | CG71: 12 | CH71: 12 | CI71: 12 | CJ71: 12 | CK71: 12 | CL71: 12 | CM71: 12 | CN71: 12 | CO71: 12
A72: 52 | H72: Nano 4 | I72: =CEILING($E$5/I$15,1) -> 9 | J72: 9 | K72: 9 | L72: 9 | M72: 9 | N72: 9 | O72: 9 | P72: 9 | Q72: 9 | R72: 9 | S72: 9 | T72: 9 | U72: 9 | V72: 9 | W72: 9 | X72: 9 | Y72: 9 | Z72: 9 | AA72: 9 | AB72: 9 | AC72: 9 | AD72: 9 | AE72: 9 | AF72: 9 | AG72: 9 | AH72: 9 | AI72: 9 | AJ72: 10 | AK72: 10 | AL72: 10 | AM72: 10 | AN72: 10 | AO72: =CEILING($E$5/AO$15,1) -> 10 | AP72: 10 | AQ72: 10 | AR72: 10 | AS72: 10 | AT72: 10 | AU72: 10 | AV72: 10 | AW72: 10 | AX72: 11 | AY72: 11 | AZ72: 11 | BA72: 11 | BB72: 11 | BC72: 11 | BD72: 11 | BE72: 11 | BF72: 11 | BG72: 11 | BH72: 11 | BI72: 12 | BJ72: 12 | BK72: 12 | BL72: 12 | BM72: 12 | BN72: 12 | BO72: 12 | BP72: 12 | BQ72: 12 | BR72: 12 | BS72: 12 | BT72: 12 | BU72: =CEILING($E$5/BU$15,1) -> 12 | BV72: 12 | BW72: 12 | BX72: 12 | BY72: 12 | BZ72: 12 | CA72: 12 | CB72: 12 | CC72: 12 | CD72: 12 | CE72: 12 | CF72: 12 | CG72: 12 | CH72: 12 | CI72: 12 | CJ72: 12 | CK72: 12 | CL72: 12 | CM72: 12 | CN72: 12 | CO72: 12
A73: 53 | H73: Nano 5 | I73: =CEILING($F$5/I$15,1) -> 9 | J73: 9 | K73: 9 | L73: 9 | M73: 9 | N73: 9 | O73: 9 | P73: 9 | Q73: 9 | R73: 9 | S73: 9 | T73: 9 | U73: 9 | V73: 9 | W73: 9 | X73: 9 | Y73: 9 | Z73: 9 | AA73: 9 | AB73: 10 | AC73: 10 | AD73: 10 | AE73: 10 | AF73: 10 | AG73: 10 | AH73: 10 | AI73: 10 | AJ73: 10 | AK73: 10 | AL73: 10 | AM73: 10 | AN73: 10 | AO73: =CEILING($F$5/AO$15,1) -> 10 | AP73: 11 | AQ73: 11 | AR73: 11 | AS73: 11 | AT73: 11 | AU73: 11 | AV73: 11 | AW73: 11 | AX73: 11 | AY73: 11 | AZ73: 11 | BA73: 11 | BB73: 12 | BC73: 12 | BD73: 12 | BE73: 12 | BF73: 12 | BG73: 12 | BH73: 12 | BI73: 12 | BJ73: 12 | BK73: 12 | BL73: 13 | BM73: 13 | BN73: 13 | BO73: 13 | BP73: 13 | BQ73: 13 | BR73: 13 | BS73: 13 | BT73: 13 | BU73: =CEILING($F$5/BU$15,1) -> 13 | BV73: 13 | BW73: 13 | BX73: 13 | BY73: 13 | BZ73: 13 | CA73: 13 | CB73: 13 | CC73: 13 | CD73: 13 | CE73: 13 | CF73: 13 | CG73: 13 | CH73: 13 | CI73: 13 | CJ73: 13 | CK73: 13 | CL73: 13 | CM73: 13 | CN73: 13 | CO73: 13
A74: 54
A75: 55 | G75: 2nd gen SMGs | H75: Default | I75: =CEILING($A$5/I$17,1) -> 8 | J75: 8 | K75: 8 | L75: 8 | M75: 8 | N75: 8 | O75: 8 | P75: 8 | Q75: 8 | R75: 8 | S75: 8 | T75: 8 | U75: 9 | V75: 9 | W75: 9 | X75: 9 | Y75: 9 | Z75: 9 | AA75: 9 | AB75: 9 | AC75: 9 | AD75: 9 | AE75: 10 | AF75: 10 | AG75: 10 | AH75: 10 | AI75: 10 | AJ75: 10 | AK75: 10 | AL75: 10 | AM75: 11 | AN75: 11 | AO75: =CEILING($A$5/AO$17,1) -> 11 | AP75: 11 | AQ75: 11 | AR75: 11 | AS75: 12 | AT75: 12 | AU75: 12 | AV75: 12 | AW75: 12 | AX75: 12 | AY75: 12 | AZ75: 12 | BA75: 12 | BB75: 12 | BC75: 12 | BD75: 12 | BE75: 12 | BF75: 12 | BG75: 12 | BH75: 12 | BI75: 12 | BJ75: 12 | BK75: 12 | BL75: 12 | BM75: 12 | BN75: 12 | BO75: 12 | BP75: 12 | BQ75: 12 | BR75: 12 | BS75: 12 | BT75: 12 | BU75: =CEILING($A$5/BU$17,1) -> 12 | BV75: 12 | BW75: 12 | BX75: 12 | BY75: 12 | BZ75: 12 | CA75: 12 | CB75: 12 | CC75: 12 | CD75: 12 | CE75: 12 | CF75: 12 | CG75: 12 | CH75: 12 | CI75: 12 | CJ75: 12 | CK75: 12 | CL75: 12 | CM75: 12 | CN75: 12 | CO75: 12
A76: 56 | H76: Nano 1 | I76: =CEILING($B$5/I$17,1) -> 9 | J76: 9 | K76: 9 | L76: 9 | M76: 9 | N76: 9 | O76: 9 | P76: 9 | Q76: 9 | R76: 9 | S76: 9 | T76: 9 | U76: 9 | V76: 9 | W76: 9 | X76: 10 | Y76: 10 | Z76: 10 | AA76: 10 | AB76: 10 | AC76: 10 | AD76: 10 | AE76: 10 | AF76: 10 | AG76: 11 | AH76: 11 | AI76: 11 | AJ76: 11 | AK76: 11 | AL76: 11 | AM76: 11 | AN76: 12 | AO76: =CEILING($B$5/AO$17,1) -> 12 | AP76: 12 | AQ76: 12 | AR76: 12 | AS76: 12 | AT76: 13 | AU76: 13 | AV76: 13 | AW76: 13 | AX76: 13 | AY76: 13 | AZ76: 13 | BA76: 13 | BB76: 13 | BC76: 13 | BD76: 13 | BE76: 13 | BF76: 13 | BG76: 13 | BH76: 13 | BI76: 13 | BJ76: 13 | BK76: 13 | BL76: 13 | BM76: 13 | BN76: 13 | BO76: 13 | BP76: 13 | BQ76: 13 | BR76: 13 | BS76: 13 | BT76: 13 | BU76: =CEILING($B$5/BU$17,1) -> 13 | BV76: 13 | BW76: 13 | BX76: 13 | BY76: 13 | BZ76: 13 | CA76: 13 | CB76: 13 | CC76: 13 | CD76: 13 | CE76: 13 | CF76: 13 | CG76: 13 | CH76: 13 | CI76: 13 | CJ76: 13 | CK76: 13 | CL76: 13 | CM76: 13 | CN76: 13 | CO76: 13
A77: 57 | H77: Nano 2 | I77: =CEILING($C$5/I$17,1) -> 9 | J77: 9 | K77: 9 | L77: 9 | M77: 9 | N77: 9 | O77: 9 | P77: 9 | Q77: 9 | R77: 9 | S77: 9 | T77: 9 | U77: 9 | V77: 10 | W77: 10 | X77: 10 | Y77: 10 | Z77: 10 | AA77: 10 | AB77: 10 | AC77: 10 | AD77: 10 | AE77: 11 | AF77: 11 | AG77: 11 | AH77: 11 | AI77: 11 | AJ77: 11 | AK77: 11 | AL77: 12 | AM77: 12 | AN77: 12 | AO77: =CEILING($C$5/AO$17,1) -> 12 | AP77: 12 | AQ77: 12 | AR77: 13 | AS77: 13 | AT77: 13 | AU77: 13 | AV77: 13 | AW77: 14 | AX77: 14 | AY77: 14 | AZ77: 14 | BA77: 14 | BB77: 14 | BC77: 14 | BD77: 14 | BE77: 14 | BF77: 14 | BG77: 14 | BH77: 14 | BI77: 14 | BJ77: 14 | BK77: 14 | BL77: 14 | BM77: 14 | BN77: 14 | BO77: 14 | BP77: 14 | BQ77: 14 | BR77: 14 | BS77: 14 | BT77: 14 | BU77: =CEILING($C$5/BU$17,1) -> 14 | BV77: 14 | BW77: 14 | BX77: 14 | BY77: 14 | BZ77: 14 | CA77: 14 | CB77: 14 | CC77: 14 | CD77: 14 | CE77: 14 | CF77: 14 | CG77: 14 | CH77: 14 | CI77: 14 | CJ77: 14 | CK77: 14 | CL77: 14 | CM77: 14 | CN77: 14 | CO77: 14
A78: 58 | H78: Nano 3 | I78: =CEILING($D$5/I$17,1) -> 10 | J78: 10 | K78: 10 | L78: 10 | M78: 10 | N78: 10 | O78: 10 | P78: 10 | Q78: 10 | R78: 10 | S78: 10 | T78: 10 | U78: 10 | V78: 10 | W78: 10 | X78: 10 | Y78: 10 | Z78: 10 | AA78: 10 | AB78: 11 | AC78: 11 | AD78: 11 | AE78: 11 | AF78: 11 | AG78: 11 | AH78: 11 | AI78: 11 | AJ78: 12 | AK78: 12 | AL78: 12 | AM78: 12 | AN78: 12 | AO78: =CEILING($D$5/AO$17,1) -> 12 | AP78: 13 | AQ78: 13 | AR78: 13 | AS78: 13 | AT78: 13 | AU78: 13 | AV78: 14 | AW78: 14 | AX78: 14 | AY78: 14 | AZ78: 14 | BA78: 14 | BB78: 14 | BC78: 14 | BD78: 14 | BE78: 14 | BF78: 14 | BG78: 14 | BH78: 14 | BI78: 14 | BJ78: 14 | BK78: 14 | BL78: 14 | BM78: 14 | BN78: 14 | BO78: 14 | BP78: 14 | BQ78: 14 | BR78: 14 | BS78: 14 | BT78: 14 | BU78: =CEILING($D$5/BU$17,1) -> 14 | BV78: 14 | BW78: 14 | BX78: 14 | BY78: 14 | BZ78: 14 | CA78: 14 | CB78: 14 | CC78: 14 | CD78: 14 | CE78: 14 | CF78: 14 | CG78: 14 | CH78: 14 | CI78: 14 | CJ78: 14 | CK78: 14 | CL78: 14 | CM78: 14 | CN78: 14 | CO78: 14
A79: 59 | H79: Nano 4 | I79: =CEILING($E$5/I$17,1) -> 10 | J79: 10 | K79: 10 | L79: 10 | M79: 10 | N79: 10 | O79: 10 | P79: 10 | Q79: 10 | R79: 10 | S79: 10 | T79: 10 | U79: 10 | V79: 10 | W79: 10 | X79: 10 | Y79: 10 | Z79: 11 | AA79: 11 | AB79: 11 | AC79: 11 | AD79: 11 | AE79: 11 | AF79: 11 | AG79: 11 | AH79: 12 | AI79: 12 | AJ79: 12 | AK79: 12 | AL79: 12 | AM79: 12 | AN79: 13 | AO79: =CEILING($E$5/AO$17,1) -> 13 | AP79: 13 | AQ79: 13 | AR79: 13 | AS79: 13 | AT79: 14 | AU79: 14 | AV79: 14 | AW79: 14 | AX79: 15 | AY79: 15 | AZ79: 15 | BA79: 15 | BB79: 15 | BC79: 15 | BD79: 15 | BE79: 15 | BF79: 15 | BG79: 15 | BH79: 15 | BI79: 15 | BJ79: 15 | BK79: 15 | BL79: 15 | BM79: 15 | BN79: 15 | BO79: 15 | BP79: 15 | BQ79: 15 | BR79: 15 | BS79: 15 | BT79: 15 | BU79: =CEILING($E$5/BU$17,1) -> 15 | BV79: 15 | BW79: 15 | BX79: 15 | BY79: 15 | BZ79: 15 | CA79: 15 | CB79: 15 | CC79: 15 | CD79: 15 | CE79: 15 | CF79: 15 | CG79: 15 | CH79: 15 | CI79: 15 | CJ79: 15 | CK79: 15 | CL79: 15 | CM79: 15 | CN79: 15 | CO79: 15
A80: 60 | H80: Nano 5 | I80: =CEILING($F$5/I$17,1) -> 10 | J80: 10 | K80: 10 | L80: 10 | M80: 10 | N80: 10 | O80: 10 | P80: 10 | Q80: 10 | R80: 10 | S80: 10 | T80: 10 | U80: 11 | V80: 11 | W80: 11 | X80: 11 | Y80: 11 | Z80: 11 | AA80: 11 | AB80: 11 | AC80: 12 | AD80: 12 | AE80: 12 | AF80: 12 | AG80: 12 | AH80: 12 | AI80: 12 | AJ80: 13 | AK80: 13 | AL80: 13 | AM80: 13 | AN80: 13 | AO80: =CEILING($F$5/AO$17,1) -> 13 | AP80: 14 | AQ80: 14 | AR80: 14 | AS80: 14 | AT80: 14 | AU80: 15 | AV80: 15 | AW80: 15 | AX80: 15 | AY80: 15 | AZ80: 15 | BA80: 15 | BB80: 15 | BC80: 15 | BD80: 15 | BE80: 15 | BF80: 15 | BG80: 15 | BH80: 15 | BI80: 15 | BJ80: 15 | BK80: 15 | BL80: 15 | BM80: 15 | BN80: 15 | BO80: 15 | BP80: 15 | BQ80: 15 | BR80: 15 | BS80: 15 | BT80: 15 | BU80: =CEILING($F$5/BU$17,1) -> 15 | BV80: 15 | BW80: 15 | BX80: 15 | BY80: 15 | BZ80: 15 | CA80: 15 | CB80: 15 | CC80: 15 | CD80: 15 | CE80: 15 | CF80: 15 | CG80: 15 | CH80: 15 | CI80: 15 | CJ80: 15 | CK80: 15 | CL80: 15 | CM80: 15 | CN80: 15 | CO80: 15
A81: 61
A82: 62 | I82: 1 | AB82: 20 | BF82: 50 | CO82: 85
A83: 63
A84: 64
A85: 65
A86: 66
A87: 67
A88: 68
A89: 69
A90: 70
A91: 71
A92: 72
A93: 73
A94: 74
A95: 75
A96: 76
A97: 77
A98: 78
A99: 79
A100: 80
A101: 81
A102: 82
A103: 83
A104: 84
A105: 85

Sheet Nanoweave Armor #2
A1: BTK at range table
B5: Range | C5: 1 | D5: 2 | E5: 3 | F5: 4 | G5: 5 | H5: 6 | I5: 7 | J5: 8 | K5: 9 | L5: 10 | M5: 11 | N5: 12 | O5: 13 | P5: 14 | Q5: 15 | R5: 16 | S5: 17 | T5: 18 | U5: 19 | V5: 20 | W5: 21 | X5: 22 | Y5: 23 | Z5: 24 | AA5: 25 | AB5: 26 | AC5: 27 | AD5: 28 | AE5: 29 | AF5: 30 | AG5: 31 | AH5: 32 | AI5: 33 | AJ5: 34 | AK5: 35 | AL5: 36 | AM5: 37 | AN5: 38 | AO5: 39 | AP5: 40 | AQ5: 41 | AR5: 42 | AS5: 43 | AT5: 44 | AU5: 45 | AV5: 46 | AW5: 47 | AX5: 48 | AY5: 49 | AZ5: 50 | BA5: 51 | BB5: 52 | BC5: 53 | BD5: 54 | BE5: 55 | BF5: 56 | BG5: 57 | BH5: 58 | BI5: 59 | BJ5: 60 | BK5: 61 | BL5: 62 | BM5: 63 | BN5: 64 | BO5: 65 | BP5: 66 | BQ5: 67 | BR5: 68 | BS5: 69 | BT5: 70 | BU5: 71 | BV5: 72 | BW5: 73 | BX5: 74 | BY5: 75 | BZ5: 76 | CA5: 77 | CB5: 78 | CC5: 79 | CD5: 80 | CE5: 81 | CF5: 82 | CG5: 83 | CH5: 84 | CI5: 85
A7: Gauss SAW and Reaper DMR | B7: Default | C7: 5 | D7: 5 | E7: 5 | F7: 5 | G7: 5 | H7: 5 | I7: 5 | J7: 5 | K7: 5 | L7: 5 | M7: 6 | N7: 6 | O7: 6 | P7: 6 | Q7: 6 | R7: 6 | S7: 6 | T7: 6 | U7: 6 | V7: 6 | W7: 6 | X7: 6 | Y7: 6 | Z7: 6 | AA7: 6 | AB7: 6 | AC7: 6 | AD7: 6 | AE7: 6 | AF7: 6 | AG7: 6 | AH7: 6 | AI7: 6 | AJ7: 6 | AK7: 6 | AL7: 6 | AM7: 6 | AN7: 6 | AO7: 6 | AP7: 6 | AQ7: 6 | AR7: 6 | AS7: 6 | AT7: 6 | AU7: 6 | AV7: 6 | AW7: 6 | AX7: 6 | AY7: 6 | AZ7: 6 | BA7: 6 | BB7: 6 | BC7: 6 | BD7: 6 | BE7: 6 | BF7: 6 | BG7: 6 | BH7: 6 | BI7: 6 | BJ7: 6 | BK7: 6 | BL7: 6 | BM7: 6 | BN7: 6 | BO7: 6 | BP7: 6 | BQ7: 6 | BR7: 6 | BS7: 6 | BT7: 6 | BU7: 6 | BV7: 6 | BW7: 6 | BX7: 6 | BY7: 6 | BZ7: 6 | CA7: 6 | CB7: 6 | CC7: 6 | CD7: 6 | CE7: 6 | CF7: 6 | CG7: 6 | CH7: 6 | CI7: 6
B8: Nano 1 | C8: 6 | D8: 6 | E8: 6 | F8: 6 | G8: 6 | H8: 6 | I8: 6 | J8: 6 | K8: 6 | L8: 6 | M8: 6 | N8: 6 | O8: 6 | P8: 6 | Q8: 6 | R8: 6 | S8: 6 | T8: 6 | U8: 6 | V8: 6 | W8: 6 | X8: 6 | Y8: 6 | Z8: 6 | AA8: 6 | AB8: 6 | AC8: 6 | AD8: 6 | AE8: 6 | AF8: 6 | AG8: 6 | AH8: 6 | AI8: 6 | AJ8: 6 | AK8: 6 | AL8: 6 | AM8: 6 | AN8: 6 | AO8: 6 | AP8: 6 | AQ8: 6 | AR8: 6 | AS8: 6 | AT8: 6 | AU8: 6 | AV8: 6 | AW8: 6 | AX8: 6 | AY8: 6 | AZ8: 6 | BA8: 6 | BB8: 6 | BC8: 6 | BD8: 6 | BE8: 6 | BF8: 7 | BG8: 7 | BH8: 7 | BI8: 7 | BJ8: 7 | BK8: 7 | BL8: 7 | BM8: 7 | BN8: 7 | BO8: 7 | BP8: 7 | BQ8: 7 | BR8: 7 | BS8: 7 | BT8: 7 | BU8: 7 | BV8: 7 | BW8: 7 | BX8: 7 | BY8: 7 | BZ8: 7 | CA8: 7 | CB8: 7 | CC8: 7 | CD8: 7 | CE8: 7 | CF8: 7 | CG8: 7 | CH8: 7 | CI8: 7
B9: Nano 2 | C9: 6 | D9: 6 | E9: 6 | F9: 6 | G9: 6 | H9: 6 | I9: 6 | J9: 6 | K9: 6 | L9: 6 | M9: 6 | N9: 6 | O9: 6 | P9: 6 | Q9: 6 | R9: 6 | S9: 6 | T9: 6 | U9: 6 | V9: 6 | W9: 6 | X9: 6 | Y9: 6 | Z9: 6 | AA9: 6 | AB9: 6 | AC9: 6 | AD9: 6 | AE9: 6 | AF9: 6 | AG9: 6 | AH9: 6 | AI9: 6 | AJ9: 6 | AK9: 6 | AL9: 6 | AM9: 6 | AN9: 6 | AO9: 6 | AP9: 6 | AQ9: 6 | AR9: 6 | AS9: 6 | AT9: 7 | AU9: 7 | AV9: 7 | AW9: 7 | AX9: 7 | AY9: 7 | AZ9: 7 | BA9: 7 | BB9: 7 | BC9: 7 | BD9: 7 | BE9: 7 | BF9: 7 | BG9: 7 | BH9: 7 | BI9: 7 | BJ9: 7 | BK9: 7 | BL9: 7 | BM9: 7 | BN9: 7 | BO9: 7 | BP9: 7 | BQ9: 7 | BR9: 7 | BS9: 7 | BT9: 7 | BU9: 7 | BV9: 7 | BW9: 7 | BX9: 7 | BY9: 7 | BZ9: 7 | CA9: 7 | CB9: 7 | CC9: 7 | CD9: 7 | CE9: 7 | CF9: 7 | CG9: 7 | CH9: 7 | CI9: 7
B10: Nano 3 | C10: 6 | D10: 6 | E10: 6 | F10: 6 | G10: 6 | H10: 6 | I10: 6 | J10: 6 | K10: 6 | L10: 6 | M10: 6 | N10: 6 | O10: 6 | P10: 6 | Q10: 6 | R10: 6 | S10: 6 | T10: 6 | U10: 6 | V10: 6 | W10: 6 | X10: 6 | Y10: 6 | Z10: 6 | AA10: 6 | AB10: 6 | AC10: 6 | AD10: 6 | AE10: 6 | AF10: 6 | AG10: 6 | AH10: 7 | AI10: 7 | AJ10: 7 | AK10: 7 | AL10: 7 | AM10: 7 | AN10: 7 | AO10: 7 | AP10: 7 | AQ10: 7 | AR10: 7 | AS10: 7 | AT10: 7 | AU10: 7 | AV10: 7 | AW10: 7 | AX10: 7 | AY10: 7 | AZ10: 7 | BA10: 7 | BB10: 7 | BC10: 7 | BD10: 7 | BE10: 7 | BF10: 7 | BG10: 7 | BH10: 7 | BI10: 7 | BJ10: 7 | BK10: 7 | BL10: 7 | BM10: 7 | BN10: 7 | BO10: 7 | BP10: 7 | BQ10: 7 | BR10: 7 | BS10: 7 | BT10: 7 | BU10: 7 | BV10: 7 | BW10: 7 | BX10: 7 | BY10: 7 | BZ10: 7 | CA10: 7 | CB10: 7 | CC10: 7 | CD10: 7 | CE10: 7 | CF10: 7 | CG10: 7 | CH10: 7 | CI10: 7
B11: Nano 4 | C11: 6 | D11: 6 | E11: 6 | F11: 6 | G11: 6 | H11: 6 | I11: 6 | J11: 6 | K11: 6 | L11: 6 | M11: 6 | N11: 6 | O11: 6 | P11: 6 | Q11: 6 | R11: 6 | S11: 6 | T11: 6 | U11: 7 | V11: 7 | W11: 7 | X11: 7 | Y11: 7 | Z11: 7 | AA11: 7 | AB11: 7 | AC11: 7 | AD11: 7 | AE11: 7 | AF11: 7 | AG11: 7 | AH11: 7 | AI11: 7 | AJ11: 7 | AK11: 7 | AL11: 7 | AM11: 7 | AN11: 7 | AO11: 7 | AP11: 7 | AQ11: 7 | AR11: 7 | AS11: 7 | AT11: 7 | AU11: 7 | AV11: 7 | AW11: 7 | AX11: 7 | AY11: 7 | AZ11: 7 | BA11: 7 | BB11: 7 | BC11: 7 | BD11: 7 | BE11: 7 | BF11: 7 | BG11: 7 | BH11: 7 | BI11: 7 | BJ11: 7 | BK11: 7 | BL11: 7 | BM11: 7 | BN11: 7 | BO11: 7 | BP11: 7 | BQ11: 7 | BR11: 7 | BS11: 7 | BT11: 7 | BU11: 7 | BV11: 7 | BW11: 7 | BX11: 7 | BY11: 7 | BZ11: 7 | CA11: 7 | CB11: 7 | CC11: 7 | CD11: 7 | CE11: 7 | CF11: 7 | CG11: 8 | CH11: 8 | CI11: 8
B12: Nano 5 | C12: 7 | D12: 7 | E12: 7 | F12: 7 | G12: 7 | H12: 7 | I12: 7 | J12: 7 | K12: 7 | L12: 7 | M12: 7 | N12: 7 | O12: 7 | P12: 7 | Q12: 7 | R12: 7 | S12: 7 | T12: 7 | U12: 7 | V12: 7 | W12: 7 | X12: 7 | Y12: 7 | Z12: 7 | AA12: 7 | AB12: 7 | AC12: 7 | AD12: 7 | AE12: 7 | AF12: 7 | AG12: 7 | AH12: 7 | AI12: 7 | AJ12: 7 | AK12: 7 | AL12: 7 | AM12: 7 | AN12: 7 | AO12: 7 | AP12: 7 | AQ12: 7 | AR12: 7 | AS12: 7 | AT12: 7 | AU12: 7 | AV12: 7 | AW12: 7 | AX12: 7 | AY12: 7 | AZ12: 7 | BA12: 7 | BB12: 7 | BC12: 7 | BD12: 7 | BE12: 7 | BF12: 7 | BG12: 7 | BH12: 7 | BI12: 8 | BJ12: 8 | BK12: 8 | BL12: 8 | BM12: 8 | BN12: 8 | BO12: 8 | BP12: 8 | BQ12: 8 | BR12: 8 | BS12: 8 | BT12: 8 | BU12: 8 | BV12: 8 | BW12: 8 | BX12: 8 | BY12: 8 | BZ12: 8 | CA12: 8 | CB12: 8 | CC12: 8 | CD12: 8 | CE12: 8 | CF12: 8 | CG12: 8 | CH12: 8 | CI12: 8
A14: ACX-11 | B14: Default | C14: 5 | D14: 5 | E14: 5 | F14: 5 | G14: 5 | H14: 5 | I14: 5 | J14: 5 | K14: 5 | L14: 5 | M14: 6 | N14: 6 | O14: 6 | P14: 6 | Q14: 6 | R14: 6 | S14: 6 | T14: 6 | U14: 6 | V14: 6 | W14: 6 | X14: 6 | Y14: 6 | Z14: 6 | AA14: 6 | AB14: 6 | AC14: 6 | AD14: 6 | AE14: 6 | AF14: 6 | AG14: 6 | AH14: 6 | AI14: 6 | AJ14: 6 | AK14: 6 | AL14: 6 | AM14: 6 | AN14: 6 | AO14: 6 | AP14: 6 | AQ14: 6 | AR14: 6 | AS14: 6 | AT14: 6 | AU14: 6 | AV14: 6 | AW14: 6 | AX14: 6 | AY14: 6 | AZ14: 6 | BA14: 7 | BB14: 7 | BC14: 7 | BD14: 7 | BE14: 7 | BF14: 7 | BG14: 7 | BH14: 7 | BI14: 7 | BJ14: 7 | BK14: 7 | BL14: 7 | BM14: 7 | BN14: 7 | BO14: 7 | BP14: 7 | BQ14: 7 | BR14: 7 | BS14: 7 | BT14: 7 | BU14: 7 | BV14: 7 | BW14: 7 | BX14: 7 | BY14: 7 | BZ14: 7 | CA14: 7 | CB14: 7 | CC14: 7 | CD14: 7 | CE14: 7 | CF14: 7 | CG14: 7 | CH14: 7 | CI14: 7
B15: Nano 1 | C15: 6 | D15: 6 | E15: 6 | F15: 6 | G15: 6 | H15: 6 | I15: 6 | J15: 6 | K15: 6 | L15: 6 | M15: 6 | N15: 6 | O15: 6 | P15: 6 | Q15: 6 | R15: 6 | S15: 6 | T15: 6 | U15: 6 | V15: 6 | W15: 6 | X15: 6 | Y15: 6 | Z15: 6 | AA15: 6 | AB15: 6 | AC15: 6 | AD15: 6 | AE15: 6 | AF15: 6 | AG15: 6 | AH15: 6 | AI15: 6 | AJ15: 6 | AK15: 7 | AL15: 7 | AM15: 7 | AN15: 7 | AO15: 7 | AP15: 7 | AQ15: 7 | AR15: 7 | AS15: 7 | AT15: 7 | AU15: 7 | AV15: 7 | AW15: 7 | AX15: 7 | AY15: 7 | AZ15: 7 | BA15: 7 | BB15: 7 | BC15: 7 | BD15: 7 | BE15: 7 | BF15: 7 | BG15: 7 | BH15: 7 | BI15: 7 | BJ15: 7 | BK15: 7 | BL15: 7 | BM15: 7 | BN15: 7 | BO15: 7 | BP15: 8 | BQ15: 8 | BR15: 8 | BS15: 8 | BT15: 8 | BU15: 8 | BV15: 8 | BW15: 8 | BX15: 8 | BY15: 8 | BZ15: 8 | CA15: 8 | CB15: 8 | CC15: 8 | CD15: 8 | CE15: 8 | CF15: 8 | CG15: 8 | CH15: 8 | CI15: 8
B16: Nano 2 | C16: 6 | D16: 6 | E16: 6 | F16: 6 | G16: 6 | H16: 6 | I16: 6 | J16: 6 | K16: 6 | L16: 6 | M16: 6 | N16: 6 | O16: 6 | P16: 6 | Q16: 6 | R16: 6 | S16: 6 | T16: 6 | U16: 6 | V16: 6 | W16: 6 | X16: 6 | Y16: 6 | Z16: 6 | AA16: 6 | AB16: 6 | AC16: 6 | AD16: 6 | AE16: 7 | AF16: 7 | AG16: 7 | AH16: 7 | AI16: 7 | AJ16: 7 | AK16: 7 | AL16: 7 | AM16: 7 | AN16: 7 | AO16: 7 | AP16: 7 | AQ16: 7 | AR16: 7 | AS16: 7 | AT16: 7 | AU16: 7 | AV16: 7 | AW16: 7 | AX16: 7 | AY16: 7 | AZ16: 7 | BA16: 7 | BB16: 7 | BC16: 7 | BD16: 7 | BE16: 7 | BF16: 7 | BG16: 7 | BH16: 7 | BI16: 7 | BJ16: 7 | BK16: 8 | BL16: 8 | BM16: 8 | BN16: 8 | BO16: 8 | BP16: 8 | BQ16: 8 | BR16: 8 | BS16: 8 | BT16: 8 | BU16: 8 | BV16: 8 | BW16: 8 | BX16: 8 | BY16: 8 | BZ16: 8 | CA16: 8 | CB16: 8 | CC16: 8 | CD16: 8 | CE16: 8 | CF16: 8 | CG16: 8 | CH16: 8 | CI16: 8
B17: Nano 3 | C17: 6 | D17: 6 | E17: 6 | F17: 6 | G17: 6 | H17: 6 | I17: 6 | J17: 6 | K17: 6 | L17: 6 | M17: 6 | N17: 6 | O17: 6 | P17: 6 | Q17: 6 | R17: 6 | S17: 6 | T17: 6 | U17: 6 | V17: 6 | W17: 6 | X17: 7 | Y17: 7 | Z17: 7 | AA17: 7 | AB17: 7 | AC17: 7 | AD17: 7 | AE17: 7 | AF17: 7 | AG17: 7 | AH17: 7 | AI17: 7 | AJ17: 7 | AK17: 7 | AL17: 7 | AM17: 7 | AN17: 7 | AO17: 7 | AP17: 7 | AQ17: 7 | AR17: 7 | AS17: 7 | AT17: 7 | AU17: 7 | AV17: 7 | AW17: 7 | AX17: 7 | AY17: 7 | AZ17: 7 | BA17: 7 | BB17: 7 | BC17: 7 | BD17: 7 | BE17: 7 | BF17: 8 | BG17: 8 | BH17: 8 | BI17: 8 | BJ17: 8 | BK17: 8 | BL17: 8 | BM17: 8 | BN17: 8 | BO17: 8 | BP17: 8 | BQ17: 8 | BR17: 8 | BS17: 8 | BT17: 8 | BU17: 8 | BV17: 8 | BW17: 8 | BX17: 8 | BY17: 8 | BZ17: 8 | CA17: 8 | CB17: 8 | CC17: 8 | CD17: 8 | CE17: 8 | CF17: 8 | CG17: 8 | CH17: 8 | CI17: 8
B18: Nano 4 | C18: 6 | D18: 6 | E18: 6 | F18: 6 | G18: 6 | H18: 6 | I18: 6 | J18: 6 | K18: 6 | L18: 6 | M18: 6 | N18: 6 | O18: 6 | P18: 6 | Q18: 7 | R18: 7 | S18: 7 | T18: 7 | U18: 7 | V18: 7 | W18: 7 | X18: 7 | Y18: 7 | Z18: 7 | AA18: 7 | AB18: 7 | AC18: 7 | AD18: 7 | AE18: 7 | AF18: 7 | AG18: 7 | AH18: 7 | AI18: 7 | AJ18: 7 | AK18: 7 | AL18: 7 | AM18: 7 | AN18: 7 | AO18: 7 | AP18: 7 | AQ18: 7 | AR18: 7 | AS18: 7 | AT18: 7 | AU18: 7 | AV18: 7 | AW18: 7 | AX18: 7 | AY18: 7 | AZ18: 8 | BA18: 8 | BB18: 8 | BC18: 8 | BD18: 8 | BE18: 8 | BF18: 8 | BG18: 8 | BH18: 8 | BI18: 8 | BJ18: 8 | BK18: 8 | BL18: 8 | BM18: 8 | BN18: 8 | BO18: 8 | BP18: 8 | BQ18: 8 | BR18: 8 | BS18: 8 | BT18: 8 | BU18: 8 | BV18: 8 | BW18: 8 | BX18: 8 | BY18: 8 | BZ18: 9 | CA18: 9 | CB18: 9 | CC18: 9 | CD18: 9 | CE18: 9 | CF18: 9 | CG18: 9 | CH18: 9 | CI18: 9
B19: Nano 5 | C19: 7 | D19: 7 | E19: 7 | F19: 7 | G19: 7 | H19: 7 | I19: 7 | J19: 7 | K19: 7 | L19: 7 | M19: 7 | N19: 7 | O19: 7 | P19: 7 | Q19: 7 | R19: 7 | S19: 7 | T19: 7 | U19: 7 | V19: 7 | W19: 7 | X19: 7 | Y19: 7 | Z19: 7 | AA19: 7 | AB19: 7 | AC19: 7 | AD19: 7 | AE19: 7 | AF19: 7 | AG19: 7 | AH19: 7 | AI19: 7 | AJ19: 7 | AK19: 7 | AL19: 7 | AM19: 8 | AN19: 8 | AO19: 8 | AP19: 8 | AQ19: 8 | AR19: 8 | AS19: 8 | AT19: 8 | AU19: 8 | AV19: 8 | AW19: 8 | AX19: 8 | AY19: 8 | AZ19: 8 | BA19: 8 | BB19: 8 | BC19: 8 | BD19: 8 | BE19: 8 | BF19: 8 | BG19: 8 | BH19: 8 | BI19: 8 | BJ19: 8 | BK19: 8 | BL19: 8 | BM19: 8 | BN19: 9 | BO19: 9 | BP19: 9 | BQ19: 9 | BR19: 9 | BS19: 9 | BT19: 9 | BU19: 9 | BV19: 9 | BW19: 9 | BX19: 9 | BY19: 9 | BZ19: 9 | CA19: 9 | CB19: 9 | CC19: 9 | CD19: 9 | CE19: 9 | CF19: 9 | CG19: 9 | CH19: 9 | CI19: 9
A21: Gauss Rifle | B21: Default | C21: 6 | D21: 6 | E21: 6 | F21: 6 | G21: 6 | H21: 6 | I21: 6 | J21: 6 | K21: 6 | L21: 6 | M21: 7 | N21: 7 | O21: 7 | P21: 7 | Q21: 7 | R21: 7 | S21: 7 | T21: 7 | U21: 7 | V21: 7 | W21: 7 | X21: 7 | Y21: 7 | Z21: 7 | AA21: 7 | AB21: 7 | AC21: 7 | AD21: 7 | AE21: 7 | AF21: 7 | AG21: 7 | AH21: 7 | AI21: 7 | AJ21: 7 | AK21: 7 | AL21: 7 | AM21: 7 | AN21: 7 | AO21: 7 | AP21: 7 | AQ21: 7 | AR21: 7 | AS21: 7 | AT21: 7 | AU21: 7 | AV21: 7 | AW21: 7 | AX21: 7 | AY21: 7 | AZ21: 7 | BA21: 7 | BB21: 7 | BC21: 7 | BD21: 7 | BE21: 7 | BF21: 7 | BG21: 7 | BH21: 7 | BI21: 7 | BJ21: 7 | BK21: 7 | BL21: 7 | BM21: 7 | BN21: 7 | BO21: 7 | BP21: 7 | BQ21: 7 | BR21: 7 | BS21: 7 | BT21: 7 | BU21: 7 | BV21: 7 | BW21: 7 | BX21: 7 | BY21: 7 | BZ21: 7 | CA21: 7 | CB21: 7 | CC21: 7 | CD21: 7 | CE21: 7 | CF21: 7 | CG21: 7 | CH21: 7 | CI21: 7
B22: Nano 1 | C22: 7 | D22: 7 | E22: 7 | F22: 7 | G22: 7 | H22: 7 | I22: 7 | J22: 7 | K22: 7 | L22: 7 | M22: 7 | N22: 7 | O22: 7 | P22: 7 | Q22: 7 | R22: 7 | S22: 7 | T22: 7 | U22: 7 | V22: 7 | W22: 7 | X22: 7 | Y22: 7 | Z22: 7 | AA22: 7 | AB22: 7 | AC22: 7 | AD22: 7 | AE22: 7 | AF22: 7 | AG22: 7 | AH22: 7 | AI22: 7 | AJ22: 7 | AK22: 7 | AL22: 7 | AM22: 7 | AN22: 7 | AO22: 7 | AP22: 7 | AQ22: 7 | AR22: 7 | AS22: 7 | AT22: 7 | AU22: 8 | AV22: 8 | AW22: 8 | AX22: 8 | AY22: 8 | AZ22: 8 | BA22: 8 | BB22: 8 | BC22: 8 | BD22: 8 | BE22: 8 | BF22: 8 | BG22: 8 | BH22: 8 | BI22: 8 | BJ22: 8 | BK22: 8 | BL22: 8 | BM22: 8 | BN22: 8 | BO22: 8 | BP22: 8 | BQ22: 8 | BR22: 8 | BS22: 8 | BT22: 8 | BU22: 8 | BV22: 8 | BW22: 8 | BX22: 8 | BY22: 8 | BZ22: 8 | CA22: 8 | CB22: 8 | CC22: 8 | CD22: 8 | CE22: 8 | CF22: 8 | CG22: 8 | CH22: 8 | CI22: 8
B23: Nano 2 | C23: 7 | D23: 7 | E23: 7 | F23: 7 | G23: 7 | H23: 7 | I23: 7 | J23: 7 | K23: 7 | L23: 7 | M23: 7 | N23: 7 | O23: 7 | P23: 7 | Q23: 7 | R23: 7 | S23: 7 | T23: 7 | U23: 7 | V23: 7 | W23: 7 | X23: 7 | Y23: 7 | Z23: 7 | AA23: 7 | AB23: 7 | AC23: 7 | AD23: 7 | AE23: 7 | AF23: 7 | AG23: 7 | AH23: 7 | AI23: 8 | AJ23: 8 | AK23: 8 | AL23: 8 | AM23: 8 | AN23: 8 | AO23: 8 | AP23: 8 | AQ23: 8 | AR23: 8 | AS23: 8 | AT23: 8 | AU23: 8 | AV23: 8 | AW23: 8 | AX23: 8 | AY23: 8 | AZ23: 8 | BA23: 8 | BB23: 8 | BC23: 8 | BD23: 8 | BE23: 8 | BF23: 8 | BG23: 8 | BH23: 8 | BI23: 8 | BJ23: 8 | BK23: 8 | BL23: 8 | BM23: 8 | BN23: 8 | BO23: 8 | BP23: 8 | BQ23: 8 | BR23: 8 | BS23: 8 | BT23: 8 | BU23: 8 | BV23: 8 | BW23: 8 | BX23: 8 | BY23: 8 | BZ23: 8 | CA23: 8 | CB23: 8 | CC23: 8 | CD23: 8 | CE23: 8 | CF23: 8 | CG23: 8 | CH23: 8 | CI23: 8
B24: Nano 3 | C24: 7 | D24: 7 | E24: 7 | F24: 7 | G24: 7 | H24: 7 | I24: 7 | J24: 7 | K24: 7 | L24: 7 | M24: 7 | N24: 7 | O24: 7 | P24: 7 | Q24: 7 | R24: 7 | S24: 7 | T24: 7 | U24: 7 | V24: 7 | W24: 8 | X24: 8 | Y24: 8 | Z24: 8 | AA24: 8 | AB24: 8 | AC24: 8 | AD24: 8 | AE24: 8 | AF24: 8 | AG24: 8 | AH24: 8 | AI24: 8 | AJ24: 8 | AK24: 8 | AL24: 8 | AM24: 8 | AN24: 8 | AO24: 8 | AP24: 8 | AQ24: 8 | AR24: 8 | AS24: 8 | AT24: 8 | AU24: 8 | AV24: 8 | AW24: 8 | AX24: 8 | AY24: 8 | AZ24: 8 | BA24: 8 | BB24: 8 | BC24: 8 | BD24: 8 | BE24: 8 | BF24: 8 | BG24: 8 | BH24: 8 | BI24: 8 | BJ24: 8 | BK24: 8 | BL24: 8 | BM24: 8 | BN24: 8 | BO24: 8 | BP24: 8 | BQ24: 8 | BR24: 8 | BS24: 8 | BT24: 8 | BU24: 8 | BV24: 8 | BW24: 8 | BX24: 8 | BY24: 8 | BZ24: 8 | CA24: 8 | CB24: 8 | CC24: 8 | CD24: 8 | CE24: 8 | CF24: 8 | CG24: 8 | CH24: 8 | CI24: 8
B25: Nano 4 | C25: 8 | D25: 8 | E25: 8 | F25: 8 | G25: 8 | H25: 8 | I25: 8 | J25: 8 | K25: 8 | L25: 8 | M25: 8 | N25: 8 | O25: 8 | P25: 8 | Q25: 8 | R25: 8 | S25: 8 | T25: 8 | U25: 8 | V25: 8 | W25: 8 | X25: 8 | Y25: 8 | Z25: 8 | AA25: 8 | AB25: 8 | AC25: 8 | AD25: 8 | AE25: 8 | AF25: 8 | AG25: 8 | AH25: 8 | AI25: 8 | AJ25: 8 | AK25: 8 | AL25: 8 | AM25: 8 | AN25: 8 | AO25: 8 | AP25: 8 | AQ25: 8 | AR25: 8 | AS25: 8 | AT25: 8 | AU25: 8 | AV25: 8 | AW25: 8 | AX25: 8 | AY25: 8 | AZ25: 8 | BA25: 8 | BB25: 8 | BC25: 8 | BD25: 8 | BE25: 8 | BF25: 8 | BG25: 8 | BH25: 8 | BI25: 8 | BJ25: 8 | BK25: 8 | BL25: 8 | BM25: 8 | BN25: 8 | BO25: 9 | BP25: 9 | BQ25: 9 | BR25: 9 | BS25: 9 | BT25: 9 | BU25: 9 | BV25: 9 | BW25: 9 | BX25: 9 | BY25: 9 | BZ25: 9 | CA25: 9 | CB25: 9 | CC25: 9 | CD25: 9 | CE25: 9 | CF25: 9 | CG25: 9 | CH25: 9 | CI25: 9
B26: Nano 5 | C26: 8 | D26: 8 | E26: 8 | F26: 8 | G26: 8 | H26: 8 | I26: 8 | J26: 8 | K26: 8 | L26: 8 | M26: 8 | N26: 8 | O26: 8 | P26: 8 | Q26: 8 | R26: 8 | S26: 8 | T26: 8 | U26: 8 | V26: 8 | W26: 8 | X26: 8 | Y26: 8 | Z26: 8 | AA26: 8 | AB26: 8 | AC26: 8 | AD26: 8 | AE26: 8 | AF26: 8 | AG26: 8 | AH26: 8 | AI26: 8 | AJ26: 8 | AK26: 8 | AL26: 8 | AM26: 8 | AN26: 8 | AO26: 8 | AP26: 9 | AQ26: 9 | AR26: 9 | AS26: 9 | AT26: 9 | AU26: 9 | AV26: 9 | AW26: 9 | AX26: 9 | AY26: 9 | AZ26: 9 | BA26: 9 | BB26: 9 | BC26: 9 | BD26: 9 | BE26: 9 | BF26: 9 | BG26: 9 | BH26: 9 | BI26: 9 | BJ26: 9 | BK26: 9 | BL26: 9 | BM26: 9 | BN26: 9 | BO26: 9 | BP26: 9 | BQ26: 9 | BR26: 9 | BS26: 9 | BT26: 9 | BU26: 9 | BV26: 9 | BW26: 9 | BX26: 9 | BY26: 9 | BZ26: 9 | CA26: 9 | CB26: 9 | CC26: 9 | CD26: 9 | CE26: 9 | CF26: 9 | CG26: 9 | CH26: 9 | CI26: 9
A28: Mercenary | B28: Default | C28: 6 | D28: 6 | E28: 6 | F28: 6 | G28: 6 | H28: 6 | I28: 6 | J28: 6 | K28: 6 | L28: 6 | M28: 7 | N28: 7 | O28: 7 | P28: 7 | Q28: 7 | R28: 7 | S28: 7 | T28: 7 | U28: 7 | V28: 7 | W28: 7 | X28: 7 | Y28: 7 | Z28: 7 | AA28: 7 | AB28: 7 | AC28: 7 | AD28: 7 | AE28: 7 | AF28: 7 | AG28: 7 | AH28: 7 | AI28: 7 | AJ28: 7 | AK28: 7 | AL28: 7 | AM28: 7 | AN28: 7 | AO28: 7 | AP28: 7 | AQ28: 7 | AR28: 7 | AS28: 7 | AT28: 7 | AU28: 8 | AV28: 8 | AW28: 8 | AX28: 8 | AY28: 8 | AZ28: 8 | BA28: 8 | BB28: 8 | BC28: 8 | BD28: 8 | BE28: 8 | BF28: 8 | BG28: 8 | BH28: 8 | BI28: 8 | BJ28: 8 | BK28: 8 | BL28: 8 | BM28: 8 | BN28: 8 | BO28: 8 | BP28: 8 | BQ28: 8 | BR28: 8 | BS28: 8 | BT28: 8 | BU28: 8 | BV28: 8 | BW28: 8 | BX28: 8 | BY28: 8 | BZ28: 8 | CA28: 8 | CB28: 8 | CC28: 8 | CD28: 8 | CE28: 8 | CF28: 8 | CG28: 8 | CH28: 8 | CI28: 8
B29: Nano 1 | C29: 7 | D29: 7 | E29: 7 | F29: 7 | G29: 7 | H29: 7 | I29: 7 | J29: 7 | K29: 7 | L29: 7 | M29: 7 | N29: 7 | O29: 7 | P29: 7 | Q29: 7 | R29: 7 | S29: 7 | T29: 7 | U29: 7 | V29: 7 | W29: 7 | X29: 7 | Y29: 7 | Z29: 7 | AA29: 7 | AB29: 7 | AC29: 7 | AD29: 8 | AE29: 8 | AF29: 8 | AG29: 8 | AH29: 8 | AI29: 8 | AJ29: 8 | AK29: 8 | AL29: 8 | AM29: 8 | AN29: 8 | AO29: 8 | AP29: 8 | AQ29: 8 | AR29: 8 | AS29: 8 | AT29: 8 | AU29: 8 | AV29: 8 | AW29: 8 | AX29: 8 | AY29: 8 | AZ29: 8 | BA29: 8 | BB29: 8 | BC29: 8 | BD29: 8 | BE29: 8 | BF29: 9 | BG29: 9 | BH29: 9 | BI29: 9 | BJ29: 9 | BK29: 9 | BL29: 9 | BM29: 9 | BN29: 9 | BO29: 9 | BP29: 9 | BQ29: 9 | BR29: 9 | BS29: 9 | BT29: 9 | BU29: 9 | BV29: 9 | BW29: 9 | BX29: 9 | BY29: 9 | BZ29: 9 | CA29: 9 | CB29: 9 | CC29: 9 | CD29: 9 | CE29: 9 | CF29: 9 | CG29: 9 | CH29: 9 | CI29: 9
B30: Nano 2 | C30: 7 | D30: 7 | E30: 7 | F30: 7 | G30: 7 | H30: 7 | I30: 7 | J30: 7 | K30: 7 | L30: 7 | M30: 7 | N30: 7 | O30: 7 | P30: 7 | Q30: 7 | R30: 7 | S30: 7 | T30: 7 | U30: 7 | V30: 7 | W30: 7 | X30: 8 | Y30: 8 | Z30: 8 | AA30: 8 | AB30: 8 | AC30: 8 | AD30: 8 | AE30: 8 | AF30: 8 | AG30: 8 | AH30: 8 | AI30: 8 | AJ30: 8 | AK30: 8 | AL30: 8 | AM30: 8 | AN30: 8 | AO30: 8 | AP30: 8 | AQ30: 8 | AR30: 8 | AS30: 8 | AT30: 8 | AU30: 8 | AV30: 8 | AW30: 8 | AX30: 8 | AY30: 8 | AZ30: 8 | BA30: 9 | BB30: 9 | BC30: 9 | BD30: 9 | BE30: 9 | BF30: 9 | BG30: 9 | BH30: 9 | BI30: 9 | BJ30: 9 | BK30: 9 | BL30: 9 | BM30: 9 | BN30: 9 | BO30: 9 | BP30: 9 | BQ30: 9 | BR30: 9 | BS30: 9 | BT30: 9 | BU30: 9 | BV30: 9 | BW30: 9 | BX30: 9 | BY30: 9 | BZ30: 9 | CA30: 9 | CB30: 9 | CC30: 9 | CD30: 9 | CE30: 9 | CF30: 9 | CG30: 9 | CH30: 9 | CI30: 9
B31: Nano 3 | C31: 7 | D31: 7 | E31: 7 | F31: 7 | G31: 7 | H31: 7 | I31: 7 | J31: 7 | K31: 7 | L31: 7 | M31: 7 | N31: 7 | O31: 7 | P31: 7 | Q31: 7 | R31: 8 | S31: 8 | T31: 8 | U31: 8 | V31: 8 | W31: 8 | X31: 8 | Y31: 8 | Z31: 8 | AA31: 8 | AB31: 8 | AC31: 8 | AD31: 8 | AE31: 8 | AF31: 8 | AG31: 8 | AH31: 8 | AI31: 8 | AJ31: 8 | AK31: 8 | AL31: 8 | AM31: 8 | AN31: 8 | AO31: 8 | AP31: 8 | AQ31: 8 | AR31: 8 | AS31: 8 | AT31: 8 | AU31: 9 | AV31: 9 | AW31: 9 | AX31: 9 | AY31: 9 | AZ31: 9 | BA31: 9 | BB31: 9 | BC31: 9 | BD31: 9 | BE31: 9 | BF31: 9 | BG31: 9 | BH31: 9 | BI31: 9 | BJ31: 9 | BK31: 9 | BL31: 9 | BM31: 9 | BN31: 9 | BO31: 9 | BP31: 9 | BQ31: 9 | BR31: 10 | BS31: 10 | BT31: 10 | BU31: 10 | BV31: 10 | BW31: 10 | BX31: 10 | BY31: 10 | BZ31: 10 | CA31: 10 | CB31: 10 | CC31: 10 | CD31: 10 | CE31: 10 | CF31: 10 | CG31: 10 | CH31: 10 | CI31: 10
B32: Nano 4 | C32: 8 | D32: 8 | E32: 8 | F32: 8 | G32: 8 | H32: 8 | I32: 8 | J32: 8 | K32: 8 | L32: 8 | M32: 8 | N32: 8 | O32: 8 | P32: 8 | Q32: 8 | R32: 8 | S32: 8 | T32: 8 | U32: 8 | V32: 8 | W32: 8 | X32: 8 | Y32: 8 | Z32: 8 | AA32: 8 | AB32: 8 | AC32: 8 | AD32: 8 | AE32: 8 | AF32: 8 | AG32: 8 | AH32: 8 | AI32: 8 | AJ32: 8 | AK32: 8 | AL32: 8 | AM32: 8 | AN32: 8 | AO32: 9 | AP32: 9 | AQ32: 9 | AR32: 9 | AS32: 9 | AT32: 9 | AU32: 9 | AV32: 9 | AW32: 9 | AX32: 9 | AY32: 9 | AZ32: 9 | BA32: 9 | BB32: 9 | BC32: 9 | BD32: 9 | BE32: 9 | BF32: 9 | BG32: 9 | BH32: 9 | BI32: 9 | BJ32: 9 | BK32: 9 | BL32: 10 | BM32: 10 | BN32: 10 | BO32: 10 | BP32: 10 | BQ32: 10 | BR32: 10 | BS32: 10 | BT32: 10 | BU32: 10 | BV32: 10 | BW32: 10 | BX32: 10 | BY32: 10 | BZ32: 10 | CA32: 10 | CB32: 10 | CC32: 10 | CD32: 10 | CE32: 10 | CF32: 10 | CG32: 10 | CH32: 10 | CI32: 10
B33: Nano 5 | C33: 8 | D33: 8 | E33: 8 | F33: 8 | G33: 8 | H33: 8 | I33: 8 | J33: 8 | K33: 8 | L33: 8 | M33: 8 | N33: 8 | O33: 8 | P33: 8 | Q33: 8 | R33: 8 | S33: 8 | T33: 8 | U33: 8 | V33: 8 | W33: 8 | X33: 8 | Y33: 8 | Z33: 8 | AA33: 8 | AB33: 9 | AC33: 9 | AD33: 9 | AE33: 9 | AF33: 9 | AG33: 9 | AH33: 9 | AI33: 9 | AJ33: 9 | AK33: 9 | AL33: 9 | AM33: 9 | AN33: 9 | AO33: 9 | AP33: 9 | AQ33: 9 | AR33: 9 | AS33: 9 | AT33: 9 | AU33: 9 | AV33: 9 | AW33: 9 | AX33: 9 | AY33: 9 | AZ33: 9 | BA33: 10 | BB33: 10 | BC33: 10 | BD33: 10 | BE33: 10 | BF33: 10 | BG33: 10 | BH33: 10 | BI33: 10 | BJ33: 10 | BK33: 10 | BL33: 10 | BM33: 10 | BN33: 10 | BO33: 10 | BP33: 10 | BQ33: 10 | BR33: 10 | BS33: 10 | BT33: 10 | BU33: 10 | BV33: 10 | BW33: 10 | BX33: 10 | BY33: 10 | BZ33: 10 | CA33: 10 | CB33: 10 | CC33: 10 | CD33: 10 | CE33: 10 | CF33: 10 | CG33: 10 | CH33: 10 | CI33: 10
A35: Bandit | B35: Default | C35: 6 | D35: 6 | E35: 6 | F35: 6 | G35: 6 | H35: 6 | I35: 6 | J35: 6 | K35: 6 | L35: 6 | M35: 6 | N35: 6 | O35: 6 | P35: 6 | Q35: 6 | R35: 7 | S35: 7 | T35: 7 | U35: 7 | V35: 7 | W35: 7 | X35: 7 | Y35: 7 | Z35: 7 | AA35: 7 | AB35: 7 | AC35: 7 | AD35: 7 | AE35: 7 | AF35: 7 | AG35: 7 | AH35: 7 | AI35: 7 | AJ35: 7 | AK35: 8 | AL35: 8 | AM35: 8 | AN35: 8 | AO35: 8 | AP35: 8 | AQ35: 8 | AR35: 8 | AS35: 8 | AT35: 8 | AU35: 8 | AV35: 8 | AW35: 8 | AX35: 8 | AY35: 8 | AZ35: 9 | BA35: 9 | BB35: 9 | BC35: 9 | BD35: 9 | BE35: 9 | BF35: 9 | BG35: 9 | BH35: 9 | BI35: 9 | BJ35: 9 | BK35: 9 | BL35: 9 | BM35: 9 | BN35: 9 | BO35: 9 | BP35: 9 | BQ35: 9 | BR35: 9 | BS35: 9 | BT35: 9 | BU35: 9 | BV35: 9 | BW35: 9 | BX35: 9 | BY35: 9 | BZ35: 9 | CA35: 9 | CB35: 9 | CC35: 9 | CD35: 9 | CE35: 9 | CF35: 9 | CG35: 9 | CH35: 9 | CI35: 9
B36: Nano 1 | C36: 7 | D36: 7 | E36: 7 | F36: 7 | G36: 7 | H36: 7 | I36: 7 | J36: 7 | K36: 7 | L36: 7 | M36: 7 | N36: 7 | O36: 7 | P36: 7 | Q36: 7 | R36: 7 | S36: 7 | T36: 7 | U36: 7 | V36: 7 | W36: 7 | X36: 7 | Y36: 7 | Z36: 7 | AA36: 7 | AB36: 8 | AC36: 8 | AD36: 8 | AE36: 8 | AF36: 8 | AG36: 8 | AH36: 8 | AI36: 8 | AJ36: 8 | AK36: 8 | AL36: 8 | AM36: 8 | AN36: 8 | AO36: 8 | AP36: 8 | AQ36: 8 | AR36: 9 | AS36: 9 | AT36: 9 | AU36: 9 | AV36: 9 | AW36: 9 | AX36: 9 | AY36: 9 | AZ36: 9 | BA36: 9 | BB36: 9 | BC36: 9 | BD36: 10 | BE36: 10 | BF36: 10 | BG36: 10 | BH36: 10 | BI36: 10 | BJ36: 10 | BK36: 10 | BL36: 10 | BM36: 10 | BN36: 10 | BO36: 10 | BP36: 10 | BQ36: 10 | BR36: 10 | BS36: 10 | BT36: 10 | BU36: 10 | BV36: 10 | BW36: 10 | BX36: 10 | BY36: 10 | BZ36: 10 | CA36: 10 | CB36: 10 | CC36: 10 | CD36: 10 | CE36: 10 | CF36: 10 | CG36: 10 | CH36: 10 | CI36: 10
B37: Nano 2 | C37: 7 | D37: 7 | E37: 7 | F37: 7 | G37: 7 | H37: 7 | I37: 7 | J37: 7 | K37: 7 | L37: 7 | M37: 7 | N37: 7 | O37: 7 | P37: 7 | Q37: 7 | R37: 7 | S37: 7 | T37: 7 | U37: 7 | V37: 7 | W37: 7 | X37: 8 | Y37: 8 | Z37: 8 | AA37: 8 | AB37: 8 | AC37: 8 | AD37: 8 | AE37: 8 | AF37: 8 | AG37: 8 | AH37: 8 | AI37: 8 | AJ37: 8 | AK37: 8 | AL37: 8 | AM37: 8 | AN37: 8 | AO37: 9 | AP37: 9 | AQ37: 9 | AR37: 9 | AS37: 9 | AT37: 9 | AU37: 9 | AV37: 9 | AW37: 9 | AX37: 9 | AY37: 9 | AZ37: 9 | BA37: 10 | BB37: 10 | BC37: 10 | BD37: 10 | BE37: 10 | BF37: 10 | BG37: 10 | BH37: 10 | BI37: 10 | BJ37: 10 | BK37: 10 | BL37: 10 | BM37: 10 | BN37: 10 | BO37: 10 | BP37: 10 | BQ37: 10 | BR37: 10 | BS37: 10 | BT37: 10 | BU37: 10 | BV37: 10 | BW37: 10 | BX37: 10 | BY37: 10 | BZ37: 10 | CA37: 10 | CB37: 10 | CC37: 10 | CD37: 10 | CE37: 10 | CF37: 10 | CG37: 10 | CH37: 10 | CI37: 10
B38: Nano 3 | C38: 7 | D38: 7 | E38: 7 | F38: 7 | G38: 7 | H38: 7 | I38: 7 | J38: 7 | K38: 7 | L38: 7 | M38: 7 | N38: 7 | O38: 7 | P38: 7 | Q38: 7 | R38: 7 | S38: 7 | T38: 7 | U38: 8 | V38: 8 | W38: 8 | X38: 8 | Y38: 8 | Z38: 8 | AA38: 8 | AB38: 8 | AC38: 8 | AD38: 8 | AE38: 8 | AF38: 8 | AG38: 8 | AH38: 8 | AI38: 8 | AJ38: 8 | AK38: 9 | AL38: 9 | AM38: 9 | AN38: 9 | AO38: 9 | AP38: 9 | AQ38: 9 | AR38: 9 | AS38: 9 | AT38: 9 | AU38: 9 | AV38: 9 | AW38: 9 | AX38: 10 | AY38: 10 | AZ38: 10 | BA38: 10 | BB38: 10 | BC38: 10 | BD38: 10 | BE38: 10 | BF38: 10 | BG38: 10 | BH38: 10 | BI38: 11 | BJ38: 11 | BK38: 11 | BL38: 11 | BM38: 11 | BN38: 11 | BO38: 11 | BP38: 11 | BQ38: 11 | BR38: 11 | BS38: 11 | BT38: 11 | BU38: 11 | BV38: 11 | BW38: 11 | BX38: 11 | BY38: 11 | BZ38: 11 | CA38: 11 | CB38: 11 | CC38: 11 | CD38: 11 | CE38: 11 | CF38: 11 | CG38: 11 | CH38: 11 | CI38: 11
B39: Nano 4 | C39: 8 | D39: 8 | E39: 8 | F39: 8 | G39: 8 | H39: 8 | I39: 8 | J39: 8 | K39: 8 | L39: 8 | M39: 8 | N39: 8 | O39: 8 | P39: 8 | Q39: 8 | R39: 8 | S39: 8 | T39: 8 | U39: 8 | V39: 8 | W39: 8 | X39: 8 | Y39: 8 | Z39: 8 | AA39: 8 | AB39: 8 | AC39: 8 | AD39: 8 | AE39: 8 | AF39: 8 | AG39: 8 | AH39: 9 | AI39: 9 | AJ39: 9 | AK39: 9 | AL39: 9 | AM39: 9 | AN39: 9 | AO39: 9 | AP39: 9 | AQ39: 9 | AR39: 9 | AS39: 9 | AT39: 9 | AU39: 10 | AV39: 10 | AW39: 10 | AX39: 10 | AY39: 10 | AZ39: 10 | BA39: 10 | BB39: 10 | BC39: 10 | BD39: 10 | BE39: 10 | BF39: 11 | BG39: 11 | BH39: 11 | BI39: 11 | BJ39: 11 | BK39: 11 | BL39: 11 | BM39: 11 | BN39: 11 | BO39: 11 | BP39: 11 | BQ39: 11 | BR39: 11 | BS39: 11 | BT39: 11 | BU39: 11 | BV39: 11 | BW39: 11 | BX39: 11 | BY39: 11 | BZ39: 11 | CA39: 11 | CB39: 11 | CC39: 11 | CD39: 11 | CE39: 11 | CF39: 11 | CG39: 11 | CH39: 11 | CI39: 11
B40: Nano 5 | C40: 8 | D40: 8 | E40: 8 | F40: 8 | G40: 8 | H40: 8 | I40: 8 | J40: 8 | K40: 8 | L40: 8 | M40: 8 | N40: 8 | O40: 8 | P40: 8 | Q40: 8 | R40: 8 | S40: 8 | T40: 8 | U40: 8 | V40: 8 | W40: 8 | X40: 8 | Y40: 8 | Z40: 9 | AA40: 9 | AB40: 9 | AC40: 9 | AD40: 9 | AE40: 9 | AF40: 9 | AG40: 9 | AH40: 9 | AI40: 9 | AJ40: 9 | AK40: 9 | AL40: 9 | AM40: 9 | AN40: 9 | AO40: 10 | AP40: 10 | AQ40: 10 | AR40: 10 | AS40: 10 | AT40: 10 | AU40: 10 | AV40: 10 | AW40: 10 | AX40: 10 | AY40: 10 | AZ40: 11 | BA40: 11 | BB40: 11 | BC40: 11 | BD40: 11 | BE40: 11 | BF40: 11 | BG40: 11 | BH40: 11 | BI40: 12 | BJ40: 12 | BK40: 12 | BL40: 12 | BM40: 12 | BN40: 12 | BO40: 12 | BP40: 12 | BQ40: 12 | BR40: 12 | BS40: 12 | BT40: 12 | BU40: 12 | BV40: 12 | BW40: 12 | BX40: 12 | BY40: 12 | BZ40: 12 | CA40: 12 | CB40: 12 | CC40: 12 | CD40: 12 | CE40: 12 | CF40: 12 | CG40: 12 | CH40: 12 | CI40: 12
A42: Carv and Cycler | B42: Default | C42: 7 | D42: 7 | E42: 7 | F42: 7 | G42: 7 | H42: 7 | I42: 7 | J42: 7 | K42: 7 | L42: 7 | M42: 8 | N42: 8 | O42: 8 | P42: 8 | Q42: 8 | R42: 8 | S42: 8 | T42: 8 | U42: 8 | V42: 8 | W42: 8 | X42: 8 | Y42: 8 | Z42: 8 | AA42: 8 | AB42: 8 | AC42: 8 | AD42: 8 | AE42: 8 | AF42: 8 | AG42: 8 | AH42: 8 | AI42: 8 | AJ42: 8 | AK42: 8 | AL42: 8 | AM42: 8 | AN42: 8 | AO42: 8 | AP42: 8 | AQ42: 8 | AR42: 8 | AS42: 8 | AT42: 8 | AU42: 8 | AV42: 8 | AW42: 8 | AX42: 8 | AY42: 8 | AZ42: 8 | BA42: 8 | BB42: 8 | BC42: 8 | BD42: 8 | BE42: 8 | BF42: 8 | BG42: 8 | BH42: 8 | BI42: 8 | BJ42: 8 | BK42: 8 | BL42: 8 | BM42: 8 | BN42: 8 | BO42: 8 | BP42: 8 | BQ42: 8 | BR42: 8 | BS42: 8 | BT42: 8 | BU42: 8 | BV42: 8 | BW42: 8 | BX42: 8 | BY42: 8 | BZ42: 8 | CA42: 8 | CB42: 8 | CC42: 8 | CD42: 8 | CE42: 8 | CF42: 8 | CG42: 8 | CH42: 8 | CI42: 8
B43: Nano 1 | C43: 8 | D43: 8 | E43: 8 | F43: 8 | G43: 8 | H43: 8 | I43: 8 | J43: 8 | K43: 8 | L43: 8 | M43: 8 | N43: 8 | O43: 8 | P43: 8 | Q43: 8 | R43: 8 | S43: 8 | T43: 8 | U43: 8 | V43: 8 | W43: 8 | X43: 8 | Y43: 8 | Z43: 8 | AA43: 8 | AB43: 8 | AC43: 8 | AD43: 8 | AE43: 8 | AF43: 8 | AG43: 8 | AH43: 8 | AI43: 8 | AJ43: 8 | AK43: 9 | AL43: 9 | AM43: 9 | AN43: 9 | AO43: 9 | AP43: 9 | AQ43: 9 | AR43: 9 | AS43: 9 | AT43: 9 | AU43: 9 | AV43: 9 | AW43: 9 | AX43: 9 | AY43: 9 | AZ43: 9 | BA43: 9 | BB43: 9 | BC43: 9 | BD43: 9 | BE43: 9 | BF43: 9 | BG43: 9 | BH43: 9 | BI43: 9 | BJ43: 9 | BK43: 9 | BL43: 9 | BM43: 9 | BN43: 9 | BO43: 9 | BP43: 9 | BQ43: 9 | BR43: 9 | BS43: 9 | BT43: 9 | BU43: 9 | BV43: 9 | BW43: 9 | BX43: 9 | BY43: 9 | BZ43: 9 | CA43: 9 | CB43: 9 | CC43: 9 | CD43: 9 | CE43: 9 | CF43: 9 | CG43: 9 | CH43: 9 | CI43: 9
B44: Nano 2 | C44: 8 | D44: 8 | E44: 8 | F44: 8 | G44: 8 | H44: 8 | I44: 8 | J44: 8 | K44: 8 | L44: 8 | M44: 8 | N44: 8 | O44: 8 | P44: 8 | Q44: 8 | R44: 8 | S44: 8 | T44: 8 | U44: 8 | V44: 8 | W44: 8 | X44: 8 | Y44: 9 | Z44: 9 | AA44: 9 | AB44: 9 | AC44: 9 | AD44: 9 | AE44: 9 | AF44: 9 | AG44: 9 | AH44: 9 | AI44: 9 | AJ44: 9 | AK44: 9 | AL44: 9 | AM44: 9 | AN44: 9 | AO44: 9 | AP44: 9 | AQ44: 9 | AR44: 9 | AS44: 9 | AT44: 9 | AU44: 9 | AV44: 9 | AW44: 9 | AX44: 9 | AY44: 9 | AZ44: 9 | BA44: 9 | BB44: 9 | BC44: 9 | BD44: 9 | BE44: 9 | BF44: 9 | BG44: 9 | BH44: 9 | BI44: 9 | BJ44: 9 | BK44: 9 | BL44: 9 | BM44: 9 | BN44: 9 | BO44: 9 | BP44: 9 | BQ44: 9 | BR44: 9 | BS44: 9 | BT44: 9 | BU44: 9 | BV44: 9 | BW44: 9 | BX44: 9 | BY44: 9 | BZ44: 9 | CA44: 9 | CB44: 9 | CC44: 9 | CD44: 9 | CE44: 9 | CF44: 9 | CG44: 9 | CH44: 9 | CI44: 9
B45: Nano 3 | C45: 8 | D45: 8 | E45: 8 | F45: 8 | G45: 8 | H45: 8 | I45: 8 | J45: 8 | K45: 8 | L45: 8 | M45: 9 | N45: 9 | O45: 9 | P45: 9 | Q45: 9 | R45: 9 | S45: 9 | T45: 9 | U45: 9 | V45: 9 | W45: 9 | X45: 9 | Y45: 9 | Z45: 9 | AA45: 9 | AB45: 9 | AC45: 9 | AD45: 9 | AE45: 9 | AF45: 9 | AG45: 9 | AH45: 9 | AI45: 9 | AJ45: 9 | AK45: 9 | AL45: 9 | AM45: 9 | AN45: 9 | AO45: 9 | AP45: 9 | AQ45: 9 | AR45: 9 | AS45: 9 | AT45: 9 | AU45: 9 | AV45: 9 | AW45: 9 | AX45: 9 | AY45: 9 | AZ45: 9 | BA45: 9 | BB45: 9 | BC45: 9 | BD45: 9 | BE45: 9 | BF45: 9 | BG45: 9 | BH45: 9 | BI45: 10 | BJ45: 10 | BK45: 10 | BL45: 10 | BM45: 10 | BN45: 10 | BO45: 10 | BP45: 10 | BQ45: 10 | BR45: 10 | BS45: 10 | BT45: 10 | BU45: 10 | BV45: 10 | BW45: 10 | BX45: 10 | BY45: 10 | BZ45: 10 | CA45: 10 | CB45: 10 | CC45: 10 | CD45: 10 | CE45: 10 | CF45: 10 | CG45: 10 | CH45: 10 | CI45: 10
B46: Nano 4 | C46: 9 | D46: 9 | E46: 9 | F46: 9 | G46: 9 | H46: 9 | I46: 9 | J46: 9 | K46: 9 | L46: 9 | M46: 9 | N46: 9 | O46: 9 | P46: 9 | Q46: 9 | R46: 9 | S46: 9 | T46: 9 | U46: 9 | V46: 9 | W46: 9 | X46: 9 | Y46: 9 | Z46: 9 | AA46: 9 | AB46: 9 | AC46: 9 | AD46: 9 | AE46: 9 | AF46: 9 | AG46: 9 | AH46: 9 | AI46: 9 | AJ46: 9 | AK46: 9 | AL46: 9 | AM46: 9 | AN46: 9 | AO46: 9 | AP46: 9 | AQ46: 9 | AR46: 9 | AS46: 9 | AT46: 9 | AU46: 9 | AV46: 9 | AW46: 9 | AX46: 10 | AY46: 10 | AZ46: 10 | BA46: 10 | BB46: 10 | BC46: 10 | BD46: 10 | BE46: 10 | BF46: 10 | BG46: 10 | BH46: 10 | BI46: 10 | BJ46: 10 | BK46: 10 | BL46: 10 | BM46: 10 | BN46: 10 | BO46: 10 | BP46: 10 | BQ46: 10 | BR46: 10 | BS46: 10 | BT46: 10 | BU46: 10 | BV46: 10 | BW46: 10 | BX46: 10 | BY46: 10 | BZ46: 10 | CA46: 10 | CB46: 10 | CC46: 10 | CD46: 10 | CE46: 10 | CF46: 10 | CG46: 10 | CH46: 10 | CI46: 10
B47: Nano 5 | C47: 9 | D47: 9 | E47: 9 | F47: 9 | G47: 9 | H47: 9 | I47: 9 | J47: 9 | K47: 9 | L47: 9 | M47: 9 | N47: 9 | O47: 9 | P47: 9 | Q47: 9 | R47: 9 | S47: 9 | T47: 9 | U47: 9 | V47: 9 | W47: 9 | X47: 9 | Y47: 10 | Z47: 10 | AA47: 10 | AB47: 10 | AC47: 10 | AD47: 10 | AE47: 10 | AF47: 10 | AG47: 10 | AH47: 10 | AI47: 10 | AJ47: 10 | AK47: 10 | AL47: 10 | AM47: 10 | AN47: 10 | AO47: 10 | AP47: 10 | AQ47: 10 | AR47: 10 | AS47: 10 | AT47: 10 | AU47: 10 | AV47: 10 | AW47: 10 | AX47: 10 | AY47: 10 | AZ47: 10 | BA47: 10 | BB47: 10 | BC47: 10 | BD47: 10 | BE47: 10 | BF47: 10 | BG47: 10 | BH47: 10 | BI47: 10 | BJ47: 10 | BK47: 10 | BL47: 10 | BM47: 10 | BN47: 10 | BO47: 10 | BP47: 10 | BQ47: 10 | BR47: 10 | BS47: 10 | BT47: 10 | BU47: 10 | BV47: 10 | BW47: 10 | BX47: 10 | BY47: 10 | BZ47: 10 | CA47: 10 | CB47: 10 | CC47: 10 | CD47: 10 | CE47: 10 | CF47: 10 | CG47: 10 | CH47: 10 | CI47: 10
A49: TAR, H-V45, GR-22, TRAC 5, Solstice | B49: Default | C49: 7 | D49: 7 | E49: 7 | F49: 7 | G49: 7 | H49: 7 | I49: 7 | J49: 7 | K49: 7 | L49: 7 | M49: 7 | N49: 7 | O49: 7 | P49: 7 | Q49: 7 | R49: 8 | S49: 8 | T49: 8 | U49: 8 | V49: 8 | W49: 8 | X49: 8 | Y49: 8 | Z49: 8 | AA49: 8 | AB49: 8 | AC49: 8 | AD49: 8 | AE49: 8 | AF49: 8 | AG49: 8 | AH49: 8 | AI49: 8 | AJ49: 8 | AK49: 8 | AL49: 8 | AM49: 8 | AN49: 8 | AO49: 8 | AP49: 8 | AQ49: 8 | AR49: 9 | AS49: 9 | AT49: 9 | AU49: 9 | AV49: 9 | AW49: 9 | AX49: 9 | AY49: 9 | AZ49: 9 | BA49: 9 | BB49: 9 | BC49: 9 | BD49: 9 | BE49: 9 | BF49: 9 | BG49: 9 | BH49: 9 | BI49: 9 | BJ49: 9 | BK49: 9 | BL49: 9 | BM49: 9 | BN49: 9 | BO49: 9 | BP49: 9 | BQ49: 9 | BR49: 9 | BS49: 9 | BT49: 9 | BU49: 9 | BV49: 9 | BW49: 9 | BX49: 9 | BY49: 9 | BZ49: 9 | CA49: 9 | CB49: 9 | CC49: 9 | CD49: 9 | CE49: 9 | CF49: 9 | CG49: 9 | CH49: 9 | CI49: 9
B50: Nano 1 | C50: 8 | D50: 8 | E50: 8 | F50: 8 | G50: 8 | H50: 8 | I50: 8 | J50: 8 | K50: 8 | L50: 8 | M50: 8 | N50: 8 | O50: 8 | P50: 8 | Q50: 8 | R50: 8 | S50: 8 | T50: 8 | U50: 8 | V50: 8 | W50: 8 | X50: 8 | Y50: 8 | Z50: 8 | AA50: 8 | AB50: 8 | AC50: 9 | AD50: 9 | AE50: 9 | AF50: 9 | AG50: 9 | AH50: 9 | AI50: 9 | AJ50: 9 | AK50: 9 | AL50: 9 | AM50: 9 | AN50: 9 | AO50: 9 | AP50: 9 | AQ50: 9 | AR50: 9 | AS50: 9 | AT50: 9 | AU50: 9 | AV50: 9 | AW50: 9 | AX50: 9 | AY50: 10 | AZ50: 10 | BA50: 10 | BB50: 10 | BC50: 10 | BD50: 10 | BE50: 10 | BF50: 10 | BG50: 10 | BH50: 10 | BI50: 10 | BJ50: 10 | BK50: 10 | BL50: 10 | BM50: 10 | BN50: 10 | BO50: 10 | BP50: 10 | BQ50: 10 | BR50: 10 | BS50: 10 | BT50: 10 | BU50: 10 | BV50: 10 | BW50: 10 | BX50: 10 | BY50: 10 | BZ50: 10 | CA50: 10 | CB50: 10 | CC50: 10 | CD50: 10 | CE50: 10 | CF50: 10 | CG50: 10 | CH50: 10 | CI50: 10
B51: Nano 2 | C51: 8 | D51: 8 | E51: 8 | F51: 8 | G51: 8 | H51: 8 | I51: 8 | J51: 8 | K51: 8 | L51: 8 | M51: 8 | N51: 8 | O51: 8 | P51: 8 | Q51: 8 | R51: 8 | S51: 8 | T51: 8 | U51: 8 | V51: 8 | W51: 9 | X51: 9 | Y51: 9 | Z51: 9 | AA51: 9 | AB51: 9 | AC51: 9 | AD51: 9 | AE51: 9 | AF51: 9 | AG51: 9 | AH51: 9 | AI51: 9 | AJ51: 9 | AK51: 9 | AL51: 9 | AM51: 9 | AN51: 9 | AO51: 9 | AP51: 9 | AQ51: 9 | AR51: 9 | AS51: 9 | AT51: 10 | AU51: 10 | AV51: 10 | AW51: 10 | AX51: 10 | AY51: 10 | AZ51: 10 | BA51: 10 | BB51: 10 | BC51: 10 | BD51: 10 | BE51: 10 | BF51: 10 | BG51: 10 | BH51: 10 | BI51: 10 | BJ51: 10 | BK51: 10 | BL51: 10 | BM51: 10 | BN51: 10 | BO51: 10 | BP51: 10 | BQ51: 10 | BR51: 10 | BS51: 10 | BT51: 10 | BU51: 10 | BV51: 10 | BW51: 10 | BX51: 10 | BY51: 10 | BZ51: 10 | CA51: 10 | CB51: 10 | CC51: 10 | CD51: 10 | CE51: 10 | CF51: 10 | CG51: 10 | CH51: 10 | CI51: 10
B52: Nano 3 | C52: 8 | D52: 8 | E52: 8 | F52: 8 | G52: 8 | H52: 8 | I52: 8 | J52: 8 | K52: 8 | L52: 8 | M52: 8 | N52: 8 | O52: 8 | P52: 8 | Q52: 8 | R52: 9 | S52: 9 | T52: 9 | U52: 9 | V52: 9 | W52: 9 | X52: 9 | Y52: 9 | Z52: 9 | AA52: 9 | AB52: 9 | AC52: 9 | AD52: 9 | AE52: 9 | AF52: 9 | AG52: 9 | AH52: 9 | AI52: 9 | AJ52: 9 | AK52: 9 | AL52: 9 | AM52: 9 | AN52: 9 | AO52: 10 | AP52: 10 | AQ52: 10 | AR52: 10 | AS52: 10 | AT52: 10 | AU52: 10 | AV52: 10 | AW52: 10 | AX52: 10 | AY52: 10 | AZ52: 10 | BA52: 10 | BB52: 10 | BC52: 10 | BD52: 10 | BE52: 10 | BF52: 10 | BG52: 11 | BH52: 11 | BI52: 11 | BJ52: 11 | BK52: 11 | BL52: 11 | BM52: 11 | BN52: 11 | BO52: 11 | BP52: 11 | BQ52: 11 | BR52: 11 | BS52: 11 | BT52: 11 | BU52: 11 | BV52: 11 | BW52: 11 | BX52: 11 | BY52: 11 | BZ52: 11 | CA52: 11 | CB52: 11 | CC52: 11 | CD52: 11 | CE52: 11 | CF52: 11 | CG52: 11 | CH52: 11 | CI52: 11
B53: Nano 4 | C53: 9 | D53: 9 | E53: 9 | F53: 9 | G53: 9 | H53: 9 | I53: 9 | J53: 9 | K53: 9 | L53: 9 | M53: 9 | N53: 9 | O53: 9 | P53: 9 | Q53: 9 | R53: 9 | S53: 9 | T53: 9 | U53: 9 | V53: 9 | W53: 9 | X53: 9 | Y53: 9 | Z53: 9 | AA53: 9 | AB53: 9 | AC53: 9 | AD53: 9 | AE53: 9 | AF53: 9 | AG53: 9 | AH53: 9 | AI53: 10 | AJ53: 10 | AK53: 10 | AL53: 10 | AM53: 10 | AN53: 10 | AO53: 10 | AP53: 10 | AQ53: 10 | AR53: 10 | AS53: 10 | AT53: 10 | AU53: 10 | AV53: 10 | AW53: 10 | AX53: 10 | AY53: 10 | AZ53: 10 | BA53: 10 | BB53: 11 | BC53: 11 | BD53: 11 | BE53: 11 | BF53: 11 | BG53: 11 | BH53: 11 | BI53: 11 | BJ53: 11 | BK53: 11 | BL53: 11 | BM53: 11 | BN53: 11 | BO53: 11 | BP53: 11 | BQ53: 11 | BR53: 11 | BS53: 11 | BT53: 11 | BU53: 11 | BV53: 11 | BW53: 11 | BX53: 11 | BY53: 11 | BZ53: 11 | CA53: 11 | CB53: 11 | CC53: 11 | CD53: 11 | CE53: 11 | CF53: 11 | CG53: 11 | CH53: 11 | CI53: 11
B54: Nano 5 | C54: 9 | D54: 9 | E54: 9 | F54: 9 | G54: 9 | H54: 9 | I54: 9 | J54: 9 | K54: 9 | L54: 9 | M54: 9 | N54: 9 | O54: 9 | P54: 9 | Q54: 9 | R54: 9 | S54: 9 | T54: 9 | U54: 9 | V54: 9 | W54: 10 | X54: 10 | Y54: 10 | Z54: 10 | AA54: 10 | AB54: 10 | AC54: 10 | AD54: 10 | AE54: 10 | AF54: 10 | AG54: 10 | AH54: 10 | AI54: 10 | AJ54: 10 | AK54: 10 | AL54: 10 | AM54: 10 | AN54: 10 | AO54: 10 | AP54: 10 | AQ54: 10 | AR54: 11 | AS54: 11 | AT54: 11 | AU54: 11 | AV54: 11 | AW54: 11 | AX54: 11 | AY54: 11 | AZ54: 11 | BA54: 11 | BB54: 11 | BC54: 11 | BD54: 11 | BE54: 11 | BF54: 11 | BG54: 11 | BH54: 12 | BI54: 12 | BJ54: 12 | BK54: 12 | BL54: 12 | BM54: 12 | BN54: 12 | BO54: 12 | BP54: 12 | BQ54: 12 | BR54: 12 | BS54: 12 | BT54: 12 | BU54: 12 | BV54: 12 | BW54: 12 | BX54: 12 | BY54: 12 | BZ54: 12 | CA54: 12 | CB54: 12 | CC54: 12 | CD54: 12 | CE54: 12 | CF54: 12 | CG54: 12 | CH54: 12 | CI54: 12
A56: GD-7F and Serpent | B56: Default | C56: 7 | D56: 7 | E56: 7 | F56: 7 | G56: 7 | H56: 7 | I56: 7 | J56: 7 | K56: 7 | L56: 7 | M56: 7 | N56: 7 | O56: 7 | P56: 7 | Q56: 7 | R56: 8 | S56: 8 | T56: 8 | U56: 8 | V56: 8 | W56: 8 | X56: 8 | Y56: 8 | Z56: 8 | AA56: 8 | AB56: 8 | AC56: 8 | AD56: 8 | AE56: 8 | AF56: 8 | AG56: 8 | AH56: 8 | AI56: 8 | AJ56: 9 | AK56: 9 | AL56: 9 | AM56: 9 | AN56: 9 | AO56: 9 | AP56: 9 | AQ56: 9 | AR56: 9 | AS56: 9 | AT56: 9 | AU56: 9 | AV56: 9 | AW56: 9 | AX56: 9 | AY56: 10 | AZ56: 10 | BA56: 10 | BB56: 10 | BC56: 10 | BD56: 10 | BE56: 10 | BF56: 10 | BG56: 10 | BH56: 10 | BI56: 10 | BJ56: 10 | BK56: 10 | BL56: 10 | BM56: 10 | BN56: 10 | BO56: 10 | BP56: 10 | BQ56: 10 | BR56: 10 | BS56: 10 | BT56: 10 | BU56: 10 | BV56: 10 | BW56: 10 | BX56: 10 | BY56: 10 | BZ56: 10 | CA56: 10 | CB56: 10 | CC56: 10 | CD56: 10 | CE56: 10 | CF56: 10 | CG56: 10 | CH56: 10 | CI56: 10
B57: Nano 1 | C57: 8 | D57: 8 | E57: 8 | F57: 8 | G57: 8 | H57: 8 | I57: 8 | J57: 8 | K57: 8 | L57: 8 | M57: 8 | N57: 8 | O57: 8 | P57: 8 | Q57: 8 | R57: 8 | S57: 8 | T57: 8 | U57: 8 | V57: 8 | W57: 8 | X57: 8 | Y57: 8 | Z57: 9 | AA57: 9 | AB57: 9 | AC57: 9 | AD57: 9 | AE57: 9 | AF57: 9 | AG57: 9 | AH57: 9 | AI57: 9 | AJ57: 9 | AK57: 9 | AL57: 9 | AM57: 9 | AN57: 9 | AO57: 10 | AP57: 10 | AQ57: 10 | AR57: 10 | AS57: 10 | AT57: 10 | AU57: 10 | AV57: 10 | AW57: 10 | AX57: 10 | AY57: 10 | AZ57: 10 | BA57: 10 | BB57: 11 | BC57: 11 | BD57: 11 | BE57: 11 | BF57: 11 | BG57: 11 | BH57: 11 | BI57: 11 | BJ57: 11 | BK57: 11 | BL57: 11 | BM57: 11 | BN57: 11 | BO57: 11 | BP57: 11 | BQ57: 11 | BR57: 11 | BS57: 11 | BT57: 11 | BU57: 11 | BV57: 11 | BW57: 11 | BX57: 11 | BY57: 11 | BZ57: 11 | CA57: 11 | CB57: 11 | CC57: 11 | CD57: 11 | CE57: 11 | CF57: 11 | CG57: 11 | CH57: 11 | CI57: 11
B58: Nano 2 | C58: 8 | D58: 8 | E58: 8 | F58: 8 | G58: 8 | H58: 8 | I58: 8 | J58: 8 | K58: 8 | L58: 8 | M58: 8 | N58: 8 | O58: 8 | P58: 8 | Q58: 8 | R58: 8 | S58: 8 | T58: 8 | U58: 8 | V58: 9 | W58: 9 | X58: 9 | Y58: 9 | Z58: 9 | AA58: 9 | AB58: 9 | AC58: 9 | AD58: 9 | AE58: 9 | AF58: 9 | AG58: 9 | AH58: 9 | AI58: 9 | AJ58: 9 | AK58: 9 | AL58: 10 | AM58: 10 | AN58: 10 | AO58: 10 | AP58: 10 | AQ58: 10 | AR58: 10 | AS58: 10 | AT58: 10 | AU58: 10 | AV58: 10 | AW58: 10 | AX58: 10 | AY58: 11 | AZ58: 11 | BA58: 11 | BB58: 11 | BC58: 11 | BD58: 11 | BE58: 11 | BF58: 11 | BG58: 11 | BH58: 11 | BI58: 12 | BJ58: 12 | BK58: 12 | BL58: 12 | BM58: 12 | BN58: 12 | BO58: 12 | BP58: 12 | BQ58: 12 | BR58: 12 | BS58: 12 | BT58: 12 | BU58: 12 | BV58: 12 | BW58: 12 | BX58: 12 | BY58: 12 | BZ58: 12 | CA58: 12 | CB58: 12 | CC58: 12 | CD58: 12 | CE58: 12 | CF58: 12 | CG58: 12 | CH58: 12 | CI58: 12
B59: Nano 3 | C59: 8 | D59: 8 | E59: 8 | F59: 8 | G59: 8 | H59: 8 | I59: 8 | J59: 8 | K59: 8 | L59: 8 | M59: 8 | N59: 8 | O59: 8 | P59: 8 | Q59: 8 | R59: 9 | S59: 9 | T59: 9 | U59: 9 | V59: 9 | W59: 9 | X59: 9 | Y59: 9 | Z59: 9 | AA59: 9 | AB59: 9 | AC59: 9 | AD59: 9 | AE59: 9 | AF59: 9 | AG59: 9 | AH59: 10 | AI59: 10 | AJ59: 10 | AK59: 10 | AL59: 10 | AM59: 10 | AN59: 10 | AO59: 10 | AP59: 10 | AQ59: 10 | AR59: 10 | AS59: 10 | AT59: 10 | AU59: 10 | AV59: 11 | AW59: 11 | AX59: 11 | AY59: 11 | AZ59: 11 | BA59: 11 | BB59: 11 | BC59: 11 | BD59: 11 | BE59: 11 | BF59: 12 | BG59: 12 | BH59: 12 | BI59: 12 | BJ59: 12 | BK59: 12 | BL59: 12 | BM59: 12 | BN59: 12 | BO59: 12 | BP59: 12 | BQ59: 12 | BR59: 12 | BS59: 12 | BT59: 12 | BU59: 12 | BV59: 12 | BW59: 12 | BX59: 12 | BY59: 12 | BZ59: 12 | CA59: 12 | CB59: 12 | CC59: 12 | CD59: 12 | CE59: 12 | CF59: 12 | CG59: 12 | CH59: 12 | CI59: 12
B60: Nano 4 | C60: 9 | D60: 9 | E60: 9 | F60: 9 | G60: 9 | H60: 9 | I60: 9 | J60: 9 | K60: 9 | L60: 9 | M60: 9 | N60: 9 | O60: 9 | P60: 9 | Q60: 9 | R60: 9 | S60: 9 | T60: 9 | U60: 9 | V60: 9 | W60: 9 | X60: 9 | Y60: 9 | Z60: 9 | AA60: 9 | AB60: 9 | AC60: 9 | AD60: 10 | AE60: 10 | AF60: 10 | AG60: 10 | AH60: 10 | AI60: 10 | AJ60: 10 | AK60: 10 | AL60: 10 | AM60: 10 | AN60: 10 | AO60: 10 | AP60: 10 | AQ60: 10 | AR60: 11 | AS60: 11 | AT60: 11 | AU60: 11 | AV60: 11 | AW60: 11 | AX60: 11 | AY60: 11 | AZ60: 11 | BA60: 11 | BB60: 11 | BC60: 12 | BD60: 12 | BE60: 12 | BF60: 12 | BG60: 12 | BH60: 12 | BI60: 12 | BJ60: 12 | BK60: 12 | BL60: 12 | BM60: 12 | BN60: 12 | BO60: 12 | BP60: 12 | BQ60: 12 | BR60: 12 | BS60: 12 | BT60: 12 | BU60: 12 | BV60: 12 | BW60: 12 | BX60: 12 | BY60: 12 | BZ60: 12 | CA60: 12 | CB60: 12 | CC60: 12 | CD60: 12 | CE60: 12 | CF60: 12 | CG60: 12 | CH60: 12 | CI60: 12
B61: Nano 5 | C61: 9 | D61: 9 | E61: 9 | F61: 9 | G61: 9 | H61: 9 | I61: 9 | J61: 9 | K61: 9 | L61: 9 | M61: 9 | N61: 9 | O61: 9 | P61: 9 | Q61: 9 | R61: 9 | S61: 9 | T61: 9 | U61: 9 | V61: 10 | W61: 10 | X61: 10 | Y61: 10 | Z61: 10 | AA61: 10 | AB61: 10 | AC61: 10 | AD61: 10 | AE61: 10 | AF61: 10 | AG61: 10 | AH61: 10 | AI61: 10 | AJ61: 11 | AK61: 11 | AL61: 11 | AM61: 11 | AN61: 11 | AO61: 11 | AP61: 11 | AQ61: 11 | AR61: 11 | AS61: 11 | AT61: 11 | AU61: 11 | AV61: 12 | AW61: 12 | AX61: 12 | AY61: 12 | AZ61: 12 | BA61: 12 | BB61: 12 | BC61: 12 | BD61: 12 | BE61: 12 | BF61: 13 | BG61: 13 | BH61: 13 | BI61: 13 | BJ61: 13 | BK61: 13 | BL61: 13 | BM61: 13 | BN61: 13 | BO61: 13 | BP61: 13 | BQ61: 13 | BR61: 13 | BS61: 13 | BT61: 13 | BU61: 13 | BV61: 13 | BW61: 13 | BX61: 13 | BY61: 13 | BZ61: 13 | CA61: 13 | CB61: 13 | CC61: 13 | CD61: 13 | CE61: 13 | CF61: 13 | CG61: 13 | CH61: 13 | CI61: 13
A63: 2nd gen SMGs | B63: Default | C63: 8 | D63: 8 | E63: 8 | F63: 8 | G63: 8 | H63: 8 | I63: 8 | J63: 8 | K63: 8 | L63: 8 | M63: 8 | N63: 8 | O63: 9 | P63: 9 | Q63: 9 | R63: 9 | S63: 9 | T63: 9 | U63: 9 | V63: 9 | W63: 9 | X63: 9 | Y63: 10 | Z63: 10 | AA63: 10 | AB63: 10 | AC63: 10 | AD63: 10 | AE63: 10 | AF63: 10 | AG63: 11 | AH63: 11 | AI63: 11 | AJ63: 11 | AK63: 11 | AL63: 11 | AM63: 12 | AN63: 12 | AO63: 12 | AP63: 12 | AQ63: 12 | AR63: 12 | AS63: 12 | AT63: 12 | AU63: 12 | AV63: 12 | AW63: 12 | AX63: 12 | AY63: 12 | AZ63: 12 | BA63: 12 | BB63: 12 | BC63: 12 | BD63: 12 | BE63: 12 | BF63: 12 | BG63: 12 | BH63: 12 | BI63: 12 | BJ63: 12 | BK63: 12 | BL63: 12 | BM63: 12 | BN63: 12 | BO63: 12 | BP63: 12 | BQ63: 12 | BR63: 12 | BS63: 12 | BT63: 12 | BU63: 12 | BV63: 12 | BW63: 12 | BX63: 12 | BY63: 12 | BZ63: 12 | CA63: 12 | CB63: 12 | CC63: 12 | CD63: 12 | CE63: 12 | CF63: 12 | CG63: 12 | CH63: 12 | CI63: 12
B64: Nano 1 | C64: 9 | D64: 9 | E64: 9 | F64: 9 | G64: 9 | H64: 9 | I64: 9 | J64: 9 | K64: 9 | L64: 9 | M64: 9 | N64: 9 | O64: 9 | P64: 9 | Q64: 9 | R64: 10 | S64: 10 | T64: 10 | U64: 10 | V64: 10 | W64: 10 | X64: 10 | Y64: 10 | Z64: 10 | AA64: 11 | AB64: 11 | AC64: 11 | AD64: 11 | AE64: 11 | AF64: 11 | AG64: 11 | AH64: 12 | AI64: 12 | AJ64: 12 | AK64: 12 | AL64: 12 | AM64: 12 | AN64: 13 | AO64: 13 | AP64: 13 | AQ64: 13 | AR64: 13 | AS64: 13 | AT64: 13 | AU64: 13 | AV64: 13 | AW64: 13 | AX64: 13 | AY64: 13 | AZ64: 13 | BA64: 13 | BB64: 13 | BC64: 13 | BD64: 13 | BE64: 13 | BF64: 13 | BG64: 13 | BH64: 13 | BI64: 13 | BJ64: 13 | BK64: 13 | BL64: 13 | BM64: 13 | BN64: 13 | BO64: 13 | BP64: 13 | BQ64: 13 | BR64: 13 | BS64: 13 | BT64: 13 | BU64: 13 | BV64: 13 | BW64: 13 | BX64: 13 | BY64: 13 | BZ64: 13 | CA64: 13 | CB64: 13 | CC64: 13 | CD64: 13 | CE64: 13 | CF64: 13 | CG64: 13 | CH64: 13 | CI64: 13
B65: Nano 2 | C65: 9 | D65: 9 | E65: 9 | F65: 9 | G65: 9 | H65: 9 | I65: 9 | J65: 9 | K65: 9 | L65: 9 | M65: 9 | N65: 9 | O65: 9 | P65: 10 | Q65: 10 | R65: 10 | S65: 10 | T65: 10 | U65: 10 | V65: 10 | W65: 10 | X65: 10 | Y65: 11 | Z65: 11 | AA65: 11 | AB65: 11 | AC65: 11 | AD65: 11 | AE65: 11 | AF65: 12 | AG65: 12 | AH65: 12 | AI65: 12 | AJ65: 12 | AK65: 12 | AL65: 13 | AM65: 13 | AN65: 13 | AO65: 13 | AP65: 13 | AQ65: 14 | AR65: 14 | AS65: 14 | AT65: 14 | AU65: 14 | AV65: 14 | AW65: 14 | AX65: 14 | AY65: 14 | AZ65: 14 | BA65: 14 | BB65: 14 | BC65: 14 | BD65: 14 | BE65: 14 | BF65: 14 | BG65: 14 | BH65: 14 | BI65: 14 | BJ65: 14 | BK65: 14 | BL65: 14 | BM65: 14 | BN65: 14 | BO65: 14 | BP65: 14 | BQ65: 14 | BR65: 14 | BS65: 14 | BT65: 14 | BU65: 14 | BV65: 14 | BW65: 14 | BX65: 14 | BY65: 14 | BZ65: 14 | CA65: 14 | CB65: 14 | CC65: 14 | CD65: 14 | CE65: 14 | CF65: 14 | CG65: 14 | CH65: 14 | CI65: 14
B66: Nano 3 | C66: 10 | D66: 10 | E66: 10 | F66: 10 | G66: 10 | H66: 10 | I66: 10 | J66: 10 | K66: 10 | L66: 10 | M66: 10 | N66: 10 | O66: 10 | P66: 10 | Q66: 10 | R66: 10 | S66: 10 | T66: 10 | U66: 10 | V66: 11 | W66: 11 | X66: 11 | Y66: 11 | Z66: 11 | AA66: 11 | AB66: 11 | AC66: 11 | AD66: 12 | AE66: 12 | AF66: 12 | AG66: 12 | AH66: 12 | AI66: 12 | AJ66: 13 | AK66: 13 | AL66: 13 | AM66: 13 | AN66: 13 | AO66: 13 | AP66: 14 | AQ66: 14 | AR66: 14 | AS66: 14 | AT66: 14 | AU66: 14 | AV66: 14 | AW66: 14 | AX66: 14 | AY66: 14 | AZ66: 14 | BA66: 14 | BB66: 14 | BC66: 14 | BD66: 14 | BE66: 14 | BF66: 14 | BG66: 14 | BH66: 14 | BI66: 14 | BJ66: 14 | BK66: 14 | BL66: 14 | BM66: 14 | BN66: 14 | BO66: 14 | BP66: 14 | BQ66: 14 | BR66: 14 | BS66: 14 | BT66: 14 | BU66: 14 | BV66: 14 | BW66: 14 | BX66: 14 | BY66: 14 | BZ66: 14 | CA66: 14 | CB66: 14 | CC66: 14 | CD66: 14 | CE66: 14 | CF66: 14 | CG66: 14 | CH66: 14 | CI66: 14
B67: Nano 4 | C67: 10 | D67: 10 | E67: 10 | F67: 10 | G67: 10 | H67: 10 | I67: 10 | J67: 10 | K67: 10 | L67: 10 | M67: 10 | N67: 10 | O67: 10 | P67: 10 | Q67: 10 | R67: 10 | S67: 10 | T67: 11 | U67: 11 | V67: 11 | W67: 11 | X67: 11 | Y67: 11 | Z67: 11 | AA67: 11 | AB67: 12 | AC67: 12 | AD67: 12 | AE67: 12 | AF67: 12 | AG67: 12 | AH67: 13 | AI67: 13 | AJ67: 13 | AK67: 13 | AL67: 13 | AM67: 13 | AN67: 14 | AO67: 14 | AP67: 14 | AQ67: 14 | AR67: 15 | AS67: 15 | AT67: 15 | AU67: 15 | AV67: 15 | AW67: 15 | AX67: 15 | AY67: 15 | AZ67: 15 | BA67: 15 | BB67: 15 | BC67: 15 | BD67: 15 | BE67: 15 | BF67: 15 | BG67: 15 | BH67: 15 | BI67: 15 | BJ67: 15 | BK67: 15 | BL67: 15 | BM67: 15 | BN67: 15 | BO67: 15 | BP67: 15 | BQ67: 15 | BR67: 15 | BS67: 15 | BT67: 15 | BU67: 15 | BV67: 15 | BW67: 15 | BX67: 15 | BY67: 15 | BZ67: 15 | CA67: 15 | CB67: 15 | CC67: 15 | CD67: 15 | CE67: 15 | CF67: 15 | CG67: 15 | CH67: 15 | CI67: 15
B68: Nano 5 | C68: 10 | D68: 10 | E68: 10 | F68: 10 | G68: 10 | H68: 10 | I68: 10 | J68: 10 | K68: 10 | L68: 10 | M68: 10 | N68: 10 | O68: 11 | P68: 11 | Q68: 11 | R68: 11 | S68: 11 | T68: 11 | U68: 11 | V68: 11 | W68: 12 | X68: 12 | Y68: 12 | Z68: 12 | AA68: 12 | AB68: 12 | AC68: 12 | AD68: 13 | AE68: 13 | AF68: 13 | AG68: 13 | AH68: 13 | AI68: 13 | AJ68: 14 | AK68: 14 | AL68: 14 | AM68: 14 | AN68: 14 | AO68: 15 | AP68: 15 | AQ68: 15 | AR68: 15 | AS68: 15 | AT68: 15 | AU68: 15 | AV68: 15 | AW68: 15 | AX68: 15 | AY68: 15 | AZ68: 15 | BA68: 15 | BB68: 15 | BC68: 15 | BD68: 15 | BE68: 15 | BF68: 15 | BG68: 15 | BH68: 15 | BI68: 15 | BJ68: 15 | BK68: 15 | BL68: 15 | BM68: 15 | BN68: 15 | BO68: 15 | BP68: 15 | BQ68: 15 | BR68: 15 | BS68: 15 | BT68: 15 | BU68: 15 | BV68: 15 | BW68: 15 | BX68: 15 | BY68: 15 | BZ68: 15 | CA68: 15 | CB68: 15 | CC68: 15 | CD68: 15 | CE68: 15 | CF68: 15 | CG68: 15 | CH68: 15 | CI68: 15
B70: Damage models
B73: Common weapon damage models | C73: Max dmg | D73: Max dmg rng | E73: Min dmg | F73: Min dmg rng
B74: Gauss SAW and Reaper DMR | C74: 200 | D74: 10 | E74: 167 | F74: 85
B75: ACX-11 | C75: 200 | D75: 10 | E75: 143 | F75: 80
B76: Gauss Rifle | C76: 167 | D76: 10 | E76: 143 | F76: 75
B77: Mercenary | C77: 167 | D77: 10 | E77: 125 | F77: 70
B78: Bandit | C78: 167 | D78: 15 | E78: 112 | F78: 60
B79: Carv and Cycler | C79: 143 | D79: 10 | E79: 125 | F79: 65
B80: TAR, H-V45, GR-22, TRAC 5, Solstice | C80: 143 | D80: 15 | E80: 112 | F80: 60
B82: GD-7F and Serpent | C82: 143 | D82: 15 | E82: 100 | F82: 60
B84: 2nd gen SMGs | C84: 125 | D84: 12 | E84: 84 | F84: 42

Sheet Shotguns
A2: Starting CoF | B2: 0.1
A3: Pellet Spread | B3: 2.5
A4: Max Damage | B4: 100
A5: Max Damage Range | B5: 10
A6: Min Damage | B6: 60
A7: Min Damage Range | B7: 30
A8: Pellet Count | B8: 7
A9: CoF Bloom | B9: 0.5
A10: Target Health | B10: 1000
A13: Standard CoFs:
A14: Crouch ADS Still | B14: 0.1
A15: Crouch ADS Move | B15: 0.35
A16: Stand ADS Still | B16: 0.1
A17: Stand ADS Move | B17: 0.9
A18: Crouch Hip Still | B18: 1
A19: Crouch Hip Move | B19: 1.5
A20: Stand Hip Still | B20: 1.5
A21: Stand Hip Move | B21: 2
A22: Jump | B22: 6
A23: CoF Bloom | B23: 0.5
A27: Standar Pellet Spreads
A28: Jackhammer, Baron | B28: 2.5
A29: 1st gen pumps, default shotties | B29: 3
A30: 2ng pumps, high capacity shotties | B30: 3.5
A31: Full auto shotties | B31: 4

Sheet CoF
B2: Crouch | D2: Stand | F2: Maximum | G2: Sprint | H2: Jump | I2: Bloom per Shot
B3: Still | C3: Move | D3: Still | E3: Move
A4: Hip | B4: 1 | C4: 1.5 | D4: 1.5 | E4: 2 | F4: 7 | G4: 5 | H4: 7 | I4: 0.1
A5: ADS | B5: 0.1 | C5: 0.2 | D5: 0.1 | E5: 0.3 | F5: 3 | G5: N/A | H5: N/A | I5: 0.05

Sheet Nanoweave Armor #3
B1: Range, m | C1: 1 | D1: 2 | E1: 3 | F1: 4 | G1: 5 | H1: 6 | I1: 7 | J1: 8 | K1: 9 | L1: 10 | M1: 11 | N1: 12 | O1: 13 | P1: 14 | Q1: 15 | R1: 16 | S1: 17 | T1: 18 | U1: 19 | V1: 20 | W1: Total
Y2: Sum
A3: Gauss SAW and Reaper DMR | B3: Nano 1 | C3: 1 | D3: 1 | E3: 1 | F3: 1 | G3: 1 | H3: 1 | I3: 1 | J3: 1 | K3: 1 | L3: 1 | M3: 0 | N3: 0 | O3: 0 | P3: 0 | Q3: 0 | R3: 0 | S3: 0 | T3: 0 | U3: 0 | V3: 0 | W3: =COUNTIF(C3:V3,"1") -> 10 | Y3: =SUM(W3,W9,W15,W21,W27,W33,W39,W45,W51) -> 112 | Z3: =Y3/9 -> 12.44444444 | AA3: =Z3/20 -> 0.6222222222
B4: Nano 2 | C4: 0 | D4: 0 | E4: 0 | F4: 0 | G4: 0 | H4: 0 | I4: 0 | J4: 0 | K4: 0 | L4: 0 | M4: 0 | N4: 0 | O4: 0 | P4: 0 | Q4: 0 | R4: 0 | S4: 0 | T4: 0 | U4: 0 | V4: 0 | W4: =COUNTIF(C4:V4,"1") -> 0 | Y4: =SUM(W4,W10,W16,W22,W28,W34,W40,W46,W52) -> 3 | Z4: =Y4/9 -> 0.3333333333 | AA4: =Z4/20 -> 0.01666666667
B5: Nano 3 | C5: 0 | D5: 0 | E5: 0 | F5: 0 | G5: 0 | H5: 0 | I5: 0 | J5: 0 | K5: 0 | L5: 0 | M5: 0 | N5: 0 | O5: 0 | P5: 0 | Q5: 0 | R5: 0 | S5: 0 | T5: 0 | U5: 0 | V5: 0 | W5: 0 | Y5: =SUM(W5,W11,W17,W23,W29,W35,W41,W47,W53) -> 40 | Z5: 4.444444444 | AA5: 0.2222222222
B6: Nano 4 | C6: 0 | D6: 0 | E6: 0 | F6: 0 | G6: 0 | H6: 0 | I6: 0 | J6: 0 | K6: 0 | L6: 0 | M6: 0 | N6: 0 | O6: 0 | P6: 0 | Q6: 0 | R6: 0 | S6: 0 | T6: 0 | U6: 1 | V6: 1 | W6: 2 | Y6: =SUM(W6,W12,W18,W24,W30,W36,W42,W48,W54) -> 103 | Z6: 11.44444444 | AA6: 0.5722222222
B7: Nano 5 | C7: 1 | D7: 1 | E7: 1 | F7: 1 | G7: 1 | H7: 1 | I7: 1 | J7: 1 | K7: 1 | L7: 1 | M7: 1 | N7: 1 | O7: 1 | P7: 1 | Q7: 1 | R7: 1 | S7: 1 | T7: 1 | U7: 0 | V7: 0 | W7: 18 | Y7: =SUM(W7,W13,W19,W25,W31,W37,W43,W49,W55) -> 38 | Z7: 4.222222222 | AA7: 0.2111111111
A9: ACX-11 | B9: Nano 1 | C9: 1 | D9: 1 | E9: 1 | F9: 1 | G9: 1 | H9: 1 | I9: 1 | J9: 1 | K9: 1 | L9: 1 | M9: 0 | N9: 0 | O9: 0 | P9: 0 | Q9: 0 | R9: 0 | S9: 0 | T9: 0 | U9: 0 | V9: 0 | W9: =COUNTIF(C9:V9,"1") -> 10
B10: Nano 2 | C10: 0 | D10: 0 | E10: 0 | F10: 0 | G10: 0 | H10: 0 | I10: 0 | J10: 0 | K10: 0 | L10: 0 | M10: 0 | N10: 0 | O10: 0 | P10: 0 | Q10: 0 | R10: 0 | S10: 0 | T10: 0 | U10: 0 | V10: 0 | W10: =COUNTIF(C10:V10,"1") -> 0
B11: Nano 3 | C11: 0 | D11: 0 | E11: 0 | F11: 0 | G11: 0 | H11: 0 | I11: 0 | J11: 0 | K11: 0 | L11: 0 | M11: 0 | N11: 0 | O11: 0 | P11: 0 | Q11: 0 | R11: 0 | S11: 0 | T11: 0 | U11: 0 | V11: 0 | W11: 0
B12: Nano 4 | C12: 0 | D12: 0 | E12: 0 | F12: 0 | G12: 0 | H12: 0 | I12: 0 | J12: 0 | K12: 0 | L12: 0 | M12: 0 | N12: 0 | O12: 0 | P12: 0 | Q12: 1 | R12: 1 | S12: 1 | T12: 1 | U12: 1 | V12: 1 | W12: 6
B13: Nano 5 | C13: 1 | D13: 1 | E13: 1 | F13: 1 | G13: 1 | H13: 1 | I13: 1 | J13: 1 | K13: 1 | L13: 1 | M13: 1 | N13: 1 | O13: 1 | P13: 1 | Q13: 0 | R13: 0 | S13: 0 | T13: 0 | U13: 0 | V13: 0 | W13: 14
A15: Gauss Rifle | B15: Nano 1 | C15: 1 | D15: 1 | E15: 1 | F15: 1 | G15: 1 | H15: 1 | I15: 1 | J15: 1 | K15: 1 | L15: 1 | M15: 0 | N15: 0 | O15: 0 | P15: 0 | Q15: 0 | R15: 0 | S15: 0 | T15: 0 | U15: 0 | V15: 0 | W15: =COUNTIF(C15:V15,"1") -> 10
B16: Nano 2 | C16: 0 | D16: 0 | E16: 0 | F16: 0 | G16: 0 | H16: 0 | I16: 0 | J16: 0 | K16: 0 | L16: 0 | M16: 0 | N16: 0 | O16: 0 | P16: 0 | Q16: 0 | R16: 0 | S16: 0 | T16: 0 | U16: 0 | V16: 0 | W16: =COUNTIF(C16:V16,"1") -> 0
B17: Nano 3 | C17: 0 | D17: 0 | E17: 0 | F17: 0 | G17: 0 | H17: 0 | I17: 0 | J17: 0 | K17: 0 | L17: 0 | M17: 0 | N17: 0 | O17: 0 | P17: 0 | Q17: 0 | R17: 0 | S17: 0 | T17: 0 | U17: 0 | V17: 0 | W17: 0
B18: Nano 4 | C18: 1 | D18: 1 | E18: 1 | F18: 1 | G18: 1 | H18: 1 | I18: 1 | J18: 1 | K18: 1 | L18: 1 | M18: 1 | N18: 1 | O18: 1 | P18: 1 | Q18: 1 | R18: 1 | S18: 1 | T18: 1 | U18: 1 | V18: 1 | W18: 20
B19: Nano 5 | C19: 0 | D19: 0 | E19: 0 | F19: 0 | G19: 0 | H19: 0 | I19: 0 | J19: 0 | K19: 0 | L19: 0 | M19: 0 | N19: 0 | O19: 0 | P19: 0 | Q19: 0 | R19: 0 | S19: 0 | T19: 0 | U19: 0 | V19: 0 | W19: 0
A21: Mercenary | B21: Nano 1 | C21: 1 | D21: 1 | E21: 1 | F21: 1 | G21: 1 | H21: 1 | I21: 1 | J21: 1 | K21: 1 | L21: 1 | M21: 0 | N21: 0 | O21: 0 | P21: 0 | Q21: 0 | R21: 0 | S21: 0 | T21: 0 | U21: 0 | V21: 0 | W21: =COUNTIF(C21:V21,"1") -> 10
B22: Nano 2 | C22: 0 | D22: 0 | E22: 0 | F22: 0 | G22: 0 | H22: 0 | I22: 0 | J22: 0 | K22: 0 | L22: 0 | M22: 0 | N22: 0 | O22: 0 | P22: 0 | Q22: 0 | R22: 0 | S22: 0 | T22: 0 | U22: 0 | V22: 0 | W22: =COUNTIF(C22:V22,"1") -> 0
B23: Nano 3 | C23: 0 | D23: 0 | E23: 0 | F23: 0 | G23: 0 | H23: 0 | I23: 0 | J23: 0 | K23: 0 | L23: 0 | M23: 0 | N23: 0 | O23: 0 | P23: 0 | Q23: 0 | R23: 1 | S23: 1 | T23: 1 | U23: 1 | V23: 1 | W23: 5
B24: Nano 4 | C24: 1 | D24: 1 | E24: 1 | F24: 1 | G24: 1 | H24: 1 | I24: 1 | J24: 1 | K24: 1 | L24: 1 | M24: 1 | N24: 1 | O24: 1 | P24: 1 | Q24: 1 | R24: 0 | S24: 0 | T24: 0 | U24: 0 | V24: 0 | W24: 15
B25: Nano 5 | C25: 0 | D25: 0 | E25: 0 | F25: 0 | G25: 0 | H25: 0 | I25: 0 | J25: 0 | K25: 0 | L25: 0 | M25: 0 | N25: 0 | O25: 0 | P25: 0 | Q25: 0 | R25: 0 | S25: 0 | T25: 0 | U25: 0 | V25: 0 | W25: 0
A27: Bandit | B27: Nano 1 | C27: 1 | D27: 1 | E27: 1 | F27: 1 | G27: 1 | H27: 1 | I27: 1 | J27: 1 | K27: 1 | L27: 1 | M27: 1 | N27: 1 | O27: 1 | P27: 1 | Q27: 1 | R27: 0 | S27: 0 | T27: 0 | U27: 0 | V27: 0 | W27: =COUNTIF(C27:V27,"1") -> 15
B28: Nano 2 | C28: 0 | D28: 0 | E28: 0 | F28: 0 | G28: 0 | H28: 0 | I28: 0 | J28: 0 | K28: 0 | L28: 0 | M28: 0 | N28: 0 | O28: 0 | P28: 0 | Q28: 0 | R28: 0 | S28: 0 | T28: 0 | U28: 0 | V28: 0 | W28: =COUNTIF(C28:V28,"1") -> 0
B29: Nano 3 | C29: 0 | D29: 0 | E29: 0 | F29: 0 | G29: 0 | H29: 0 | I29: 0 | J29: 0 | K29: 0 | L29: 0 | M29: 0 | N29: 0 | O29: 0 | P29: 0 | Q29: 0 | R29: 0 | S29: 0 | T29: 0 | U29: 1 | V29: 1 | W29: 2
B30: Nano 4 | C30: 1 | D30: 1 | E30: 1 | F30: 1 | G30: 1 | H30: 1 | I30: 1 | J30: 1 | K30: 1 | L30: 1 | M30: 1 | N30: 1 | O30: 1 | P30: 1 | Q30: 1 | R30: 1 | S30: 1 | T30: 1 | U30: 0 | V30: 0 | W30: 18
B31: Nano 5 | C31: 0 | D31: 0 | E31: 0 | F31: 0 | G31: 0 | H31: 0 | I31: 0 | J31: 0 | K31: 0 | L31: 0 | M31: 0 | N31: 0 | O31: 0 | P31: 0 | Q31: 0 | R31: 0 | S31: 0 | T31: 0 | U31: 0 | V31: 0 | W31: 0
A33: Carv and Cycler | B33: Nano 1 | C33: 1 | D33: 1 | E33: 1 | F33: 1 | G33: 1 | H33: 1 | I33: 1 | J33: 1 | K33: 1 | L33: 1 | M33: 0 | N33: 0 | O33: 0 | P33: 0 | Q33: 0 | R33: 0 | S33: 0 | T33: 0 | U33: 0 | V33: 0 | W33: =COUNTIF(C33:V33,"1") -> 10
B34: Nano 2 | C34: 0 | D34: 0 | E34: 0 | F34: 0 | G34: 0 | H34: 0 | I34: 0 | J34: 0 | K34: 0 | L34: 0 | M34: 0 | N34: 0 | O34: 0 | P34: 0 | Q34: 0 | R34: 0 | S34: 0 | T34: 0 | U34: 0 | V34: 0 | W34: =COUNTIF(C34:V34,"1") -> 0
B35: Nano 3 | C35: 0 | D35: 0 | E35: 0 | F35: 0 | G35: 0 | H35: 0 | I35: 0 | J35: 0 | K35: 0 | L35: 0 | M35: 1 | N35: 1 | O35: 1 | P35: 1 | Q35: 1 | R35: 1 | S35: 1 | T35: 1 | U35: 1 | V35: 1 | W35: 10
B36: Nano 4 | C36: 1 | D36: 1 | E36: 1 | F36: 1 | G36: 1 | H36: 1 | I36: 1 | J36: 1 | K36: 1 | L36: 1 | M36: 0 | N36: 0 | O36: 0 | P36: 0 | Q36: 0 | R36: 0 | S36: 0 | T36: 0 | U36: 0 | V36: 0 | W36: 10
B37: Nano 5 | C37: 0 | D37: 0 | E37: 0 | F37: 0 | G37: 0 | H37: 0 | I37: 0 | J37: 0 | K37: 0 | L37: 0 | M37: 0 | N37: 0 | O37: 0 | P37: 0 | Q37: 0 | R37: 0 | S37: 0 | T37: 0 | U37: 0 | V37: 0 | W37: 0
A39: TAR, H-V45, GR-22, TRAC 5, Solstice | B39: Nano 1 | C39: 1 | D39: 1 | E39: 1 | F39: 1 | G39: 1 | H39: 1 | I39: 1 | J39: 1 | K39: 1 | L39: 1 | M39: 1 | N39: 1 | O39: 1 | P39: 1 | Q39: 1 | R39: 0 | S39: 0 | T39: 0 | U39: 0 | V39: 0 | W39: =COUNTIF(C39:V39,"1") -> 15
B40: Nano 2 | C40: 0 | D40: 0 | E40: 0 | F40: 0 | G40: 0 | H40: 0 | I40: 0 | J40: 0 | K40: 0 | L40: 0 | M40: 0 | N40: 0 | O40: 0 | P40: 0 | Q40: 0 | R40: 0 | S40: 0 | T40: 0 | U40: 0 | V40: 0 | W40: =COUNTIF(C40:V40,"1") -> 0
B41: Nano 3 | C41: 0 | D41: 0 | E41: 0 | F41: 0 | G41: 0 | H41: 0 | I41: 0 | J41: 0 | K41: 0 | L41: 0 | M41: 0 | N41: 0 | O41: 0 | P41: 0 | Q41: 0 | R41: 1 | S41: 1 | T41: 1 | U41: 1 | V41: 1 | W41: 5
B42: Nano 4 | C42: 1 | D42: 1 | E42: 1 | F42: 1 | G42: 1 | H42: 1 | I42: 1 | J42: 1 | K42: 1 | L42: 1 | M42: 1 | N42: 1 | O42: 1 | P42: 1 | Q42: 1 | R42: 0 | S42: 0 | T42: 0 | U42: 0 | V42: 0 | W42: 15
B43: Nano 5 | C43: 0 | D43: 0 | E43: 0 | F43: 0 | G43: 0 | H43: 0 | I43: 0 | J43: 0 | K43: 0 | L43: 0 | M43: 0 | N43: 0 | O43: 0 | P43: 0 | Q43: 0 | R43: 0 | S43: 0 | T43: 0 | U43: 0 | V43: 0 | W43: 0
A45: GD-7F and Serpent | B45: Nano 1 | C45: 1 | D45: 1 | E45: 1 | F45: 1 | G45: 1 | H45: 1 | I45: 1 | J45: 1 | K45: 1 | L45: 1 | M45: 1 | N45: 1 | O45: 1 | P45: 1 | Q45: 1 | R45: 0 | S45: 0 | T45: 0 | U45: 0 | V45: 0 | W45: =COUNTIF(C45:V45,"1") -> 15
B46: Nano 2 | C46: 0 | D46: 0 | E46: 0 | F46: 0 | G46: 0 | H46: 0 | I46: 0 | J46: 0 | K46: 0 | L46: 0 | M46: 0 | N46: 0 | O46: 0 | P46: 0 | Q46: 0 | R46: 0 | S46: 0 | T46: 0 | U46: 0 | V46: 1 | W46: =COUNTIF(C46:V46,"1") -> 1
B47: Nano 3 | C47: 0 | D47: 0 | E47: 0 | F47: 0 | G47: 0 | H47: 0 | I47: 0 | J47: 0 | K47: 0 | L47: 0 | M47: 0 | N47: 0 | O47: 0 | P47: 0 | Q47: 0 | R47: 1 | S47: 1 | T47: 1 | U47: 1 | V47: 0 | W47: 4
B48: Nano 4 | C48: 1 | D48: 1 | E48: 1 | F48: 1 | G48: 1 | H48: 1 | I48: 1 | J48: 1 | K48: 1 | L48: 1 | M48: 1 | N48: 1 | O48: 1 | P48: 1 | Q48: 1 | R48: 0 | S48: 0 | T48: 0 | U48: 0 | V48: 0 | W48: 15
B49: Nano 5 | C49: 0 | D49: 0 | E49: 0 | F49: 0 | G49: 0 | H49: 0 | I49: 0 | J49: 0 | K49: 0 | L49: 0 | M49: 0 | N49: 0 | O49: 0 | P49: 0 | Q49: 0 | R49: 0 | S49: 0 | T49: 0 | U49: 0 | V49: 1 | W49: 1
A51: 2nd gen SMGs | B51: Nano 1 | C51: 1 | D51: 1 | E51: 1 | F51: 1 | G51: 1 | H51: 1 | I51: 1 | J51: 1 | K51: 1 | L51: 1 | M51: 1 | N51: 1 | O51: 0 | P51: 0 | Q51: 0 | R51: 1 | S51: 1 | T51: 1 | U51: 1 | V51: 1 | W51: =COUNTIF(C51:V51,"1") -> 17
B52: Nano 2 | C52: 0 | D52: 0 | E52: 0 | F52: 0 | G52: 0 | H52: 0 | I52: 0 | J52: 0 | K52: 0 | L52: 0 | M52: 0 | N52: 0 | O52: 0 | P52: 1 | Q52: 1 | R52: 0 | S52: 0 | T52: 0 | U52: 0 | V52: 0 | W52: =COUNTIF(C52:V52,"1") -> 2
B53: Nano 3 | C53: 1 | D53: 1 | E53: 1 | F53: 1 | G53: 1 | H53: 1 | I53: 1 | J53: 1 | K53: 1 | L53: 1 | M53: 1 | N53: 1 | O53: 1 | P53: 0 | Q53: 0 | R53: 0 | S53: 0 | T53: 0 | U53: 0 | V53: 1 | W53: 14
B54: Nano 4 | C54: 0 | D54: 0 | E54: 0 | F54: 0 | G54: 0 | H54: 0 | I54: 0 | J54: 0 | K54: 0 | L54: 0 | M54: 0 | N54: 0 | O54: 0 | P54: 0 | Q54: 0 | R54: 0 | S54: 0 | T54: 1 | U54: 1 | V54: 0 | W54: 2
B55: Nano 5 | C55: 0 | D55: 0 | E55: 0 | F55: 0 | G55: 0 | H55: 0 | I55: 0 | J55: 0 | K55: 0 | L55: 0 | M55: 0 | N55: 0 | O55: 1 | P55: 1 | Q55: 1 | R55: 1 | S55: 1 | T55: 0 | U55: 0 | V55: 0 | W55: 5
B57: Range, m | C57: 1 | D57: 2 | E57: 3 | F57: 4 | G57: 5 | H57: 6 | I57: 7 | J57: 8 | K57: 9 | L57: 10 | M57: 11 | N57: 12 | O57: 13 | P57: 14 | Q57: 15 | R57: 16 | S57: 17 | T57: 18 | U57: 19 | V57: 20
B59: Range, m | C59: 20 | D59: 21 | E59: 22 | F59: 23 | G59: 24 | H59: 25 | I59: 26 | J59: 27 | K59: 28 | L59: 29 | M59: 30 | N59: 31 | O59: 32 | P59: 33 | Q59: 34 | R59: 35 | S59: 36 | T59: 37 | U59: 38 | V59: 39 | W59: 40 | X59: 41 | Y59: 42 | Z59: 43 | AA59: 44 | AB59: 45 | AC59: 46 | AD59: 47 | AE59: 48 | AF59: 49 | AG59: 50 | AH59: Total
AJ60: Sum
A61: Gauss SAW and Reaper DMR | B61: Nano 1 | C61: 0 | D61: 0 | E61: 0 | F61: 0 | G61: 0 | H61: 0 | I61: 0 | J61: 0 | K61: 0 | L61: 0 | M61: 0 | N61: 0 | O61: 0 | P61: 0 | Q61: 0 | R61: 0 | S61: 0 | T61: 0 | U61: 0 | V61: 0 | W61: 0 | X61: 0 | Y61: 0 | Z61: 0 | AA61: 0 | AB61: 0 | AC61: 0 | AD61: 0 | AE61: 0 | AF61: 0 | AG61: 0 | AH61: =COUNTIF(C61:AG61,"1") -> 0 | AJ61: =SUM(AH61,AH67,AH73,AH79,AH85,AH91,AH97,AH103,AH109) -> 136 | AK61: =AJ61/9 -> 15.11111111 | AL61: =AK61/30 -> 0.5037037037
B62: Nano 2 | C62: 0 | D62: 0 | E62: 0 | F62: 0 | G62: 0 | H62: 0 | I62: 0 | J62: 0 | K62: 0 | L62: 0 | M62: 0 | N62: 0 | O62: 0 | P62: 0 | Q62: 0 | R62: 0 | S62: 0 | T62: 0 | U62: 0 | V62: 0 | W62: 0 | X62: 0 | Y62: 0 | Z62: 0 | AA62: 1 | AB62: 1 | AC62: 1 | AD62: 1 | AE62: 1 | AF62: 1 | AG62: 1 | AH62: =COUNTIF(C62:AG62,"1") -> 7 | AJ62: =SUM(AH62,AH68,AH74,AH80,AH86,AH92,AH98,AH104,AH110) -> 86 | AK62: =AJ62/9 -> 9.555555556 | AL62: =AK62/30 -> 0.3185185185
B63: Nano 3 | C63: 0 | D63: 0 | E63: 0 | F63: 0 | G63: 0 | H63: 0 | I63: 0 | J63: 0 | K63: 0 | L63: 0 | M63: 0 | N63: 0 | O63: 1 | P63: 1 | Q63: 1 | R63: 1 | S63: 1 | T63: 1 | U63: 1 | V63: 1 | W63: 1 | X63: 1 | Y63: 1 | Z63: 1 | AA63: 0 | AB63: 0 | AC63: 0 | AD63: 0 | AE63: 0 | AF63: 0 | AG63: 0 | AH63: 12 | AJ63: =SUM(AH63,AH69,AH75,AH81,AH87,AH93,AH99,AH105,AH111) -> 72 | AK63: 8 | AL63: 0.2666666667
B64: Nano 4 | C64: 1 | D64: 1 | E64: 1 | F64: 1 | G64: 1 | H64: 1 | I64: 1 | J64: 1 | K64: 1 | L64: 1 | M64: 1 | N64: 1 | O64: 0 | P64: 0 | Q64: 0 | R64: 0 | S64: 0 | T64: 0 | U64: 0 | V64: 0 | W64: 0 | X64: 0 | Y64: 0 | Z64: 0 | AA64: 0 | AB64: 0 | AC64: 0 | AD64: 0 | AE64: 0 | AF64: 0 | AG64: 0 | AH64: 12 | AJ64: =SUM(AH64,AH70,AH76,AH82,AH88,AH94,AH100,AH106,AH112) -> 60 | AK64: 6.666666667 | AL64: 0.2222222222
B65: Nano 5 | C65: 0 | D65: 0 | E65: 0 | F65: 0 | G65: 0 | H65: 0 | I65: 0 | J65: 0 | K65: 0 | L65: 0 | M65: 0 | N65: 0 | O65: 0 | P65: 0 | Q65: 0 | R65: 0 | S65: 0 | T65: 0 | U65: 0 | V65: 0 | W65: 0 | X65: 0 | Y65: 0 | Z65: 0 | AA65: 0 | AB65: 0 | AC65: 0 | AD65: 0 | AE65: 0 | AF65: 0 | AG65: 0 | AH65: 0 | AJ65: =SUM(AH65,AH71,AH77,AH83,AH89,AH95,AH101,AH107,AH113) -> 135 | AK65: 15 | AL65: 0.5
A67: ACX-11 | B67: Nano 1 | C67: 0 | D67: 0 | E67: 0 | F67: 0 | G67: 0 | H67: 0 | I67: 0 | J67: 0 | K67: 0 | L67: 0 | M67: 0 | N67: 0 | O67: 0 | P67: 0 | Q67: 0 | R67: 1 | S67: 1 | T67: 1 | U67: 1 | V67: 1 | W67: 1 | X67: 1 | Y67: 1 | Z67: 1 | AA67: 1 | AB67: 1 | AC67: 1 | AD67: 1 | AE67: 1 | AF67: 1 | AG67: 1 | AH67: =COUNTIF(C67:AG67,"1") -> 16
B68: Nano 2 | C68: 0 | D68: 0 | E68: 0 | F68: 0 | G68: 0 | H68: 0 | I68: 0 | J68: 0 | K68: 0 | L68: 1 | M68: 1 | N68: 1 | O68: 1 | P68: 1 | Q68: 1 | R68: 0 | S68: 0 | T68: 0 | U68: 0 | V68: 0 | W68: 0 | X68: 0 | Y68: 0 | Z68: 0 | AA68: 0 | AB68: 0 | AC68: 0 | AD68: 0 | AE68: 0 | AF68: 0 | AG68: 0 | AH68: 6
B69: Nano 3 | C69: 0 | D69: 0 | E69: 1 | F69: 1 | G69: 1 | H69: 1 | I69: 1 | J69: 1 | K69: 1 | L69: 0 | M69: 0 | N69: 0 | O69: 0 | P69: 0 | Q69: 0 | R69: 0 | S69: 0 | T69: 0 | U69: 0 | V69: 0 | W69: 0 | X69: 0 | Y69: 0 | Z69: 0 | AA69: 0 | AB69: 0 | AC69: 0 | AD69: 0 | AE69: 0 | AF69: 0 | AG69: 0 | AH69: 7
B70: Nano 4 | C70: 1 | D70: 1 | E70: 0 | F70: 0 | G70: 0 | H70: 0 | I70: 0 | J70: 0 | K70: 0 | L70: 0 | M70: 0 | N70: 0 | O70: 0 | P70: 0 | Q70: 0 | R70: 0 | S70: 0 | T70: 0 | U70: 0 | V70: 0 | W70: 0 | X70: 0 | Y70: 0 | Z70: 0 | AA70: 0 | AB70: 0 | AC70: 0 | AD70: 0 | AE70: 0 | AF70: 0 | AG70: 1 | AH70: 3
B71: Nano 5 | C71: 0 | D71: 0 | E71: 0 | F71: 0 | G71: 0 | H71: 0 | I71: 0 | J71: 0 | K71: 0 | L71: 0 | M71: 0 | N71: 0 | O71: 0 | P71: 0 | Q71: 0 | R71: 0 | S71: 0 | T71: 1 | U71: 1 | V71: 1 | W71: 1 | X71: 1 | Y71: 1 | Z71: 1 | AA71: 1 | AB71: 1 | AC71: 1 | AD71: 1 | AE71: 1 | AF71: 1 | AG71: 0 | AH71: 13
A73: Gauss Rifle | B73: Nano 1 | C73: 0 | D73: 0 | E73: 0 | F73: 0 | G73: 0 | H73: 0 | I73: 0 | J73: 0 | K73: 0 | L73: 0 | M73: 0 | N73: 0 | O73: 0 | P73: 0 | Q73: 0 | R73: 0 | S73: 0 | T73: 0 | U73: 0 | V73: 0 | W73: 0 | X73: 0 | Y73: 0 | Z73: 0 | AA73: 0 | AB73: 1 | AC73: 1 | AD73: 1 | AE73: 1 | AF73: 1 | AG73: 1 | AH73: =COUNTIF(C73:AG73,"1") -> 6
B74: Nano 2 | C74: 0 | D74: 0 | E74: 0 | F74: 0 | G74: 0 | H74: 0 | I74: 0 | J74: 0 | K74: 0 | L74: 0 | M74: 0 | N74: 0 | O74: 0 | P74: 1 | Q74: 1 | R74: 1 | S74: 1 | T74: 1 | U74: 1 | V74: 1 | W74: 1 | X74: 1 | Y74: 1 | Z74: 1 | AA74: 1 | AB74: 0 | AC74: 0 | AD74: 0 | AE74: 0 | AF74: 0 | AG74: 0 | AH74: 12
B75: Nano 3 | C75: 0 | D75: 1 | E75: 1 | F75: 1 | G75: 1 | H75: 1 | I75: 1 | J75: 1 | K75: 1 | L75: 1 | M75: 1 | N75: 1 | O75: 1 | P75: 0 | Q75: 0 | R75: 0 | S75: 0 | T75: 0 | U75: 0 | V75: 0 | W75: 0 | X75: 0 | Y75: 0 | Z75: 0 | AA75: 0 | AB75: 0 | AC75: 0 | AD75: 0 | AE75: 0 | AF75: 0 | AG75: 0 | AH75: 12
B76: Nano 4 | C76: 1 | D76: 0 | E76: 0 | F76: 0 | G76: 0 | H76: 0 | I76: 0 | J76: 0 | K76: 0 | L76: 0 | M76: 0 | N76: 0 | O76: 0 | P76: 0 | Q76: 0 | R76: 0 | S76: 0 | T76: 0 | U76: 0 | V76: 0 | W76: 0 | X76: 0 | Y76: 0 | Z76: 0 | AA76: 0 | AB76: 0 | AC76: 0 | AD76: 0 | AE76: 0 | AF76: 0 | AG76: 0 | AH76: 1
B77: Nano 5 | C77: 0 | D77: 0 | E77: 0 | F77: 0 | G77: 0 | H77: 0 | I77: 0 | J77: 0 | K77: 0 | L77: 0 | M77: 0 | N77: 0 | O77: 0 | P77: 0 | Q77: 0 | R77: 0 | S77: 0 | T77: 0 | U77: 0 | V77: 0 | W77: 1 | X77: 1 | Y77: 1 | Z77: 1 | AA77: 1 | AB77: 1 | AC77: 1 | AD77: 1 | AE77: 1 | AF77: 1 | AG77: 1 | AH77: 11
A79: Mercenary | B79: Nano 1 | C79: 0 | D79: 0 | E79: 0 | F79: 0 | G79: 0 | H79: 0 | I79: 0 | J79: 0 | K79: 1 | L79: 1 | M79: 1 | N79: 1 | O79: 1 | P79: 1 | Q79: 1 | R79: 1 | S79: 1 | T79: 1 | U79: 1 | V79: 1 | W79: 1 | X79: 1 | Y79: 1 | Z79: 1 | AA79: 1 | AB79: 0 | AC79: 0 | AD79: 0 | AE79: 0 | AF79: 0 | AG79: 0 | AH79: =COUNTIF(C79:AG79,"1") -> 17
B80: Nano 2 | C80: 0 | D80: 0 | E80: 1 | F80: 1 | G80: 1 | H80: 1 | I80: 1 | J80: 1 | K80: 0 | L80: 0 | M80: 0 | N80: 0 | O80: 0 | P80: 0 | Q80: 0 | R80: 0 | S80: 0 | T80: 0 | U80: 0 | V80: 0 | W80: 0 | X80: 0 | Y80: 0 | Z80: 0 | AA80: 0 | AB80: 0 | AC80: 0 | AD80: 0 | AE80: 0 | AF80: 0 | AG80: 0 | AH80: 6
B81: Nano 3 | C81: 1 | D81: 1 | E81: 0 | F81: 0 | G81: 0 | H81: 0 | I81: 0 | J81: 0 | K81: 0 | L81: 0 | M81: 0 | N81: 0 | O81: 0 | P81: 0 | Q81: 0 | R81: 0 | S81: 0 | T81: 0 | U81: 0 | V81: 0 | W81: 0 | X81: 0 | Y81: 0 | Z81: 0 | AA81: 0 | AB81: 1 | AC81: 1 | AD81: 1 | AE81: 1 | AF81: 1 | AG81: 1 | AH81: 8
B82: Nano 4 | C82: 0 | D82: 0 | E82: 0 | F82: 0 | G82: 0 | H82: 0 | I82: 0 | J82: 0 | K82: 0 | L82: 0 | M82: 0 | N82: 0 | O82: 0 | P82: 0 | Q82: 0 | R82: 0 | S82: 0 | T82: 0 | U82: 0 | V82: 1 | W82: 1 | X82: 1 | Y82: 1 | Z82: 1 | AA82: 1 | AB82: 0 | AC82: 0 | AD82: 0 | AE82: 0 | AF82: 0 | AG82: 0 | AH82: 6
B83: Nano 5 | C83: 0 | D83: 0 | E83: 0 | F83: 0 | G83: 0 | H83: 0 | I83: 1 | J83: 1 | K83: 1 | L83: 1 | M83: 1 | N83: 1 | O83: 1 | P83: 1 | Q83: 1 | R83: 1 | S83: 1 | T83: 1 | U83: 1 | V83: 0 | W83: 0 | X83: 0 | Y83: 0 | Z83: 0 | AA83: 0 | AB83: 0 | AC83: 0 | AD83: 0 | AE83: 0 | AF83: 0 | AG83: 0 | AH83: 13
A85: Bandit | B85: Nano 1 | C85: 0 | D85: 0 | E85: 0 | F85: 0 | G85: 0 | H85: 0 | I85: 1 | J85: 1 | K85: 1 | L85: 1 | M85: 1 | N85: 1 | O85: 1 | P85: 1 | Q85: 1 | R85: 0 | S85: 0 | T85: 0 | U85: 0 | V85: 0 | W85: 0 | X85: 0 | Y85: 1 | Z85: 1 | AA85: 1 | AB85: 1 | AC85: 1 | AD85: 1 | AE85: 1 | AF85: 1 | AG85: 0 | AH85: =COUNTIF(C85:AG85,"1") -> 17
B86: Nano 2 | C86: 0 | D86: 0 | E86: 1 | F86: 1 | G86: 1 | H86: 1 | I86: 0 | J86: 0 | K86: 0 | L86: 0 | M86: 0 | N86: 0 | O86: 0 | P86: 0 | Q86: 0 | R86: 0 | S86: 0 | T86: 0 | U86: 0 | V86: 1 | W86: 1 | X86: 1 | Y86: 0 | Z86: 0 | AA86: 0 | AB86: 0 | AC86: 0 | AD86: 0 | AE86: 0 | AF86: 0 | AG86: 0 | AH86: 7
B87: Nano 3 | C87: 1 | D87: 1 | E87: 0 | F87: 0 | G87: 0 | H87: 0 | I87: 0 | J87: 0 | K87: 0 | L87: 0 | M87: 0 | N87: 0 | O87: 0 | P87: 0 | Q87: 0 | R87: 1 | S87: 1 | T87: 1 | U87: 1 | V87: 0 | W87: 0 | X87: 0 | Y87: 0 | Z87: 0 | AA87: 0 | AB87: 0 | AC87: 0 | AD87: 0 | AE87: 1 | AF87: 1 | AG87: 1 | AH87: 9
B88: Nano 4 | C88: 0 | D88: 0 | E88: 0 | F88: 0 | G88: 0 | H88: 0 | I88: 0 | J88: 0 | K88: 0 | L88: 0 | M88: 0 | N88: 0 | O88: 1 | P88: 1 | Q88: 1 | R88: 0 | S88: 0 | T88: 0 | U88: 0 | V88: 0 | W88: 0 | X88: 0 | Y88: 0 | Z88: 0 | AA88: 0 | AB88: 1 | AC88: 1 | AD88: 1 | AE88: 0 | AF88: 0 | AG88: 0 | AH88: 6
B89: Nano 5 | C89: 0 | D89: 0 | E89: 0 | F89: 0 | G89: 1 | H89: 1 | I89: 1 | J89: 1 | K89: 1 | L89: 1 | M89: 1 | N89: 1 | O89: 0 | P89: 0 | Q89: 0 | R89: 0 | S89: 0 | T89: 0 | U89: 0 | V89: 1 | W89: 1 | X89: 1 | Y89: 1 | Z89: 1 | AA89: 1 | AB89: 0 | AC89: 0 | AD89: 0 | AE89: 0 | AF89: 0 | AG89: 1 | AH89: 15
A91: Carv and Cycler | B91: Nano 1 | C91: 0 | D91: 0 | E91: 0 | F91: 0 | G91: 0 | H91: 0 | I91: 0 | J91: 0 | K91: 0 | L91: 0 | M91: 0 | N91: 0 | O91: 0 | P91: 0 | Q91: 0 | R91: 1 | S91: 1 | T91: 1 | U91: 1 | V91: 1 | W91: 1 | X91: 1 | Y91: 1 | Z91: 1 | AA91: 1 | AB91: 1 | AC91: 1 | AD91: 1 | AE91: 1 | AF91: 1 | AG91: 1 | AH91: =COUNTIF(C91:AG91,"1") -> 16
B92: Nano 2 | C92: 0 | D92: 0 | E92: 0 | F92: 1 | G92: 1 | H92: 1 | I92: 1 | J92: 1 | K92: 1 | L92: 1 | M92: 1 | N92: 1 | O92: 1 | P92: 1 | Q92: 1 | R92: 0 | S92: 0 | T92: 0 | U92: 0 | V92: 0 | W92: 0 | X92: 0 | Y92: 0 | Z92: 0 | AA92: 0 | AB92: 0 | AC92: 0 | AD92: 0 | AE92: 0 | AF92: 0 | AG92: 0 | AH92: 12
B93: Nano 3 | C93: 1 | D93: 1 | E93: 1 | F93: 0 | G93: 0 | H93: 0 | I93: 0 | J93: 0 | K93: 0 | L93: 0 | M93: 0 | N93: 0 | O93: 0 | P93: 0 | Q93: 0 | R93: 0 | S93: 0 | T93: 0 | U93: 0 | V93: 0 | W93: 0 | X93: 0 | Y93: 0 | Z93: 0 | AA93: 0 | AB93: 0 | AC93: 0 | AD93: 0 | AE93: 0 | AF93: 0 | AG93: 0 | AH93: 3
B94: Nano 4 | C94: 0 | D94: 0 | E94: 0 | F94: 0 | G94: 0 | H94: 0 | I94: 0 | J94: 0 | K94: 0 | L94: 0 | M94: 0 | N94: 0 | O94: 0 | P94: 0 | Q94: 0 | R94: 0 | S94: 0 | T94: 0 | U94: 0 | V94: 0 | W94: 0 | X94: 0 | Y94: 0 | Z94: 0 | AA94: 0 | AB94: 0 | AC94: 0 | AD94: 0 | AE94: 1 | AF94: 1 | AG94: 1 | AH94: 3
B95: Nano 5 | C95: 0 | D95: 0 | E95: 0 | F95: 1 | G95: 1 | H95: 1 | I95: 1 | J95: 1 | K95: 1 | L95: 1 | M95: 1 | N95: 1 | O95: 1 | P95: 1 | Q95: 1 | R95: 1 | S95: 1 | T95: 1 | U95: 1 | V95: 1 | W95: 1 | X95: 1 | Y95: 1 | Z95: 1 | AA95: 1 | AB95: 1 | AC95: 1 | AD95: 1 | AE95: 0 | AF95: 0 | AG95: 0 | AH95: 25
A97: TAR, H-V45, GR-22, TRAC 5, Solstice | B97: Nano 1 | C97: 0 | D97: 0 | E97: 0 | F97: 0 | G97: 0 | H97: 0 | I97: 0 | J97: 1 | K97: 1 | L97: 1 | M97: 1 | N97: 1 | O97: 1 | P97: 1 | Q97: 1 | R97: 1 | S97: 1 | T97: 1 | U97: 1 | V97: 1 | W97: 1 | X97: 1 | Y97: 0 | Z97: 0 | AA97: 0 | AB97: 0 | AC97: 0 | AD97: 0 | AE97: 0 | AF97: 1 | AG97: 1 | AH97: =COUNTIF(C97:AG97,"1") -> 17
B98: Nano 2 | C98: 0 | D98: 1 | E98: 1 | F98: 1 | G98: 1 | H98: 1 | I98: 1 | J98: 0 | K98: 0 | L98: 0 | M98: 0 | N98: 0 | O98: 0 | P98: 0 | Q98: 0 | R98: 0 | S98: 0 | T98: 0 | U98: 0 | V98: 0 | W98: 0 | X98: 0 | Y98: 0 | Z98: 0 | AA98: 1 | AB98: 1 | AC98: 1 | AD98: 1 | AE98: 1 | AF98: 0 | AG98: 0 | AH98: 11
B99: Nano 3 | C99: 1 | D99: 0 | E99: 0 | F99: 0 | G99: 0 | H99: 0 | I99: 0 | J99: 0 | K99: 0 | L99: 0 | M99: 0 | N99: 0 | O99: 0 | P99: 0 | Q99: 0 | R99: 0 | S99: 0 | T99: 0 | U99: 0 | V99: 1 | W99: 1 | X99: 1 | Y99: 1 | Z99: 1 | AA99: 0 | AB99: 0 | AC99: 0 | AD99: 0 | AE99: 0 | AF99: 0 | AG99: 0 | AH99: 6
B100: Nano 4 | C100: 0 | D100: 0 | E100: 0 | F100: 0 | G100: 0 | H100: 0 | I100: 0 | J100: 0 | K100: 0 | L100: 0 | M100: 0 | N100: 0 | O100: 0 | P100: 1 | Q100: 1 | R100: 1 | S100: 1 | T100: 1 | U100: 1 | V100: 0 | W100: 0 | X100: 0 | Y100: 0 | Z100: 0 | AA100: 0 | AB100: 0 | AC100: 0 | AD100: 0 | AE100: 0 | AF100: 0 | AG100: 0 | AH100: 6
B101: Nano 5 | C101: 0 | D101: 1 | E101: 1 | F101: 1 | G101: 1 | H101: 1 | I101: 1 | J101: 1 | K101: 1 | L101: 1 | M101: 1 | N101: 1 | O101: 1 | P101: 0 | Q101: 0 | R101: 0 | S101: 0 | T101: 0 | U101: 0 | V101: 0 | W101: 0 | X101: 0 | Y101: 1 | Z101: 1 | AA101: 1 | AB101: 1 | AC101: 1 | AD101: 1 | AE101: 1 | AF101: 1 | AG101: 1 | AH101: 21
A103: GD-7F and Serpent | B103: Nano 1 | C103: 0 | D103: 0 | E103: 0 | F103: 0 | G103: 1 | H103: 1 | I103: 1 | J103: 1 | K103: 1 | L103: 1 | M103: 1 | N103: 1 | O103: 1 | P103: 1 | Q103: 0 | R103: 0 | S103: 0 | T103: 0 | U103: 0 | V103: 1 | W103: 1 | X103: 1 | Y103: 1 | Z103: 1 | AA103: 1 | AB103: 1 | AC103: 1 | AD103: 1 | AE103: 1 | AF103: 0 | AG103: 0 | AH103: =COUNTIF(C103:AG103,"1") -> 20
B104: Nano 2 | C104: 1 | D104: 1 | E104: 1 | F104: 1 | G104: 0 | H104: 0 | I104: 0 | J104: 0 | K104: 0 | L104: 0 | M104: 0 | N104: 0 | O104: 0 | P104: 0 | Q104: 0 | R104: 0 | S104: 1 | T104: 1 | U104: 1 | V104: 0 | W104: 0 | X104: 0 | Y104: 0 | Z104: 0 | AA104: 0 | AB104: 0 | AC104: 0 | AD104: 0 | AE104: 0 | AF104: 1 | AG104: 1 | AH104: 9
B105: Nano 3 | C105: 0 | D105: 0 | E105: 0 | F105: 0 | G105: 0 | H105: 0 | I105: 0 | J105: 0 | K105: 0 | L105: 0 | M105: 0 | N105: 0 | O105: 1 | P105: 1 | Q105: 1 | R105: 1 | S105: 0 | T105: 0 | U105: 0 | V105: 0 | W105: 0 | X105: 0 | Y105: 0 | Z105: 0 | AA105: 0 | AB105: 0 | AC105: 1 | AD105: 1 | AE105: 1 | AF105: 0 | AG105: 0 | AH105: 7
B106: Nano 4 | C106: 0 | D106: 0 | E106: 0 | F106: 0 | G106: 0 | H106: 0 | I106: 0 | J106: 0 | K106: 1 | L106: 1 | M106: 1 | N106: 1 | O106: 0 | P106: 0 | Q106: 0 | R106: 0 | S106: 0 | T106: 0 | U106: 0 | V106: 0 | W106: 0 | X106: 0 | Y106: 1 | Z106: 1 | AA106: 1 | AB106: 1 | AC106: 0 | AD106: 0 | AE106: 0 | AF106: 0 | AG106: 0 | AH106: 8
B107: Nano 5 | C107: 1 | D107: 1 | E107: 1 | F107: 1 | G107: 1 | H107: 1 | I107: 1 | J107: 1 | K107: 0 | L107: 0 | M107: 0 | N107: 0 | O107: 0 | P107: 0 | Q107: 1 | R107: 1 | S107: 1 | T107: 1 | U107: 1 | V107: 1 | W107: 1 | X107: 1 | Y107: 0 | Z107: 0 | AA107: 0 | AB107: 0 | AC107: 1 | AD107: 1 | AE107: 1 | AF107: 1 | AG107: 1 | AH107: 21
A109: 2nd gen SMGs | B109: Nano 1 | C109: 1 | D109: 1 | E109: 1 | F109: 0 | G109: 0 | H109: 1 | I109: 1 | J109: 1 | K109: 1 | L109: 1 | M109: 1 | N109: 0 | O109: 1 | P109: 1 | Q109: 1 | R109: 1 | S109: 1 | T109: 0 | U109: 1 | V109: 1 | W109: 1 | X109: 1 | Y109: 1 | Z109: 1 | AA109: 1 | AB109: 1 | AC109: 1 | AD109: 1 | AE109: 1 | AF109: 1 | AG109: 1 | AH109: =COUNTIF(C109:AG109,"1") -> 27
B110: Nano 2 | C110: 0 | D110: 0 | E110: 0 | F110: 1 | G110: 1 | H110: 0 | I110: 0 | J110: 0 | K110: 0 | L110: 0 | M110: 1 | N110: 1 | O110: 0 | P110: 0 | Q110: 0 | R110: 0 | S110: 1 | T110: 1 | U110: 0 | V110: 0 | W110: 0 | X110: 1 | Y110: 1 | Z110: 1 | AA110: 1 | AB110: 1 | AC110: 1 | AD110: 1 | AE110: 1 | AF110: 1 | AG110: 1 | AH110: 16
B111: Nano 3 | C111: 1 | D111: 1 | E111: 1 | F111: 0 | G111: 0 | H111: 0 | I111: 0 | J111: 0 | K111: 1 | L111: 1 | M111: 0 | N111: 0 | O111: 0 | P111: 0 | Q111: 1 | R111: 1 | S111: 0 | T111: 0 | U111: 0 | V111: 0 | W111: 1 | X111: 0 | Y111: 0 | Z111: 0 | AA111: 0 | AB111: 0 | AC111: 0 | AD111: 0 | AE111: 0 | AF111: 0 | AG111: 0 | AH111: 8
B112: Nano 4 | C112: 0 | D112: 0 | E112: 0 | F112: 0 | G112: 0 | H112: 0 | I112: 1 | J112: 1 | K112: 0 | L112: 0 | M112: 0 | N112: 0 | O112: 1 | P112: 1 | Q112: 0 | R112: 0 | S112: 0 | T112: 0 | U112: 1 | V112: 1 | W112: 0 | X112: 0 | Y112: 1 | Z112: 1 | AA112: 1 | AB112: 1 | AC112: 1 | AD112: 1 | AE112: 1 | AF112: 1 | AG112: 1 | AH112: 15
B113: Nano 5 | C113: 0 | D113: 1 | E113: 1 | F113: 1 | G113: 1 | H113: 1 | I113: 0 | J113: 0 | K113: 1 | L113: 1 | M113: 1 | N113: 1 | O113: 0 | P113: 0 | Q113: 1 | R113: 1 | S113: 1 | T113: 1 | U113: 0 | V113: 1 | W113: 1 | X113: 1 | Y113: 0 | Z113: 0 | AA113: 0 | AB113: 0 | AC113: 0 | AD113: 0 | AE113: 0 | AF113: 0 | AG113: 0 | AH113: 16
B115: Range, m | C115: 20 | D115: 21 | E115: 22 | F115: 23 | G115: 24 | H115: 25 | I115: 26 | J115: 27 | K115: 28 | L115: 29 | M115: 30 | N115: 31 | O115: 32 | P115: 33 | Q115: 34 | R115: 35 | S115: 36 | T115: 37 | U115: 38 | V115: 39 | W115: 40 | X115: 41 | Y115: 42 | Z115: 43 | AA115: 44 | AB115: 45 | AC115: 46 | AD115: 47 | AE115: 48 | AF115: 49 | AG115: 50
B118: Range, m | C118: 50 | D118: 51 | E118: 52 | F118: 53 | G118: 54 | H118: 55 | I118: 56 | J118: 57 | K118: 58 | L118: 59 | M118: 60 | N118: 61 | O118: 62 | P118: 63 | Q118: 64 | R118: 65 | S118: 66 | T118: 67 | U118: 68 | V118: 69 | W118: 70 | X118: 71 | Y118: 72 | Z118: 73 | AA118: 74 | AB118: 75 | AC118: 76 | AD118: 77 | AE118: 78 | AF118: 79 | AG118: 80 | AH118: 81 | AI118: 82 | AJ118: 83 | AK118: 84 | AL118: 85 | AM118: Total
AO119: Sum
A120: Gauss SAW and Reaper DMR | B120: Nano 1 | C120: 0 | D120: 0 | E120: 0 | F120: 0 | G120: 0 | H120: 0 | I120: 1 | J120: 1 | K120: 1 | L120: 1 | M120: 1 | N120: 1 | O120: 1 | P120: 1 | Q120: 1 | R120: 1 | S120: 1 | T120: 1 | U120: 1 | V120: 1 | W120: 1 | X120: 1 | Y120: 1 | Z120: 1 | AA120: 1 | AB120: 1 | AC120: 1 | AD120: 1 | AE120: 1 | AF120: 1 | AG120: 1 | AH120: 1 | AI120: 1 | AJ120: 1 | AK120: 1 | AL120: 1 | AM120: =COUNTIF(C120:AL120,"1") -> 30 | AO120: =SUM(AM120,AM126,AM132,AM138,AM144,AM150,AM156,AM162,) -> 255 | AP120: =AO120/8 -> 31.875 | AQ120: =AP120/35 -> 0.9107142857
B121: Nano 2 | C121: 1 | D121: 1 | E121: 1 | F121: 1 | G121: 1 | H121: 1 | I121: 0 | J121: 0 | K121: 0 | L121: 0 | M121: 0 | N121: 0 | O121: 0 | P121: 0 | Q121: 0 | R121: 0 | S121: 0 | T121: 0 | U121: 0 | V121: 0 | W121: 0 | X121: 0 | Y121: 0 | Z121: 0 | AA121: 0 | AB121: 0 | AC121: 0 | AD121: 0 | AE121: 0 | AF121: 0 | AG121: 0 | AH121: 0 | AI121: 0 | AJ121: 0 | AK121: 0 | AL121: 0 | AM121: =COUNTIF(C121:AL121,"1") -> 6 | AO121: =SUM(AM121,AM127,AM133,AM139,AM145,AM151,AM157,AM163,) -> 48 | AP121: =AO121/8 -> 6 | AQ121: =AP121/35 -> 0.1714285714
B122: Nano 3 | C122: 0 | D122: 0 | E122: 0 | F122: 0 | G122: 0 | H122: 0 | I122: 0 | J122: 0 | K122: 0 | L122: 0 | M122: 0 | N122: 0 | O122: 0 | P122: 0 | Q122: 0 | R122: 0 | S122: 0 | T122: 0 | U122: 0 | V122: 0 | W122: 0 | X122: 0 | Y122: 0 | Z122: 0 | AA122: 0 | AB122: 0 | AC122: 0 | AD122: 0 | AE122: 0 | AF122: 0 | AG122: 0 | AH122: 0 | AI122: 0 | AJ122: 0 | AK122: 0 | AL122: 0 | AM122: 0 | AO122: 111 | AP122: 13.875 | AQ122: 0.3964285714
B123: Nano 4 | C123: 0 | D123: 0 | E123: 0 | F123: 0 | G123: 0 | H123: 0 | I123: 0 | J123: 0 | K123: 0 | L123: 0 | M123: 0 | N123: 0 | O123: 0 | P123: 0 | Q123: 0 | R123: 0 | S123: 0 | T123: 0 | U123: 0 | V123: 0 | W123: 0 | X123: 0 | Y123: 0 | Z123: 0 | AA123: 0 | AB123: 0 | AC123: 0 | AD123: 0 | AE123: 0 | AF123: 0 | AG123: 0 | AH123: 0 | AI123: 0 | AJ123: 1 | AK123: 1 | AL123: 1 | AM123: 3 | AO123: 66 | AP123: 8.25 | AQ123: 0.2357142857
B124: Nano 5 | C124: 0 | D124: 0 | E124: 0 | F124: 0 | G124: 0 | H124: 0 | I124: 0 | J124: 0 | K124: 0 | L124: 1 | M124: 1 | N124: 1 | O124: 1 | P124: 1 | Q124: 1 | R124: 1 | S124: 1 | T124: 1 | U124: 1 | V124: 1 | W124: 1 | X124: 1 | Y124: 1 | Z124: 1 | AA124: 1 | AB124: 1 | AC124: 1 | AD124: 1 | AE124: 1 | AF124: 1 | AG124: 1 | AH124: 1 | AI124: 1 | AJ124: 0 | AK124: 0 | AL124: 0 | AM124: 24 | AO124: 158 | AP124: 19.75 | AQ124: 0.5642857143
A126: ACX-11 | B126: Nano 1 | C126: 1 | D126: 0 | E126: 0 | F126: 0 | G126: 0 | H126: 0 | I126: 0 | J126: 0 | K126: 0 | L126: 0 | M126: 0 | N126: 0 | O126: 0 | P126: 0 | Q126: 0 | R126: 0 | S126: 1 | T126: 1 | U126: 1 | V126: 1 | W126: 1 | X126: 1 | Y126: 1 | Z126: 1 | AA126: 1 | AB126: 1 | AC126: 1 | AD126: 1 | AE126: 1 | AF126: 1 | AG126: 1 | AH126: 1 | AI126: 1 | AJ126: 1 | AK126: 1 | AL126: 1 | AM126: =COUNTIF(C126:AL126,"1") -> 21
B127: Nano 2 | C127: 0 | D127: 0 | E127: 0 | F127: 0 | G127: 0 | H127: 0 | I127: 0 | J127: 0 | K127: 0 | L127: 0 | M127: 0 | N127: 1 | O127: 1 | P127: 1 | Q127: 1 | R127: 1 | S127: 0 | T127: 0 | U127: 0 | V127: 0 | W127: 0 | X127: 0 | Y127: 0 | Z127: 0 | AA127: 0 | AB127: 0 | AC127: 0 | AD127: 0 | AE127: 0 | AF127: 0 | AG127: 0 | AH127: 0 | AI127: 0 | AJ127: 0 | AK127: 0 | AL127: 0 | AM127: 5
B128: Nano 3 | C128: 0 | D128: 0 | E128: 0 | F128: 0 | G128: 0 | H128: 0 | I128: 1 | J128: 1 | K128: 1 | L128: 1 | M128: 1 | N128: 0 | O128: 0 | P128: 0 | Q128: 0 | R128: 0 | S128: 0 | T128: 0 | U128: 0 | V128: 0 | W128: 0 | X128: 0 | Y128: 0 | Z128: 0 | AA128: 0 | AB128: 0 | AC128: 0 | AD128: 0 | AE128: 0 | AF128: 0 | AG128: 0 | AH128: 0 | AI128: 0 | AJ128: 0 | AK128: 0 | AL128: 0 | AM128: 5
B129: Nano 4 | C129: 1 | D129: 1 | E129: 1 | F129: 1 | G129: 1 | H129: 1 | I129: 0 | J129: 0 | K129: 0 | L129: 0 | M129: 0 | N129: 0 | O129: 0 | P129: 0 | Q129: 0 | R129: 0 | S129: 0 | T129: 0 | U129: 0 | V129: 0 | W129: 0 | X129: 0 | Y129: 0 | Z129: 0 | AA129: 0 | AB129: 0 | AC129: 1 | AD129: 1 | AE129: 1 | AF129: 1 | AG129: 1 | AH129: 1 | AI129: 1 | AJ129: 1 | AK129: 1 | AL129: 1 | AM129: 16
B130: Nano 5 | C130: 0 | D130: 0 | E130: 0 | F130: 0 | G130: 0 | H130: 0 | I130: 0 | J130: 0 | K130: 0 | L130: 0 | M130: 0 | N130: 0 | O130: 0 | P130: 0 | Q130: 1 | R130: 1 | S130: 1 | T130: 1 | U130: 1 | V130: 1 | W130: 1 | X130: 1 | Y130: 1 | Z130: 1 | AA130: 1 | AB130: 1 | AC130: 0 | AD130: 0 | AE130: 0 | AF130: 0 | AG130: 0 | AH130: 0 | AI130: 0 | AJ130: 0 | AK130: 0 | AL130: 0 | AM130: 12
A132: Gauss Rifle | B132: Nano 1 | C132: 1 | D132: 1 | E132: 1 | F132: 1 | G132: 1 | H132: 1 | I132: 1 | J132: 1 | K132: 1 | L132: 1 | M132: 1 | N132: 1 | O132: 1 | P132: 1 | Q132: 1 | R132: 1 | S132: 1 | T132: 1 | U132: 1 | V132: 1 | W132: 1 | X132: 1 | Y132: 1 | Z132: 1 | AA132: 1 | AB132: 1 | AC132: 1 | AD132: 1 | AE132: 1 | AF132: 1 | AG132: 1 | AH132: 1 | AI132: 1 | AJ132: 1 | AK132: 1 | AL132: 1 | AM132: =COUNTIF(C132:AL132,"1") -> 36
B133: Nano 2 | C133: 0 | D133: 0 | E133: 0 | F133: 0 | G133: 0 | H133: 0 | I133: 0 | J133: 0 | K133: 0 | L133: 0 | M133: 0 | N133: 0 | O133: 0 | P133: 0 | Q133: 0 | R133: 0 | S133: 0 | T133: 0 | U133: 0 | V133: 0 | W133: 0 | X133: 0 | Y133: 0 | Z133: 0 | AA133: 0 | AB133: 0 | AC133: 0 | AD133: 0 | AE133: 0 | AF133: 0 | AG133: 0 | AH133: 0 | AI133: 0 | AJ133: 0 | AK133: 0 | AL133: 0 | AM133: 0
B134: Nano 3 | C134: 0 | D134: 0 | E134: 0 | F134: 0 | G134: 0 | H134: 0 | I134: 0 | J134: 0 | K134: 0 | L134: 0 | M134: 0 | N134: 0 | O134: 0 | P134: 0 | Q134: 0 | R134: 0 | S134: 0 | T134: 0 | U134: 0 | V134: 0 | W134: 0 | X134: 0 | Y134: 0 | Z134: 0 | AA134: 0 | AB134: 0 | AC134: 0 | AD134: 0 | AE134: 0 | AF134: 0 | AG134: 0 | AH134: 0 | AI134: 0 | AJ134: 0 | AK134: 0 | AL134: 0 | AM134: 0
B135: Nano 4 | C135: 0 | D135: 0 | E135: 0 | F135: 0 | G135: 0 | H135: 0 | I135: 0 | J135: 0 | K135: 0 | L135: 0 | M135: 0 | N135: 0 | O135: 0 | P135: 0 | Q135: 0 | R135: 1 | S135: 1 | T135: 1 | U135: 1 | V135: 1 | W135: 1 | X135: 1 | Y135: 1 | Z135: 1 | AA135: 1 | AB135: 1 | AC135: 1 | AD135: 1 | AE135: 1 | AF135: 1 | AG135: 1 | AH135: 1 | AI135: 1 | AJ135: 1 | AK135: 1 | AL135: 1 | AM135: 21
B136: Nano 5 | C136: 1 | D136: 1 | E136: 1 | F136: 1 | G136: 1 | H136: 1 | I136: 1 | J136: 1 | K136: 1 | L136: 1 | M136: 1 | N136: 1 | O136: 1 | P136: 1 | Q136: 1 | R136: 0 | S136: 0 | T136: 0 | U136: 0 | V136: 0 | W136: 0 | X136: 0 | Y136: 0 | Z136: 0 | AA136: 0 | AB136: 0 | AC136: 0 | AD136: 0 | AE136: 0 | AF136: 0 | AG136: 0 | AH136: 0 | AI136: 0 | AJ136: 0 | AK136: 0 | AL136: 0 | AM136: 15
A138: Mercenary | B138: Nano 1 | C138: 0 | D138: 0 | E138: 0 | F138: 0 | G138: 0 | H138: 0 | I138: 1 | J138: 1 | K138: 1 | L138: 1 | M138: 1 | N138: 1 | O138: 1 | P138: 1 | Q138: 1 | R138: 1 | S138: 1 | T138: 1 | U138: 1 | V138: 1 | W138: 1 | X138: 1 | Y138: 1 | Z138: 1 | AA138: 1 | AB138: 1 | AC138: 1 | AD138: 1 | AE138: 1 | AF138: 1 | AG138: 1 | AH138: 1 | AI138: 1 | AJ138: 1 | AK138: 1 | AL138: 1 | AM138: =COUNTIF(C138:AL138,"1") -> 30
B139: Nano 2 | C139: 0 | D139: 1 | E139: 1 | F139: 1 | G139: 1 | H139: 1 | I139: 0 | J139: 0 | K139: 0 | L139: 0 | M139: 0 | N139: 0 | O139: 0 | P139: 0 | Q139: 0 | R139: 0 | S139: 0 | T139: 0 | U139: 0 | V139: 0 | W139: 0 | X139: 0 | Y139: 0 | Z139: 0 | AA139: 0 | AB139: 0 | AC139: 0 | AD139: 0 | AE139: 0 | AF139: 0 | AG139: 0 | AH139: 0 | AI139: 0 | AJ139: 0 | AK139: 0 | AL139: 0 | AM139: 5
B140: Nano 3 | C140: 1 | D140: 0 | E140: 0 | F140: 0 | G140: 0 | H140: 0 | I140: 0 | J140: 0 | K140: 0 | L140: 0 | M140: 0 | N140: 0 | O140: 0 | P140: 0 | Q140: 0 | R140: 0 | S140: 0 | T140: 0 | U140: 1 | V140: 1 | W140: 1 | X140: 1 | Y140: 1 | Z140: 1 | AA140: 1 | AB140: 1 | AC140: 1 | AD140: 1 | AE140: 1 | AF140: 1 | AG140: 1 | AH140: 1 | AI140: 1 | AJ140: 1 | AK140: 1 | AL140: 1 | AM140: 19
B141: Nano 4 | C141: 0 | D141: 0 | E141: 0 | F141: 0 | G141: 0 | H141: 0 | I141: 0 | J141: 0 | K141: 0 | L141: 0 | M141: 0 | N141: 0 | O141: 1 | P141: 1 | Q141: 1 | R141: 1 | S141: 1 | T141: 1 | U141: 0 | V141: 0 | W141: 0 | X141: 0 | Y141: 0 | Z141: 0 | AA141: 0 | AB141: 0 | AC141: 0 | AD141: 0 | AE141: 0 | AF141: 0 | AG141: 0 | AH141: 0 | AI141: 0 | AJ141: 0 | AK141: 0 | AL141: 0 | AM141: 6
B142: Nano 5 | C142: 0 | D142: 1 | E142: 1 | F142: 1 | G142: 1 | H142: 1 | I142: 1 | J142: 1 | K142: 1 | L142: 1 | M142: 1 | N142: 1 | O142: 0 | P142: 0 | Q142: 0 | R142: 0 | S142: 0 | T142: 0 | U142: 0 | V142: 0 | W142: 0 | X142: 0 | Y142: 0 | Z142: 0 | AA142: 0 | AB142: 0 | AC142: 0 | AD142: 0 | AE142: 0 | AF142: 0 | AG142: 0 | AH142: 0 | AI142: 0 | AJ142: 0 | AK142: 0 | AL142: 0 | AM142: 11
A144: Bandit | B144: Nano 1 | C144: 0 | D144: 0 | E144: 0 | F144: 0 | G144: 1 | H144: 1 | I144: 1 | J144: 1 | K144: 1 | L144: 1 | M144: 1 | N144: 1 | O144: 1 | P144: 1 | Q144: 1 | R144: 1 | S144: 1 | T144: 1 | U144: 1 | V144: 1 | W144: 1 | X144: 1 | Y144: 1 | Z144: 1 | AA144: 1 | AB144: 1 | AC144: 1 | AD144: 1 | AE144: 1 | AF144: 1 | AG144: 1 | AH144: 1 | AI144: 1 | AJ144: 1 | AK144: 1 | AL144: 1 | AM144: =COUNTIF(C144:AL144,"1") -> 32
B145: Nano 2 | C145: 0 | D145: 1 | E145: 1 | F145: 1 | G145: 0 | H145: 0 | I145: 0 | J145: 0 | K145: 0 | L145: 0 | M145: 0 | N145: 0 | O145: 0 | P145: 0 | Q145: 0 | R145: 0 | S145: 0 | T145: 0 | U145: 0 | V145: 0 | W145: 0 | X145: 0 | Y145: 0 | Z145: 0 | AA145: 0 | AB145: 0 | AC145: 0 | AD145: 0 | AE145: 0 | AF145: 0 | AG145: 0 | AH145: 0 | AI145: 0 | AJ145: 0 | AK145: 0 | AL145: 0 | AM145: 3
B146: Nano 3 | C146: 1 | D146: 0 | E146: 0 | F146: 0 | G146: 0 | H146: 0 | I146: 0 | J146: 0 | K146: 0 | L146: 1 | M146: 1 | N146: 1 | O146: 1 | P146: 1 | Q146: 1 | R146: 1 | S146: 1 | T146: 1 | U146: 1 | V146: 1 | W146: 1 | X146: 1 | Y146: 1 | Z146: 1 | AA146: 1 | AB146: 1 | AC146: 1 | AD146: 1 | AE146: 1 | AF146: 1 | AG146: 1 | AH146: 1 | AI146: 1 | AJ146: 1 | AK146: 1 | AL146: 1 | AM146: 28
B147: Nano 4 | C147: 0 | D147: 0 | E147: 0 | F147: 0 | G147: 0 | H147: 0 | I147: 1 | J147: 1 | K147: 1 | L147: 0 | M147: 0 | N147: 0 | O147: 0 | P147: 0 | Q147: 0 | R147: 0 | S147: 0 | T147: 0 | U147: 0 | V147: 0 | W147: 0 | X147: 0 | Y147: 0 | Z147: 0 | AA147: 0 | AB147: 0 | AC147: 0 | AD147: 0 | AE147: 0 | AF147: 0 | AG147: 0 | AH147: 0 | AI147: 0 | AJ147: 0 | AK147: 0 | AL147: 0 | AM147: 3
B148: Nano 5 | C148: 1 | D148: 1 | E148: 1 | F148: 1 | G148: 1 | H148: 1 | I148: 0 | J148: 0 | K148: 0 | L148: 1 | M148: 1 | N148: 1 | O148: 1 | P148: 1 | Q148: 1 | R148: 1 | S148: 1 | T148: 1 | U148: 1 | V148: 1 | W148: 1 | X148: 1 | Y148: 1 | Z148: 1 | AA148: 1 | AB148: 1 | AC148: 1 | AD148: 1 | AE148: 1 | AF148: 1 | AG148: 1 | AH148: 1 | AI148: 1 | AJ148: 1 | AK148: 1 | AL148: 1 | AM148: 33
A150: Carv and Cycler | B150: Nano 1 | C150: 1 | D150: 1 | E150: 1 | F150: 1 | G150: 1 | H150: 1 | I150: 1 | J150: 1 | K150: 1 | L150: 1 | M150: 1 | N150: 1 | O150: 1 | P150: 1 | Q150: 1 | R150: 1 | S150: 1 | T150: 1 | U150: 1 | V150: 1 | W150: 1 | X150: 1 | Y150: 1 | Z150: 1 | AA150: 1 | AB150: 1 | AC150: 1 | AD150: 1 | AE150: 1 | AF150: 1 | AG150: 1 | AH150: 1 | AI150: 1 | AJ150: 1 | AK150: 1 | AL150: 1 | AM150: =COUNTIF(C150:AL150,"1") -> 36
B151: Nano 2 | C151: 0 | D151: 0 | E151: 0 | F151: 0 | G151: 0 | H151: 0 | I151: 0 | J151: 0 | K151: 0 | L151: 0 | M151: 0 | N151: 0 | O151: 0 | P151: 0 | Q151: 0 | R151: 0 | S151: 0 | T151: 0 | U151: 0 | V151: 0 | W151: 0 | X151: 0 | Y151: 0 | Z151: 0 | AA151: 0 | AB151: 0 | AC151: 0 | AD151: 0 | AE151: 0 | AF151: 0 | AG151: 0 | AH151: 0 | AI151: 0 | AJ151: 0 | AK151: 0 | AL151: 0 | AM151: 0
B152: Nano 3 | C152: 0 | D152: 0 | E152: 0 | F152: 0 | G152: 0 | H152: 0 | I152: 0 | J152: 0 | K152: 0 | L152: 1 | M152: 1 | N152: 1 | O152: 1 | P152: 1 | Q152: 1 | R152: 1 | S152: 1 | T152: 1 | U152: 1 | V152: 1 | W152: 1 | X152: 1 | Y152: 1 | Z152: 1 | AA152: 1 | AB152: 1 | AC152: 1 | AD152: 1 | AE152: 1 | AF152: 1 | AG152: 1 | AH152: 1 | AI152: 1 | AJ152: 1 | AK152: 1 | AL152: 1 | AM152: 27
B153: Nano 4 | C153: 1 | D153: 1 | E153: 1 | F153: 1 | G153: 1 | H153: 1 | I153: 1 | J153: 1 | K153: 1 | L153: 0 | M153: 0 | N153: 0 | O153: 0 | P153: 0 | Q153: 0 | R153: 0 | S153: 0 | T153: 0 | U153: 0 | V153: 0 | W153: 0 | X153: 0 | Y153: 0 | Z153: 0 | AA153: 0 | AB153: 0 | AC153: 0 | AD153: 0 | AE153: 0 | AF153: 0 | AG153: 0 | AH153: 0 | AI153: 0 | AJ153: 0 | AK153: 0 | AL153: 0 | AM153: 9
B154: Nano 5 | C154: 0 | D154: 0 | E154: 0 | F154: 0 | G154: 0 | H154: 0 | I154: 0 | J154: 0 | K154: 0 | L154: 0 | M154: 0 | N154: 0 | O154: 0 | P154: 0 | Q154: 0 | R154: 0 | S154: 0 | T154: 0 | U154: 0 | V154: 0 | W154: 0 | X154: 0 | Y154: 0 | Z154: 0 | AA154: 0 | AB154: 0 | AC154: 0 | AD154: 0 | AE154: 0 | AF154: 0 | AG154: 0 | AH154: 0 | AI154: 0 | AJ154: 0 | AK154: 0 | AL154: 0 | AM154: 0
A156: TAR, H-V45, GR-22, TRAC 5, Solstice | B156: Nano 1 | C156: 1 | D156: 1 | E156: 1 | F156: 1 | G156: 1 | H156: 1 | I156: 1 | J156: 1 | K156: 1 | L156: 1 | M156: 1 | N156: 1 | O156: 1 | P156: 1 | Q156: 1 | R156: 1 | S156: 1 | T156: 1 | U156: 1 | V156: 1 | W156: 1 | X156: 1 | Y156: 1 | Z156: 1 | AA156: 1 | AB156: 1 | AC156: 1 | AD156: 1 | AE156: 1 | AF156: 1 | AG156: 1 | AH156: 1 | AI156: 1 | AJ156: 1 | AK156: 1 | AL156: 1 | AM156: =COUNTIF(C156:AL156,"1") -> 36
B157: Nano 2 | C157: 0 | D157: 0 | E157: 0 | F157: 0 | G157: 0 | H157: 0 | I157: 0 | J157: 0 | K157: 0 | L157: 0 | M157: 0 | N157: 0 | O157: 0 | P157: 0 | Q157: 0 | R157: 0 | S157: 0 | T157: 0 | U157: 0 | V157: 0 | W157: 0 | X157: 0 | Y157: 0 | Z157: 0 | AA157: 0 | AB157: 0 | AC157: 0 | AD157: 0 | AE157: 0 | AF157: 0 | AG157: 0 | AH157: 0 | AI157: 0 | AJ157: 0 | AK157: 0 | AL157: 0 | AM157: 0
B158: Nano 3 | C158: 0 | D158: 0 | E158: 0 | F158: 0 | G158: 0 | H158: 0 | I158: 0 | J158: 1 | K158: 1 | L158: 1 | M158: 1 | N158: 1 | O158: 1 | P158: 1 | Q158: 1 | R158: 1 | S158: 1 | T158: 1 | U158: 1 | V158: 1 | W158: 1 | X158: 1 | Y158: 1 | Z158: 1 | AA158: 1 | AB158: 1 | AC158: 1 | AD158: 1 | AE158: 1 | AF158: 1 | AG158: 1 | AH158: 1 | AI158: 1 | AJ158: 1 | AK158: 1 | AL158: 1 | AM158: 29
B159: Nano 4 | C159: 0 | D159: 0 | E159: 1 | F159: 1 | G159: 1 | H159: 1 | I159: 1 | J159: 0 | K159: 0 | L159: 0 | M159: 0 | N159: 0 | O159: 0 | P159: 0 | Q159: 0 | R159: 0 | S159: 0 | T159: 0 | U159: 0 | V159: 0 | W159: 0 | X159: 0 | Y159: 0 | Z159: 0 | AA159: 0 | AB159: 0 | AC159: 0 | AD159: 0 | AE159: 0 | AF159: 0 | AG159: 0 | AH159: 0 | AI159: 0 | AJ159: 0 | AK159: 0 | AL159: 0 | AM159: 5
B160: Nano 5 | C160: 1 | D160: 1 | E160: 0 | F160: 0 | G160: 0 | H160: 0 | I160: 0 | J160: 0 | K160: 1 | L160: 1 | M160: 1 | N160: 1 | O160: 1 | P160: 1 | Q160: 1 | R160: 1 | S160: 1 | T160: 1 | U160: 1 | V160: 1 | W160: 1 | X160: 1 | Y160: 1 | Z160: 1 | AA160: 1 | AB160: 1 | AC160: 1 | AD160: 1 | AE160: 1 | AF160: 1 | AG160: 1 | AH160: 1 | AI160: 1 | AJ160: 1 | AK160: 1 | AL160: 1 | AM160: 30
A162: GD-7F and Serpent | B162: Nano 1 | C162: 0 | D162: 0 | E162: 1 | F162: 1 | G162: 1 | H162: 1 | I162: 1 | J162: 1 | K162: 1 | L162: 1 | M162: 1 | N162: 1 | O162: 1 | P162: 1 | Q162: 1 | R162: 1 | S162: 1 | T162: 1 | U162: 1 | V162: 1 | W162: 1 | X162: 1 | Y162: 1 | Z162: 1 | AA162: 1 | AB162: 1 | AC162: 1 | AD162: 1 | AE162: 1 | AF162: 1 | AG162: 1 | AH162: 1 | AI162: 1 | AJ162: 1 | AK162: 1 | AL162: 1 | AM162: =COUNTIF(C162:AL162,"1") -> 34
B163: Nano 2 | C163: 1 | D163: 1 | E163: 0 | F163: 0 | G163: 0 | H163: 0 | I163: 0 | J163: 0 | K163: 0 | L163: 1 | M163: 1 | N163: 1 | O163: 1 | P163: 1 | Q163: 1 | R163: 1 | S163: 1 | T163: 1 | U163: 1 | V163: 1 | W163: 1 | X163: 1 | Y163: 1 | Z163: 1 | AA163: 1 | AB163: 1 | AC163: 1 | AD163: 1 | AE163: 1 | AF163: 1 | AG163: 1 | AH163: 1 | AI163: 1 | AJ163: 1 | AK163: 1 | AL163: 1 | AM163: 29
B164: Nano 3 | C164: 0 | D164: 0 | E164: 0 | F164: 0 | G164: 0 | H164: 0 | I164: 1 | J164: 1 | K164: 1 | L164: 0 | M164: 0 | N164: 0 | O164: 0 | P164: 0 | Q164: 0 | R164: 0 | S164: 0 | T164: 0 | U164: 0 | V164: 0 | W164: 0 | X164: 0 | Y164: 0 | Z164: 0 | AA164: 0 | AB164: 0 | AC164: 0 | AD164: 0 | AE164: 0 | AF164: 0 | AG164: 0 | AH164: 0 | AI164: 0 | AJ164: 0 | AK164: 0 | AL164: 0 | AM164: 3
B165: Nano 4 | C165: 0 | D165: 0 | E165: 0 | F165: 1 | G165: 1 | H165: 1 | I165: 0 | J165: 0 | K165: 0 | L165: 0 | M165: 0 | N165: 0 | O165: 0 | P165: 0 | Q165: 0 | R165: 0 | S165: 0 | T165: 0 | U165: 0 | V165: 0 | W165: 0 | X165: 0 | Y165: 0 | Z165: 0 | AA165: 0 | AB165: 0 | AC165: 0 | AD165: 0 | AE165: 0 | AF165: 0 | AG165: 0 | AH165: 0 | AI165: 0 | AJ165: 0 | AK165: 0 | AL165: 0 | AM165: 3
B166: Nano 5 | C166: 1 | D166: 1 | E166: 1 | F166: 0 | G166: 0 | H166: 0 | I166: 1 | J166: 1 | K166: 1 | L166: 1 | M166: 1 | N166: 1 | O166: 1 | P166: 1 | Q166: 1 | R166: 1 | S166: 1 | T166: 1 | U166: 1 | V166: 1 | W166: 1 | X166: 1 | Y166: 1 | Z166: 1 | AA166: 1 | AB166: 1 | AC166: 1 | AD166: 1 | AE166: 1 | AF166: 1 | AG166: 1 | AH166: 1 | AI166: 1 | AJ166: 1 | AK166: 1 | AL166: 1 | AM166: 33
B168: Range, m | C168: 50 | D168: 51 | E168: 52 | F168: 53 | G168: 54 | H168: 55 | I168: 56 | J168: 57 | K168: 58 | L168: 59 | M168: 60 | N168: 61 | O168: 62 | P168: 63 | Q168: 64 | R168: 65 | S168: 66 | T168: 67 | U168: 68 | V168: 69 | W168: 70 | X168: 71 | Y168: 72 | Z168: 73 | AA168: 74 | AB168: 75 | AC168: 76 | AD168: 77 | AE168: 78 | AF168: 79 | AG168: 80 | AH168: 81 | AI168: 82 | AJ168: 83 | AK168: 84 | AL168: 85
B170: Range, m | C170: 1 | D170: 2 | E170: 3 | F170: 4 | G170: 5 | H170: 6 | I170: 7 | J170: 8 | K170: 9 | L170: 10 | M170: 11 | N170: 12 | O170: 13 | P170: 14 | Q170: 15 | R170: 16 | S170: 17 | T170: 18 | U170: 19 | V170: 20 | W170: 21 | X170: 22 | Y170: 23 | Z170: 24 | AA170: 25 | AB170: 26 | AC170: 27 | AD170: 28 | AE170: 29 | AF170: 30 | AG170: 31 | AH170: 32 | AI170: 33 | AJ170: 34 | AK170: 35 | AL170: 36 | AM170: 37 | AN170: 38 | AO170: 39 | AP170: 40 | AQ170: 41 | AR170: 42 | AS170: 43 | AT170: 44 | AU170: 45 | AV170: 46 | AW170: 47 | AX170: 48 | AY170: 49 | AZ170: 50 | BA170: 51 | BB170: 52 | BC170: 53 | BD170: 54 | BE170: 55 | BF170: 56 | BG170: 57 | BH170: 58 | BI170: 59 | BJ170: 60 | BK170: 61 | BL170: 62 | BM170: 63 | BN170: 64 | BO170: 65 | BP170: 66 | BQ170: 67 | BR170: 68 | BS170: 69 | BT170: 70 | BU170: 71 | BV170: 72 | BW170: 73 | BX170: 74 | BY170: 75 | BZ170: 76 | CA170: 77 | CB170: 78 | CC170: 79 | CD170: 80 | CE170: 81 | CF170: 82 | CG170: 83 | CH170: 84 | CI170: 85 | CJ170: Total
CL171: Sum
A172: Gauss SAW and Reaper DMR | B172: Nano 1 | C172: 1 | D172: 1 | E172: 1 | F172: 1 | G172: 1 | H172: 1 | I172: 1 | J172: 1 | K172: 1 | L172: 1 | M172: 0 | N172: 0 | O172: 0 | P172: 0 | Q172: 0 | R172: 0 | S172: 0 | T172: 0 | U172: 0 | V172: 0 | W172: 0 | X172: 0 | Y172: 0 | Z172: 0 | AA172: 0 | AB172: 0 | AC172: 0 | AD172: 0 | AE172: 0 | AF172: 0 | AG172: 0 | AH172: 0 | AI172: 0 | AJ172: 0 | AK172: 0 | AL172: 0 | AM172: 0 | AN172: 0 | AO172: 0 | AP172: 0 | AQ172: 0 | AR172: 0 | AS172: 0 | AT172: 0 | AU172: 0 | AV172: 0 | AW172: 0 | AX172: 0 | AY172: 0 | AZ172: 0 | BA172: 0 | BB172: 0 | BC172: 0 | BD172: 0 | BE172: 0 | BF172: 1 | BG172: 1 | BH172: 1 | BI172: 1 | BJ172: 1 | BK172: 1 | BL172: 1 | BM172: 1 | BN172: 1 | BO172: 1 | BP172: 1 | BQ172: 1 | BR172: 1 | BS172: 1 | BT172: 1 | BU172: 1 | BV172: 1 | BW172: 1 | BX172: 1 | BY172: 1 | BZ172: 1 | CA172: 1 | CB172: 1 | CC172: 1 | CD172: 1 | CE172: 1 | CF172: 1 | CG172: 1 | CH172: 1 | CI172: 1 | CJ172: =COUNTIF(C172:CI172,"1") -> 40 | CL172: =SUM(CJ172,CJ178,CJ184,CJ190,CJ196,CJ202,CJ208,CJ214,) -> 455 | CM172: =CL172/9 -> 50.55555556 | CN172: =CM172/85 -> 0.5947712418
B173: Nano 2 | C173: 0 | D173: 0 | E173: 0 | F173: 0 | G173: 0 | H173: 0 | I173: 0 | J173: 0 | K173: 0 | L173: 0 | M173: 0 | N173: 0 | O173: 0 | P173: 0 | Q173: 0 | R173: 0 | S173: 0 | T173: 0 | U173: 0 | V173: 0 | W173: 0 | X173: 0 | Y173: 0 | Z173: 0 | AA173: 0 | AB173: 0 | AC173: 0 | AD173: 0 | AE173: 0 | AF173: 0 | AG173: 0 | AH173: 0 | AI173: 0 | AJ173: 0 | AK173: 0 | AL173: 0 | AM173: 0 | AN173: 0 | AO173: 0 | AP173: 0 | AQ173: 0 | AR173: 0 | AS173: 0 | AT173: 1 | AU173: 1 | AV173: 1 | AW173: 1 | AX173: 1 | AY173: 1 | AZ173: 1 | BA173: 1 | BB173: 1 | BC173: 1 | BD173: 1 | BE173: 1 | BF173: 0 | BG173: 0 | BH173: 0 | BI173: 0 | BJ173: 0 | BK173: 0 | BL173: 0 | BM173: 0 | BN173: 0 | BO173: 0 | BP173: 0 | BQ173: 0 | BR173: 0 | BS173: 0 | BT173: 0 | BU173: 0 | BV173: 0 | BW173: 0 | BX173: 0 | BY173: 0 | BZ173: 0 | CA173: 0 | CB173: 0 | CC173: 0 | CD173: 0 | CE173: 0 | CF173: 0 | CG173: 0 | CH173: 0 | CI173: 0 | CJ173: =COUNTIF(C173:CI173,"1") -> 12 | CL173: =SUM(CJ173,CJ179,CJ185,CJ191,CJ197,CJ203,CJ209,CJ215,) -> 116 | CM173: =CL173/9 -> 12.88888889 | CN173: =CM173/85 -> 0.1516339869
B174: Nano 3 | C174: 0 | D174: 0 | E174: 0 | F174: 0 | G174: 0 | H174: 0 | I174: 0 | J174: 0 | K174: 0 | L174: 0 | M174: 0 | N174: 0 | O174: 0 | P174: 0 | Q174: 0 | R174: 0 | S174: 0 | T174: 0 | U174: 0 | V174: 0 | W174: 0 | X174: 0 | Y174: 0 | Z174: 0 | AA174: 0 | AB174: 0 | AC174: 0 | AD174: 0 | AE174: 0 | AF174: 0 | AG174: 0 | AH174: 1 | AI174: 1 | AJ174: 1 | AK174: 1 | AL174: 1 | AM174: 1 | AN174: 1 | AO174: 1 | AP174: 1 | AQ174: 1 | AR174: 1 | AS174: 1 | AT174: 0 | AU174: 0 | AV174: 0 | AW174: 0 | AX174: 0 | AY174: 0 | AZ174: 0 | BA174: 0 | BB174: 0 | BC174: 0 | BD174: 0 | BE174: 0 | BF174: 0 | BG174: 0 | BH174: 0 | BI174: 0 | BJ174: 0 | BK174: 0 | BL174: 0 | BM174: 0 | BN174: 0 | BO174: 0 | BP174: 0 | BQ174: 0 | BR174: 0 | BS174: 0 | BT174: 0 | BU174: 0 | BV174: 0 | BW174: 0 | BX174: 0 | BY174: 0 | BZ174: 0 | CA174: 0 | CB174: 0 | CC174: 0 | CD174: 0 | CE174: 0 | CF174: 0 | CG174: 0 | CH174: 0 | CI174: 0 | CJ174: 12 | CL174: 195 | CM174: 21.66666667 | CN174: 0.2549019608
B175: Nano 4 | C175: 0 | D175: 0 | E175: 0 | F175: 0 | G175: 0 | H175: 0 | I175: 0 | J175: 0 | K175: 0 | L175: 0 | M175: 0 | N175: 0 | O175: 0 | P175: 0 | Q175: 0 | R175: 0 | S175: 0 | T175: 0 | U175: 1 | V175: 1 | W175: 1 | X175: 1 | Y175: 1 | Z175: 1 | AA175: 1 | AB175: 1 | AC175: 1 | AD175: 1 | AE175: 1 | AF175: 1 | AG175: 1 | AH175: 0 | AI175: 0 | AJ175: 0 | AK175: 0 | AL175: 0 | AM175: 0 | AN175: 0 | AO175: 0 | AP175: 0 | AQ175: 0 | AR175: 0 | AS175: 0 | AT175: 0 | AU175: 0 | AV175: 0 | AW175: 0 | AX175: 0 | AY175: 0 | AZ175: 0 | BA175: 0 | BB175: 0 | BC175: 0 | BD175: 0 | BE175: 0 | BF175: 0 | BG175: 0 | BH175: 0 | BI175: 0 | BJ175: 0 | BK175: 0 | BL175: 0 | BM175: 0 | BN175: 0 | BO175: 0 | BP175: 0 | BQ175: 0 | BR175: 0 | BS175: 0 | BT175: 0 | BU175: 0 | BV175: 0 | BW175: 0 | BX175: 0 | BY175: 0 | BZ175: 0 | CA175: 0 | CB175: 0 | CC175: 0 | CD175: 0 | CE175: 0 | CF175: 0 | CG175: 1 | CH175: 1 | CI175: 1 | CJ175: 16 | CL175: 207 | CM175: 23 | CN175: 0.2705882353
B176: Nano 5 | C176: 1 | D176: 1 | E176: 1 | F176: 1 | G176: 1 | H176: 1 | I176: 1 | J176: 1 | K176: 1 | L176: 1 | M176: 1 | N176: 1 | O176: 1 | P176: 1 | Q176: 1 | R176: 1 | S176: 1 | T176: 1 | U176: 0 | V176: 0 | W176: 0 | X176: 0 | Y176: 0 | Z176: 0 | AA176: 0 | AB176: 0 | AC176: 0 | AD176: 0 | AE176: 0 | AF176: 0 | AG176: 0 | AH176: 0 | AI176: 0 | AJ176: 0 | AK176: 0 | AL176: 0 | AM176: 0 | AN176: 0 | AO176: 0 | AP176: 0 | AQ176: 0 | AR176: 0 | AS176: 0 | AT176: 0 | AU176: 0 | AV176: 0 | AW176: 0 | AX176: 0 | AY176: 0 | AZ176: 0 | BA176: 0 | BB176: 0 | BC176: 0 | BD176: 0 | BE176: 0 | BF176: 0 | BG176: 0 | BH176: 0 | BI176: 1 | BJ176: 1 | BK176: 1 | BL176: 1 | BM176: 1 | BN176: 1 | BO176: 1 | BP176: 1 | BQ176: 1 | BR176: 1 | BS176: 1 | BT176: 1 | BU176: 1 | BV176: 1 | BW176: 1 | BX176: 1 | BY176: 1 | BZ176: 1 | CA176: 1 | CB176: 1 | CC176: 1 | CD176: 1 | CE176: 1 | CF176: 1 | CG176: 0 | CH176: 0 | CI176: 0 | CJ176: 42 | CL176: 305 | CM176: 33.88888889 | CN176: 0.3986928105
A178: ACX-11 | B178: Nano 1 | C178: 1 | D178: 1 | E178: 1 | F178: 1 | G178: 1 | H178: 1 | I178: 1 | J178: 1 | K178: 1 | L178: 1 | M178: 0 | N178: 0 | O178: 0 | P178: 0 | Q178: 0 | R178: 0 | S178: 0 | T178: 0 | U178: 0 | V178: 0 | W178: 0 | X178: 0 | Y178: 0 | Z178: 0 | AA178: 0 | AB178: 0 | AC178: 0 | AD178: 0 | AE178: 0 | AF178: 0 | AG178: 0 | AH178: 0 | AI178: 0 | AJ178: 0 | AK178: 1 | AL178: 1 | AM178: 1 | AN178: 1 | AO178: 1 | AP178: 1 | AQ178: 1 | AR178: 1 | AS178: 1 | AT178: 1 | AU178: 1 | AV178: 1 | AW178: 1 | AX178: 1 | AY178: 1 | AZ178: 1 | BA178: 0 | BB178: 0 | BC178: 0 | BD178: 0 | BE178: 0 | BF178: 0 | BG178: 0 | BH178: 0 | BI178: 0 | BJ178: 0 | BK178: 0 | BL178: 0 | BM178: 0 | BN178: 0 | BO178: 0 | BP178: 1 | BQ178: 1 | BR178: 1 | BS178: 1 | BT178: 1 | BU178: 1 | BV178: 1 | BW178: 1 | BX178: 1 | BY178: 1 | BZ178: 1 | CA178: 1 | CB178: 1 | CC178: 1 | CD178: 1 | CE178: 1 | CF178: 1 | CG178: 1 | CH178: 1 | CI178: 1 | CJ178: =COUNTIF(C178:CI178,"1") -> 46
B179: Nano 2 | C179: 0 | D179: 0 | E179: 0 | F179: 0 | G179: 0 | H179: 0 | I179: 0 | J179: 0 | K179: 0 | L179: 0 | M179: 0 | N179: 0 | O179: 0 | P179: 0 | Q179: 0 | R179: 0 | S179: 0 | T179: 0 | U179: 0 | V179: 0 | W179: 0 | X179: 0 | Y179: 0 | Z179: 0 | AA179: 0 | AB179: 0 | AC179: 0 | AD179: 0 | AE179: 1 | AF179: 1 | AG179: 1 | AH179: 1 | AI179: 1 | AJ179: 1 | AK179: 0 | AL179: 0 | AM179: 0 | AN179: 0 | AO179: 0 | AP179: 0 | AQ179: 0 | AR179: 0 | AS179: 0 | AT179: 0 | AU179: 0 | AV179: 0 | AW179: 0 | AX179: 0 | AY179: 0 | AZ179: 0 | BA179: 0 | BB179: 0 | BC179: 0 | BD179: 0 | BE179: 0 | BF179: 0 | BG179: 0 | BH179: 0 | BI179: 0 | BJ179: 0 | BK179: 1 | BL179: 1 | BM179: 1 | BN179: 1 | BO179: 1 | BP179: 0 | BQ179: 0 | BR179: 0 | BS179: 0 | BT179: 0 | BU179: 0 | BV179: 0 | BW179: 0 | BX179: 0 | BY179: 0 | BZ179: 0 | CA179: 0 | CB179: 0 | CC179: 0 | CD179: 0 | CE179: 0 | CF179: 0 | CG179: 0 | CH179: 0 | CI179: 0 | CJ179: 11
B180: Nano 3 | C180: 0 | D180: 0 | E180: 0 | F180: 0 | G180: 0 | H180: 0 | I180: 0 | J180: 0 | K180: 0 | L180: 0 | M180: 0 | N180: 0 | O180: 0 | P180: 0 | Q180: 0 | R180: 0 | S180: 0 | T180: 0 | U180: 0 | V180: 0 | W180: 0 | X180: 1 | Y180: 1 | Z180: 1 | AA180: 1 | AB180: 1 | AC180: 1 | AD180: 1 | AE180: 0 | AF180: 0 | AG180: 0 | AH180: 0 | AI180: 0 | AJ180: 0 | AK180: 0 | AL180: 0 | AM180: 0 | AN180: 0 | AO180: 0 | AP180: 0 | AQ180: 0 | AR180: 0 | AS180: 0 | AT180: 0 | AU180: 0 | AV180: 0 | AW180: 0 | AX180: 0 | AY180: 0 | AZ180: 0 | BA180: 0 | BB180: 0 | BC180: 0 | BD180: 0 | BE180: 0 | BF180: 1 | BG180: 1 | BH180: 1 | BI180: 1 | BJ180: 1 | BK180: 0 | BL180: 0 | BM180: 0 | BN180: 0 | BO180: 0 | BP180: 0 | BQ180: 0 | BR180: 0 | BS180: 0 | BT180: 0 | BU180: 0 | BV180: 0 | BW180: 0 | BX180: 0 | BY180: 0 | BZ180: 0 | CA180: 0 | CB180: 0 | CC180: 0 | CD180: 0 | CE180: 0 | CF180: 0 | CG180: 0 | CH180: 0 | CI180: 0 | CJ180: 12
B181: Nano 4 | C181: 0 | D181: 0 | E181: 0 | F181: 0 | G181: 0 | H181: 0 | I181: 0 | J181: 0 | K181: 0 | L181: 0 | M181: 0 | N181: 0 | O181: 0 | P181: 0 | Q181: 1 | R181: 1 | S181: 1 | T181: 1 | U181: 1 | V181: 1 | W181: 1 | X181: 0 | Y181: 0 | Z181: 0 | AA181: 0 | AB181: 0 | AC181: 0 | AD181: 0 | AE181: 0 | AF181: 0 | AG181: 0 | AH181: 0 | AI181: 0 | AJ181: 0 | AK181: 0 | AL181: 0 | AM181: 0 | AN181: 0 | AO181: 0 | AP181: 0 | AQ181: 0 | AR181: 0 | AS181: 0 | AT181: 0 | AU181: 0 | AV181: 0 | AW181: 0 | AX181: 0 | AY181: 0 | AZ181: 1 | BA181: 1 | BB181: 1 | BC181: 1 | BD181: 1 | BE181: 1 | BF181: 0 | BG181: 0 | BH181: 0 | BI181: 0 | BJ181: 0 | BK181: 0 | BL181: 0 | BM181: 0 | BN181: 0 | BO181: 0 | BP181: 0 | BQ181: 0 | BR181: 0 | BS181: 0 | BT181: 0 | BU181: 0 | BV181: 0 | BW181: 0 | BX181: 0 | BY181: 0 | BZ181: 1 | CA181: 1 | CB181: 1 | CC181: 1 | CD181: 1 | CE181: 1 | CF181: 1 | CG181: 1 | CH181: 1 | CI181: 1 | CJ181: 23
B182: Nano 5 | C182: 1 | D182: 1 | E182: 1 | F182: 1 | G182: 1 | H182: 1 | I182: 1 | J182: 1 | K182: 1 | L182: 1 | M182: 1 | N182: 1 | O182: 1 | P182: 1 | Q182: 0 | R182: 0 | S182: 0 | T182: 0 | U182: 0 | V182: 0 | W182: 0 | X182: 0 | Y182: 0 | Z182: 0 | AA182: 0 | AB182: 0 | AC182: 0 | AD182: 0 | AE182: 0 | AF182: 0 | AG182: 0 | AH182: 0 | AI182: 0 | AJ182: 0 | AK182: 0 | AL182: 0 | AM182: 1 | AN182: 1 | AO182: 1 | AP182: 1 | AQ182: 1 | AR182: 1 | AS182: 1 | AT182: 1 | AU182: 1 | AV182: 1 | AW182: 1 | AX182: 1 | AY182: 1 | AZ182: 0 | BA182: 0 | BB182: 0 | BC182: 0 | BD182: 0 | BE182: 0 | BF182: 0 | BG182: 0 | BH182: 0 | BI182: 0 | BJ182: 0 | BK182: 0 | BL182: 0 | BM182: 0 | BN182: 1 | BO182: 1 | BP182: 1 | BQ182: 1 | BR182: 1 | BS182: 1 | BT182: 1 | BU182: 1 | BV182: 1 | BW182: 1 | BX182: 1 | BY182: 1 | BZ182: 0 | CA182: 0 | CB182: 0 | CC182: 0 | CD182: 0 | CE182: 0 | CF182: 0 | CG182: 0 | CH182: 0 | CI182: 0 | CJ182: 39
A184: Gauss Rifle | B184: Nano 1 | C184: 1 | D184: 1 | E184: 1 | F184: 1 | G184: 1 | H184: 1 | I184: 1 | J184: 1 | K184: 1 | L184: 1 | M184: 0 | N184: 0 | O184: 0 | P184: 0 | Q184: 0 | R184: 0 | S184: 0 | T184: 0 | U184: 0 | V184: 0 | W184: 0 | X184: 0 | Y184: 0 | Z184: 0 | AA184: 0 | AB184: 0 | AC184: 0 | AD184: 0 | AE184: 0 | AF184: 0 | AG184: 0 | AH184: 0 | AI184: 0 | AJ184: 0 | AK184: 0 | AL184: 0 | AM184: 0 | AN184: 0 | AO184: 0 | AP184: 0 | AQ184: 0 | AR184: 0 | AS184: 0 | AT184: 0 | AU184: 1 | AV184: 1 | AW184: 1 | AX184: 1 | AY184: 1 | AZ184: 1 | BA184: 1 | BB184: 1 | BC184: 1 | BD184: 1 | BE184: 1 | BF184: 1 | BG184: 1 | BH184: 1 | BI184: 1 | BJ184: 1 | BK184: 1 | BL184: 1 | BM184: 1 | BN184: 1 | BO184: 1 | BP184: 1 | BQ184: 1 | BR184: 1 | BS184: 1 | BT184: 1 | BU184: 1 | BV184: 1 | BW184: 1 | BX184: 1 | BY184: 1 | BZ184: 1 | CA184: 1 | CB184: 1 | CC184: 1 | CD184: 1 | CE184: 1 | CF184: 1 | CG184: 1 | CH184: 1 | CI184: 1 | CJ184: =COUNTIF(C184:CI184,"1") -> 51
B185: Nano 2 | C185: 0 | D185: 0 | E185: 0 | F185: 0 | G185: 0 | H185: 0 | I185: 0 | J185: 0 | K185: 0 | L185: 0 | M185: 0 | N185: 0 | O185: 0 | P185: 0 | Q185: 0 | R185: 0 | S185: 0 | T185: 0 | U185: 0 | V185: 0 | W185: 0 | X185: 0 | Y185: 0 | Z185: 0 | AA185: 0 | AB185: 0 | AC185: 0 | AD185: 0 | AE185: 0 | AF185: 0 | AG185: 0 | AH185: 0 | AI185: 1 | AJ185: 1 | AK185: 1 | AL185: 1 | AM185: 1 | AN185: 1 | AO185: 1 | AP185: 1 | AQ185: 1 | AR185: 1 | AS185: 1 | AT185: 1 | AU185: 0 | AV185: 0 | AW185: 0 | AX185: 0 | AY185: 0 | AZ185: 0 | BA185: 0 | BB185: 0 | BC185: 0 | BD185: 0 | BE185: 0 | BF185: 0 | BG185: 0 | BH185: 0 | BI185: 0 | BJ185: 0 | BK185: 0 | BL185: 0 | BM185: 0 | BN185: 0 | BO185: 0 | BP185: 0 | BQ185: 0 | BR185: 0 | BS185: 0 | BT185: 0 | BU185: 0 | BV185: 0 | BW185: 0 | BX185: 0 | BY185: 0 | BZ185: 0 | CA185: 0 | CB185: 0 | CC185: 0 | CD185: 0 | CE185: 0 | CF185: 0 | CG185: 0 | CH185: 0 | CI185: 0 | CJ185: 12
B186: Nano 3 | C186: 0 | D186: 0 | E186: 0 | F186: 0 | G186: 0 | H186: 0 | I186: 0 | J186: 0 | K186: 0 | L186: 0 | M186: 0 | N186: 0 | O186: 0 | P186: 0 | Q186: 0 | R186: 0 | S186: 0 | T186: 0 | U186: 0 | V186: 0 | W186: 1 | X186: 1 | Y186: 1 | Z186: 1 | AA186: 1 | AB186: 1 | AC186: 1 | AD186: 1 | AE186: 1 | AF186: 1 | AG186: 1 | AH186: 1 | AI186: 0 | AJ186: 0 | AK186: 0 | AL186: 0 | AM186: 0 | AN186: 0 | AO186: 0 | AP186: 0 | AQ186: 0 | AR186: 0 | AS186: 0 | AT186: 0 | AU186: 0 | AV186: 0 | AW186: 0 | AX186: 0 | AY186: 0 | AZ186: 0 | BA186: 0 | BB186: 0 | BC186: 0 | BD186: 0 | BE186: 0 | BF186: 0 | BG186: 0 | BH186: 0 | BI186: 0 | BJ186: 0 | BK186: 0 | BL186: 0 | BM186: 0 | BN186: 0 | BO186: 0 | BP186: 0 | BQ186: 0 | BR186: 0 | BS186: 0 | BT186: 0 | BU186: 0 | BV186: 0 | BW186: 0 | BX186: 0 | BY186: 0 | BZ186: 0 | CA186: 0 | CB186: 0 | CC186: 0 | CD186: 0 | CE186: 0 | CF186: 0 | CG186: 0 | CH186: 0 | CI186: 0 | CJ186: 12
B187: Nano 4 | C187: 1 | D187: 1 | E187: 1 | F187: 1 | G187: 1 | H187: 1 | I187: 1 | J187: 1 | K187: 1 | L187: 1 | M187: 1 | N187: 1 | O187: 1 | P187: 1 | Q187: 1 | R187: 1 | S187: 1 | T187: 1 | U187: 1 | V187: 1 | W187: 0 | X187: 0 | Y187: 0 | Z187: 0 | AA187: 0 | AB187: 0 | AC187: 0 | AD187: 0 | AE187: 0 | AF187: 0 | AG187: 0 | AH187: 0 | AI187: 0 | AJ187: 0 | AK187: 0 | AL187: 0 | AM187: 0 | AN187: 0 | AO187: 0 | AP187: 0 | AQ187: 0 | AR187: 0 | AS187: 0 | AT187: 0 | AU187: 0 | AV187: 0 | AW187: 0 | AX187: 0 | AY187: 0 | AZ187: 0 | BA187: 0 | BB187: 0 | BC187: 0 | BD187: 0 | BE187: 0 | BF187: 0 | BG187: 0 | BH187: 0 | BI187: 0 | BJ187: 0 | BK187: 0 | BL187: 0 | BM187: 0 | BN187: 0 | BO187: 1 | BP187: 1 | BQ187: 1 | BR187: 1 | BS187: 1 | BT187: 1 | BU187: 1 | BV187: 1 | BW187: 1 | BX187: 1 | BY187: 1 | BZ187: 1 | CA187: 1 | CB187: 1 | CC187: 1 | CD187: 1 | CE187: 1 | CF187: 1 | CG187: 1 | CH187: 1 | CI187: 1 | CJ187: 41
B188: Nano 5 | C188: 0 | D188: 0 | E188: 0 | F188: 0 | G188: 0 | H188: 0 | I188: 0 | J188: 0 | K188: 0 | L188: 0 | M188: 0 | N188: 0 | O188: 0 | P188: 0 | Q188: 0 | R188: 0 | S188: 0 | T188: 0 | U188: 0 | V188: 0 | W188: 0 | X188: 0 | Y188: 0 | Z188: 0 | AA188: 0 | AB188: 0 | AC188: 0 | AD188: 0 | AE188: 0 | AF188: 0 | AG188: 0 | AH188: 0 | AI188: 0 | AJ188: 0 | AK188: 0 | AL188: 0 | AM188: 0 | AN188: 0 | AO188: 0 | AP188: 1 | AQ188: 1 | AR188: 1 | AS188: 1 | AT188: 1 | AU188: 1 | AV188: 1 | AW188: 1 | AX188: 1 | AY188: 1 | AZ188: 1 | BA188: 1 | BB188: 1 | BC188: 1 | BD188: 1 | BE188: 1 | BF188: 1 | BG188: 1 | BH188: 1 | BI188: 1 | BJ188: 1 | BK188: 1 | BL188: 1 | BM188: 1 | BN188: 1 | BO188: 0 | BP188: 0 | BQ188: 0 | BR188: 0 | BS188: 0 | BT188: 0 | BU188: 0 | BV188: 0 | BW188: 0 | BX188: 0 | BY188: 0 | BZ188: 0 | CA188: 0 | CB188: 0 | CC188: 0 | CD188: 0 | CE188: 0 | CF188: 0 | CG188: 0 | CH188: 0 | CI188: 0 | CJ188: 25
A190: Mercenary | B190: Nano 1 | C190: 1 | D190: 1 | E190: 1 | F190: 1 | G190: 1 | H190: 1 | I190: 1 | J190: 1 | K190: 1 | L190: 1 | M190: 0 | N190: 0 | O190: 0 | P190: 0 | Q190: 0 | R190: 0 | S190: 0 | T190: 0 | U190: 0 | V190: 0 | W190: 0 | X190: 0 | Y190: 0 | Z190: 0 | AA190: 0 | AB190: 0 | AC190: 0 | AD190: 1 | AE190: 1 | AF190: 1 | AG190: 1 | AH190: 1 | AI190: 1 | AJ190: 1 | AK190: 1 | AL190: 1 | AM190: 1 | AN190: 1 | AO190: 1 | AP190: 1 | AQ190: 1 | AR190: 1 | AS190: 1 | AT190: 1 | AU190: 0 | AV190: 0 | AW190: 0 | AX190: 0 | AY190: 0 | AZ190: 0 | BA190: 0 | BB190: 0 | BC190: 0 | BD190: 0 | BE190: 0 | BF190: 1 | BG190: 1 | BH190: 1 | BI190: 1 | BJ190: 1 | BK190: 1 | BL190: 1 | BM190: 1 | BN190: 1 | BO190: 1 | BP190: 1 | BQ190: 1 | BR190: 1 | BS190: 1 | BT190: 1 | BU190: 1 | BV190: 1 | BW190: 1 | BX190: 1 | BY190: 1 | BZ190: 1 | CA190: 1 | CB190: 1 | CC190: 1 | CD190: 1 | CE190: 1 | CF190: 1 | CG190: 1 | CH190: 1 | CI190: 1 | CJ190: =COUNTIF(C190:CI190,"1") -> 57
B191: Nano 2 | C191: 0 | D191: 0 | E191: 0 | F191: 0 | G191: 0 | H191: 0 | I191: 0 | J191: 0 | K191: 0 | L191: 0 | M191: 0 | N191: 0 | O191: 0 | P191: 0 | Q191: 0 | R191: 0 | S191: 0 | T191: 0 | U191: 0 | V191: 0 | W191: 0 | X191: 1 | Y191: 1 | Z191: 1 | AA191: 1 | AB191: 1 | AC191: 1 | AD191: 0 | AE191: 0 | AF191: 0 | AG191: 0 | AH191: 0 | AI191: 0 | AJ191: 0 | AK191: 0 | AL191: 0 | AM191: 0 | AN191: 0 | AO191: 0 | AP191: 0 | AQ191: 0 | AR191: 0 | AS191: 0 | AT191: 0 | AU191: 0 | AV191: 0 | AW191: 0 | AX191: 0 | AY191: 0 | AZ191: 0 | BA191: 1 | BB191: 1 | BC191: 1 | BD191: 1 | BE191: 1 | BF191: 0 | BG191: 0 | BH191: 0 | BI191: 0 | BJ191: 0 | BK191: 0 | BL191: 0 | BM191: 0 | BN191: 0 | BO191: 0 | BP191: 0 | BQ191: 0 | BR191: 0 | BS191: 0 | BT191: 0 | BU191: 0 | BV191: 0 | BW191: 0 | BX191: 0 | BY191: 0 | BZ191: 0 | CA191: 0 | CB191: 0 | CC191: 0 | CD191: 0 | CE191: 0 | CF191: 0 | CG191: 0 | CH191: 0 | CI191: 0 | CJ191: 11
B192: Nano 3 | C192: 0 | D192: 0 | E192: 0 | F192: 0 | G192: 0 | H192: 0 | I192: 0 | J192: 0 | K192: 0 | L192: 0 | M192: 0 | N192: 0 | O192: 0 | P192: 0 | Q192: 0 | R192: 1 | S192: 1 | T192: 1 | U192: 1 | V192: 1 | W192: 1 | X192: 0 | Y192: 0 | Z192: 0 | AA192: 0 | AB192: 0 | AC192: 0 | AD192: 0 | AE192: 0 | AF192: 0 | AG192: 0 | AH192: 0 | AI192: 0 | AJ192: 0 | AK192: 0 | AL192: 0 | AM192: 0 | AN192: 0 | AO192: 0 | AP192: 0 | AQ192: 0 | AR192: 0 | AS192: 0 | AT192: 0 | AU192: 1 | AV192: 1 | AW192: 1 | AX192: 1 | AY192: 1 | AZ192: 1 | BA192: 0 | BB192: 0 | BC192: 0 | BD192: 0 | BE192: 0 | BF192: 0 | BG192: 0 | BH192: 0 | BI192: 0 | BJ192: 0 | BK192: 0 | BL192: 0 | BM192: 0 | BN192: 0 | BO192: 0 | BP192: 0 | BQ192: 0 | BR192: 1 | BS192: 1 | BT192: 1 | BU192: 1 | BV192: 1 | BW192: 1 | BX192: 1 | BY192: 1 | BZ192: 1 | CA192: 1 | CB192: 1 | CC192: 1 | CD192: 1 | CE192: 1 | CF192: 1 | CG192: 1 | CH192: 1 | CI192: 1 | CJ192: 30
B193: Nano 4 | C193: 1 | D193: 1 | E193: 1 | F193: 1 | G193: 1 | H193: 1 | I193: 1 | J193: 1 | K193: 1 | L193: 1 | M193: 1 | N193: 1 | O193: 1 | P193: 1 | Q193: 1 | R193: 0 | S193: 0 | T193: 0 | U193: 0 | V193: 0 | W193: 0 | X193: 0 | Y193: 0 | Z193: 0 | AA193: 0 | AB193: 0 | AC193: 0 | AD193: 0 | AE193: 0 | AF193: 0 | AG193: 0 | AH193: 0 | AI193: 0 | AJ193: 0 | AK193: 0 | AL193: 0 | AM193: 0 | AN193: 0 | AO193: 1 | AP193: 1 | AQ193: 1 | AR193: 1 | AS193: 1 | AT193: 1 | AU193: 0 | AV193: 0 | AW193: 0 | AX193: 0 | AY193: 0 | AZ193: 0 | BA193: 0 | BB193: 0 | BC193: 0 | BD193: 0 | BE193: 0 | BF193: 0 | BG193: 0 | BH193: 0 | BI193: 0 | BJ193: 0 | BK193: 0 | BL193: 1 | BM193: 1 | BN193: 1 | BO193: 1 | BP193: 1 | BQ193: 1 | BR193: 0 | BS193: 0 | BT193: 0 | BU193: 0 | BV193: 0 | BW193: 0 | BX193: 0 | BY193: 0 | BZ193: 0 | CA193: 0 | CB193: 0 | CC193: 0 | CD193: 0 | CE193: 0 | CF193: 0 | CG193: 0 | CH193: 0 | CI193: 0 | CJ193: 27
B194: Nano 5 | C194: 0 | D194: 0 | E194: 0 | F194: 0 | G194: 0 | H194: 0 | I194: 0 | J194: 0 | K194: 0 | L194: 0 | M194: 0 | N194: 0 | O194: 0 | P194: 0 | Q194: 0 | R194: 0 | S194: 0 | T194: 0 | U194: 0 | V194: 0 | W194: 0 | X194: 0 | Y194: 0 | Z194: 0 | AA194: 0 | AB194: 1 | AC194: 1 | AD194: 1 | AE194: 1 | AF194: 1 | AG194: 1 | AH194: 1 | AI194: 1 | AJ194: 1 | AK194: 1 | AL194: 1 | AM194: 1 | AN194: 1 | AO194: 0 | AP194: 0 | AQ194: 0 | AR194: 0 | AS194: 0 | AT194: 0 | AU194: 0 | AV194: 0 | AW194: 0 | AX194: 0 | AY194: 0 | AZ194: 0 | BA194: 1 | BB194: 1 | BC194: 1 | BD194: 1 | BE194: 1 | BF194: 1 | BG194: 1 | BH194: 1 | BI194: 1 | BJ194: 1 | BK194: 1 | BL194: 0 | BM194: 0 | BN194: 0 | BO194: 0 | BP194: 0 | BQ194: 0 | BR194: 0 | BS194: 0 | BT194: 0 | BU194: 0 | BV194: 0 | BW194: 0 | BX194: 0 | BY194: 0 | BZ194: 0 | CA194: 0 | CB194: 0 | CC194: 0 | CD194: 0 | CE194: 0 | CF194: 0 | CG194: 0 | CH194: 0 | CI194: 0 | CJ194: 24
A196: Bandit | B196: Nano 1 | C196: 1 | D196: 1 | E196: 1 | F196: 1 | G196: 1 | H196: 1 | I196: 1 | J196: 1 | K196: 1 | L196: 1 | M196: 1 | N196: 1 | O196: 1 | P196: 1 | Q196: 1 | R196: 0 | S196: 0 | T196: 0 | U196: 0 | V196: 0 | W196: 0 | X196: 0 | Y196: 0 | Z196: 0 | AA196: 0 | AB196: 1 | AC196: 1 | AD196: 1 | AE196: 1 | AF196: 1 | AG196: 1 | AH196: 1 | AI196: 1 | AJ196: 1 | AK196: 0 | AL196: 0 | AM196: 0 | AN196: 0 | AO196: 0 | AP196: 0 | AQ196: 0 | AR196: 1 | AS196: 1 | AT196: 1 | AU196: 1 | AV196: 1 | AW196: 1 | AX196: 1 | AY196: 1 | AZ196: 0 | BA196: 0 | BB196: 0 | BC196: 0 | BD196: 1 | BE196: 1 | BF196: 1 | BG196: 1 | BH196: 1 | BI196: 1 | BJ196: 1 | BK196: 1 | BL196: 1 | BM196: 1 | BN196: 1 | BO196: 1 | BP196: 1 | BQ196: 1 | BR196: 1 | BS196: 1 | BT196: 1 | BU196: 1 | BV196: 1 | BW196: 1 | BX196: 1 | BY196: 1 | BZ196: 1 | CA196: 1 | CB196: 1 | CC196: 1 | CD196: 1 | CE196: 1 | CF196: 1 | CG196: 1 | CH196: 1 | CI196: 1 | CJ196: =COUNTIF(C196:CI196,"1") -> 64
B197: Nano 2 | C197: 0 | D197: 0 | E197: 0 | F197: 0 | G197: 0 | H197: 0 | I197: 0 | J197: 0 | K197: 0 | L197: 0 | M197: 0 | N197: 0 | O197: 0 | P197: 0 | Q197: 0 | R197: 0 | S197: 0 | T197: 0 | U197: 0 | V197: 0 | W197: 0 | X197: 1 | Y197: 1 | Z197: 1 | AA197: 1 | AB197: 0 | AC197: 0 | AD197: 0 | AE197: 0 | AF197: 0 | AG197: 0 | AH197: 0 | AI197: 0 | AJ197: 0 | AK197: 0 | AL197: 0 | AM197: 0 | AN197: 0 | AO197: 1 | AP197: 1 | AQ197: 1 | AR197: 0 | AS197: 0 | AT197: 0 | AU197: 0 | AV197: 0 | AW197: 0 | AX197: 0 | AY197: 0 | AZ197: 0 | BA197: 1 | BB197: 1 | BC197: 1 | BD197: 0 | BE197: 0 | BF197: 0 | BG197: 0 | BH197: 0 | BI197: 0 | BJ197: 0 | BK197: 0 | BL197: 0 | BM197: 0 | BN197: 0 | BO197: 0 | BP197: 0 | BQ197: 0 | BR197: 0 | BS197: 0 | BT197: 0 | BU197: 0 | BV197: 0 | BW197: 0 | BX197: 0 | BY197: 0 | BZ197: 0 | CA197: 0 | CB197: 0 | CC197: 0 | CD197: 0 | CE197: 0 | CF197: 0 | CG197: 0 | CH197: 0 | CI197: 0 | CJ197: 10
B198: Nano 3 | C198: 0 | D198: 0 | E198: 0 | F198: 0 | G198: 0 | H198: 0 | I198: 0 | J198: 0 | K198: 0 | L198: 0 | M198: 0 | N198: 0 | O198: 0 | P198: 0 | Q198: 0 | R198: 0 | S198: 0 | T198: 0 | U198: 1 | V198: 1 | W198: 1 | X198: 0 | Y198: 0 | Z198: 0 | AA198: 0 | AB198: 0 | AC198: 0 | AD198: 0 | AE198: 0 | AF198: 0 | AG198: 0 | AH198: 0 | AI198: 0 | AJ198: 0 | AK198: 1 | AL198: 1 | AM198: 1 | AN198: 1 | AO198: 0 | AP198: 0 | AQ198: 0 | AR198: 0 | AS198: 0 | AT198: 0 | AU198: 0 | AV198: 0 | AW198: 0 | AX198: 1 | AY198: 1 | AZ198: 1 | BA198: 0 | BB198: 0 | BC198: 0 | BD198: 0 | BE198: 0 | BF198: 0 | BG198: 0 | BH198: 0 | BI198: 1 | BJ198: 1 | BK198: 1 | BL198: 1 | BM198: 1 | BN198: 1 | BO198: 1 | BP198: 1 | BQ198: 1 | BR198: 1 | BS198: 1 | BT198: 1 | BU198: 1 | BV198: 1 | BW198: 1 | BX198: 1 | BY198: 1 | BZ198: 1 | CA198: 1 | CB198: 1 | CC198: 1 | CD198: 1 | CE198: 1 | CF198: 1 | CG198: 1 | CH198: 1 | CI198: 1 | CJ198: 37
B199: Nano 4 | C199: 1 | D199: 1 | E199: 1 | F199: 1 | G199: 1 | H199: 1 | I199: 1 | J199: 1 | K199: 1 | L199: 1 | M199: 1 | N199: 1 | O199: 1 | P199: 1 | Q199: 1 | R199: 1 | S199: 1 | T199: 1 | U199: 0 | V199: 0 | W199: 0 | X199: 0 | Y199: 0 | Z199: 0 | AA199: 0 | AB199: 0 | AC199: 0 | AD199: 0 | AE199: 0 | AF199: 0 | AG199: 0 | AH199: 1 | AI199: 1 | AJ199: 1 | AK199: 0 | AL199: 0 | AM199: 0 | AN199: 0 | AO199: 0 | AP199: 0 | AQ199: 0 | AR199: 0 | AS199: 0 | AT199: 0 | AU199: 1 | AV199: 1 | AW199: 1 | AX199: 0 | AY199: 0 | AZ199: 0 | BA199: 0 | BB199: 0 | BC199: 0 | BD199: 0 | BE199: 0 | BF199: 1 | BG199: 1 | BH199: 1 | BI199: 0 | BJ199: 0 | BK199: 0 | BL199: 0 | BM199: 0 | BN199: 0 | BO199: 0 | BP199: 0 | BQ199: 0 | BR199: 0 | BS199: 0 | BT199: 0 | BU199: 0 | BV199: 0 | BW199: 0 | BX199: 0 | BY199: 0 | BZ199: 0 | CA199: 0 | CB199: 0 | CC199: 0 | CD199: 0 | CE199: 0 | CF199: 0 | CG199: 0 | CH199: 0 | CI199: 0 | CJ199: 27
B200: Nano 5 | C200: 0 | D200: 0 | E200: 0 | F200: 0 | G200: 0 | H200: 0 | I200: 0 | J200: 0 | K200: 0 | L200: 0 | M200: 0 | N200: 0 | O200: 0 | P200: 0 | Q200: 0 | R200: 0 | S200: 0 | T200: 0 | U200: 0 | V200: 0 | W200: 0 | X200: 0 | Y200: 0 | Z200: 1 | AA200: 1 | AB200: 1 | AC200: 1 | AD200: 1 | AE200: 1 | AF200: 1 | AG200: 1 | AH200: 0 | AI200: 0 | AJ200: 0 | AK200: 0 | AL200: 0 | AM200: 0 | AN200: 0 | AO200: 1 | AP200: 1 | AQ200: 1 | AR200: 1 | AS200: 1 | AT200: 1 | AU200: 0 | AV200: 0 | AW200: 0 | AX200: 0 | AY200: 0 | AZ200: 1 | BA200: 1 | BB200: 1 | BC200: 1 | BD200: 1 | BE200: 1 | BF200: 0 | BG200: 0 | BH200: 0 | BI200: 1 | BJ200: 1 | BK200: 1 | BL200: 1 | BM200: 1 | BN200: 1 | BO200: 1 | BP200: 1 | BQ200: 1 | BR200: 1 | BS200: 1 | BT200: 1 | BU200: 1 | BV200: 1 | BW200: 1 | BX200: 1 | BY200: 1 | BZ200: 1 | CA200: 1 | CB200: 1 | CC200: 1 | CD200: 1 | CE200: 1 | CF200: 1 | CG200: 1 | CH200: 1 | CI200: 1 | CJ200: 47
A202: Carv and Cycler | B202: Nano 1 | C202: 1 | D202: 1 | E202: 1 | F202: 1 | G202: 1 | H202: 1 | I202: 1 | J202: 1 | K202: 1 | L202: 1 | M202: 0 | N202: 0 | O202: 0 | P202: 0 | Q202: 0 | R202: 0 | S202: 0 | T202: 0 | U202: 0 | V202: 0 | W202: 0 | X202: 0 | Y202: 0 | Z202: 0 | AA202: 0 | AB202: 0 | AC202: 0 | AD202: 0 | AE202: 0 | AF202: 0 | AG202: 0 | AH202: 0 | AI202: 0 | AJ202: 0 | AK202: 1 | AL202: 1 | AM202: 1 | AN202: 1 | AO202: 1 | AP202: 1 | AQ202: 1 | AR202: 1 | AS202: 1 | AT202: 1 | AU202: 1 | AV202: 1 | AW202: 1 | AX202: 1 | AY202: 1 | AZ202: 1 | BA202: 1 | BB202: 1 | BC202: 1 | BD202: 1 | BE202: 1 | BF202: 1 | BG202: 1 | BH202: 1 | BI202: 1 | BJ202: 1 | BK202: 1 | BL202: 1 | BM202: 1 | BN202: 1 | BO202: 1 | BP202: 1 | BQ202: 1 | BR202: 1 | BS202: 1 | BT202: 1 | BU202: 1 | BV202: 1 | BW202: 1 | BX202: 1 | BY202: 1 | BZ202: 1 | CA202: 1 | CB202: 1 | CC202: 1 | CD202: 1 | CE202: 1 | CF202: 1 | CG202: 1 | CH202: 1 | CI202: 1 | CJ202: =COUNTIF(C202:CI202,"1") -> 61
B203: Nano 2 | C203: 0 | D203: 0 | E203: 0 | F203: 0 | G203: 0 | H203: 0 | I203: 0 | J203: 0 | K203: 0 | L203: 0 | M203: 0 | N203: 0 | O203: 0 | P203: 0 | Q203: 0 | R203: 0 | S203: 0 | T203: 0 | U203: 0 | V203: 0 | W203: 0 | X203: 0 | Y203: 1 | Z203: 1 | AA203: 1 | AB203: 1 | AC203: 1 | AD203: 1 | AE203: 1 | AF203: 1 | AG203: 1 | AH203: 1 | AI203: 1 | AJ203: 1 | AK203: 0 | AL203: 0 | AM203: 0 | AN203: 0 | AO203: 0 | AP203: 0 | AQ203: 0 | AR203: 0 | AS203: 0 | AT203: 0 | AU203: 0 | AV203: 0 | AW203: 0 | AX203: 0 | AY203: 0 | AZ203: 0 | BA203: 0 | BB203: 0 | BC203: 0 | BD203: 0 | BE203: 0 | BF203: 0 | BG203: 0 | BH203: 0 | BI203: 0 | BJ203: 0 | BK203: 0 | BL203: 0 | BM203: 0 | BN203: 0 | BO203: 0 | BP203: 0 | BQ203: 0 | BR203: 0 | BS203: 0 | BT203: 0 | BU203: 0 | BV203: 0 | BW203: 0 | BX203: 0 | BY203: 0 | BZ203: 0 | CA203: 0 | CB203: 0 | CC203: 0 | CD203: 0 | CE203: 0 | CF203: 0 | CG203: 0 | CH203: 0 | CI203: 0 | CJ203: 12
B204: Nano 3 | C204: 0 | D204: 0 | E204: 0 | F204: 0 | G204: 0 | H204: 0 | I204: 0 | J204: 0 | K204: 0 | L204: 0 | M204: 1 | N204: 1 | O204: 1 | P204: 1 | Q204: 1 | R204: 1 | S204: 1 | T204: 1 | U204: 1 | V204: 1 | W204: 1 | X204: 1 | Y204: 0 | Z204: 0 | AA204: 0 | AB204: 0 | AC204: 0 | AD204: 0 | AE204: 0 | AF204: 0 | AG204: 0 | AH204: 0 | AI204: 0 | AJ204: 0 | AK204: 0 | AL204: 0 | AM204: 0 | AN204: 0 | AO204: 0 | AP204: 0 | AQ204: 0 | AR204: 0 | AS204: 0 | AT204: 0 | AU204: 0 | AV204: 0 | AW204: 0 | AX204: 0 | AY204: 0 | AZ204: 0 | BA204: 0 | BB204: 0 | BC204: 0 | BD204: 0 | BE204: 0 | BF204: 0 | BG204: 0 | BH204: 0 | BI204: 1 | BJ204: 1 | BK204: 1 | BL204: 1 | BM204: 1 | BN204: 1 | BO204: 1 | BP204: 1 | BQ204: 1 | BR204: 1 | BS204: 1 | BT204: 1 | BU204: 1 | BV204: 1 | BW204: 1 | BX204: 1 | BY204: 1 | BZ204: 1 | CA204: 1 | CB204: 1 | CC204: 1 | CD204: 1 | CE204: 1 | CF204: 1 | CG204: 1 | CH204: 1 | CI204: 1 | CJ204: 39
B205: Nano 4 | C205: 1 | D205: 1 | E205: 1 | F205: 1 | G205: 1 | H205: 1 | I205: 1 | J205: 1 | K205: 1 | L205: 1 | M205: 0 | N205: 0 | O205: 0 | P205: 0 | Q205: 0 | R205: 0 | S205: 0 | T205: 0 | U205: 0 | V205: 0 | W205: 0 | X205: 0 | Y205: 0 | Z205: 0 | AA205: 0 | AB205: 0 | AC205: 0 | AD205: 0 | AE205: 0 | AF205: 0 | AG205: 0 | AH205: 0 | AI205: 0 | AJ205: 0 | AK205: 0 | AL205: 0 | AM205: 0 | AN205: 0 | AO205: 0 | AP205: 0 | AQ205: 0 | AR205: 0 | AS205: 0 | AT205: 0 | AU205: 0 | AV205: 0 | AW205: 0 | AX205: 1 | AY205: 1 | AZ205: 1 | BA205: 1 | BB205: 1 | BC205: 1 | BD205: 1 | BE205: 1 | BF205: 1 | BG205: 1 | BH205: 1 | BI205: 0 | BJ205: 0 | BK205: 0 | BL205: 0 | BM205: 0 | BN205: 0 | BO205: 0 | BP205: 0 | BQ205: 0 | BR205: 0 | BS205: 0 | BT205: 0 | BU205: 0 | BV205: 0 | BW205: 0 | BX205: 0 | BY205: 0 | BZ205: 0 | CA205: 0 | CB205: 0 | CC205: 0 | CD205: 0 | CE205: 0 | CF205: 0 | CG205: 0 | CH205: 0 | CI205: 0 | CJ205: 21
B206: Nano 5 | C206: 0 | D206: 0 | E206: 0 | F206: 0 | G206: 0 | H206: 0 | I206: 0 | J206: 0 | K206: 0 | L206: 0 | M206: 0 | N206: 0 | O206: 0 | P206: 0 | Q206: 0 | R206: 0 | S206: 0 | T206: 0 | U206: 0 | V206: 0 | W206: 0 | X206: 0 | Y206: 1 | Z206: 1 | AA206: 1 | AB206: 1 | AC206: 1 | AD206: 1 | AE206: 1 | AF206: 1 | AG206: 1 | AH206: 1 | AI206: 1 | AJ206: 1 | AK206: 1 | AL206: 1 | AM206: 1 | AN206: 1 | AO206: 1 | AP206: 1 | AQ206: 1 | AR206: 1 | AS206: 1 | AT206: 1 | AU206: 1 | AV206: 1 | AW206: 1 | AX206: 0 | AY206: 0 | AZ206: 0 | BA206: 0 | BB206: 0 | BC206: 0 | BD206: 0 | BE206: 0 | BF206: 0 | BG206: 0 | BH206: 0 | BI206: 0 | BJ206: 0 | BK206: 0 | BL206: 0 | BM206: 0 | BN206: 0 | BO206: 0 | BP206: 0 | BQ206: 0 | BR206: 0 | BS206: 0 | BT206: 0 | BU206: 0 | BV206: 0 | BW206: 0 | BX206: 0 | BY206: 0 | BZ206: 0 | CA206: 0 | CB206: 0 | CC206: 0 | CD206: 0 | CE206: 0 | CF206: 0 | CG206: 0 | CH206: 0 | CI206: 0 | CJ206: 25
A208: TAR, H-V45, GR-22, TRAC 5, Solstice | B208: Nano 1 | C208: 1 | D208: 1 | E208: 1 | F208: 1 | G208: 1 | H208: 1 | I208: 1 | J208: 1 | K208: 1 | L208: 1 | M208: 1 | N208: 1 | O208: 1 | P208: 1 | Q208: 1 | R208: 0 | S208: 0 | T208: 0 | U208: 0 | V208: 0 | W208: 0 | X208: 0 | Y208: 0 | Z208: 0 | AA208: 0 | AB208: 0 | AC208: 1 | AD208: 1 | AE208: 1 | AF208: 1 | AG208: 1 | AH208: 1 | AI208: 1 | AJ208: 1 | AK208: 1 | AL208: 1 | AM208: 1 | AN208: 1 | AO208: 1 | AP208: 1 | AQ208: 1 | AR208: 0 | AS208: 0 | AT208: 0 | AU208: 0 | AV208: 0 | AW208: 0 | AX208: 0 | AY208: 1 | AZ208: 1 | BA208: 1 | BB208: 1 | BC208: 1 | BD208: 1 | BE208: 1 | BF208: 1 | BG208: 1 | BH208: 1 | BI208: 1 | BJ208: 1 | BK208: 1 | BL208: 1 | BM208: 1 | BN208: 1 | BO208: 1 | BP208: 1 | BQ208: 1 | BR208: 1 | BS208: 1 | BT208: 1 | BU208: 1 | BV208: 1 | BW208: 1 | BX208: 1 | BY208: 1 | BZ208: 1 | CA208: 1 | CB208: 1 | CC208: 1 | CD208: 1 | CE208: 1 | CF208: 1 | CG208: 1 | CH208: 1 | CI208: 1 | CJ208: =COUNTIF(C208:CI208,"1") -> 67
B209: Nano 2 | C209: 0 | D209: 0 | E209: 0 | F209: 0 | G209: 0 | H209: 0 | I209: 0 | J209: 0 | K209: 0 | L209: 0 | M209: 0 | N209: 0 | O209: 0 | P209: 0 | Q209: 0 | R209: 0 | S209: 0 | T209: 0 | U209: 0 | V209: 0 | W209: 1 | X209: 1 | Y209: 1 | Z209: 1 | AA209: 1 | AB209: 1 | AC209: 0 | AD209: 0 | AE209: 0 | AF209: 0 | AG209: 0 | AH209: 0 | AI209: 0 | AJ209: 0 | AK209: 0 | AL209: 0 | AM209: 0 | AN209: 0 | AO209: 0 | AP209: 0 | AQ209: 0 | AR209: 0 | AS209: 0 | AT209: 1 | AU209: 1 | AV209: 1 | AW209: 1 | AX209: 1 | AY209: 0 | AZ209: 0 | BA209: 0 | BB209: 0 | BC209: 0 | BD209: 0 | BE209: 0 | BF209: 0 | BG209: 0 | BH209: 0 | BI209: 0 | BJ209: 0 | BK209: 0 | BL209: 0 | BM209: 0 | BN209: 0 | BO209: 0 | BP209: 0 | BQ209: 0 | BR209: 0 | BS209: 0 | BT209: 0 | BU209: 0 | BV209: 0 | BW209: 0 | BX209: 0 | BY209: 0 | BZ209: 0 | CA209: 0 | CB209: 0 | CC209: 0 | CD209: 0 | CE209: 0 | CF209: 0 | CG209: 0 | CH209: 0 | CI209: 0 | CJ209: 11
B210: Nano 3 | C210: 0 | D210: 0 | E210: 0 | F210: 0 | G210: 0 | H210: 0 | I210: 0 | J210: 0 | K210: 0 | L210: 0 | M210: 0 | N210: 0 | O210: 0 | P210: 0 | Q210: 0 | R210: 1 | S210: 1 | T210: 1 | U210: 1 | V210: 1 | W210: 0 | X210: 0 | Y210: 0 | Z210: 0 | AA210: 0 | AB210: 0 | AC210: 0 | AD210: 0 | AE210: 0 | AF210: 0 | AG210: 0 | AH210: 0 | AI210: 0 | AJ210: 0 | AK210: 0 | AL210: 0 | AM210: 0 | AN210: 0 | AO210: 1 | AP210: 1 | AQ210: 1 | AR210: 1 | AS210: 1 | AT210: 0 | AU210: 0 | AV210: 0 | AW210: 0 | AX210: 0 | AY210: 0 | AZ210: 0 | BA210: 0 | BB210: 0 | BC210: 0 | BD210: 0 | BE210: 0 | BF210: 0 | BG210: 1 | BH210: 1 | BI210: 1 | BJ210: 1 | BK210: 1 | BL210: 1 | BM210: 1 | BN210: 1 | BO210: 1 | BP210: 1 | BQ210: 1 | BR210: 1 | BS210: 1 | BT210: 1 | BU210: 1 | BV210: 1 | BW210: 1 | BX210: 1 | BY210: 1 | BZ210: 1 | CA210: 1 | CB210: 1 | CC210: 1 | CD210: 1 | CE210: 1 | CF210: 1 | CG210: 1 | CH210: 1 | CI210: 1 | CJ210: 39
B211: Nano 4 | C211: 1 | D211: 1 | E211: 1 | F211: 1 | G211: 1 | H211: 1 | I211: 1 | J211: 1 | K211: 1 | L211: 1 | M211: 1 | N211: 1 | O211: 1 | P211: 1 | Q211: 1 | R211: 0 | S211: 0 | T211: 0 | U211: 0 | V211: 0 | W211: 0 | X211: 0 | Y211: 0 | Z211: 0 | AA211: 0 | AB211: 0 | AC211: 0 | AD211: 0 | AE211: 0 | AF211: 0 | AG211: 0 | AH211: 0 | AI211: 1 | AJ211: 1 | AK211: 1 | AL211: 1 | AM211: 1 | AN211: 1 | AO211: 0 | AP211: 0 | AQ211: 0 | AR211: 0 | AS211: 0 | AT211: 0 | AU211: 0 | AV211: 0 | AW211: 0 | AX211: 0 | AY211: 0 | AZ211: 0 | BA211: 0 | BB211: 1 | BC211: 1 | BD211: 1 | BE211: 1 | BF211: 1 | BG211: 0 | BH211: 0 | BI211: 0 | BJ211: 0 | BK211: 0 | BL211: 0 | BM211: 0 | BN211: 0 | BO211: 0 | BP211: 0 | BQ211: 0 | BR211: 0 | BS211: 0 | BT211: 0 | BU211: 0 | BV211: 0 | BW211: 0 | BX211: 0 | BY211: 0 | BZ211: 0 | CA211: 0 | CB211: 0 | CC211: 0 | CD211: 0 | CE211: 0 | CF211: 0 | CG211: 0 | CH211: 0 | CI211: 0 | CJ211: 26
B212: Nano 5 | C212: 0 | D212: 0 | E212: 0 | F212: 0 | G212: 0 | H212: 0 | I212: 0 | J212: 0 | K212: 0 | L212: 0 | M212: 0 | N212: 0 | O212: 0 | P212: 0 | Q212: 0 | R212: 0 | S212: 0 | T212: 0 | U212: 0 | V212: 0 | W212: 1 | X212: 1 | Y212: 1 | Z212: 1 | AA212: 1 | AB212: 1 | AC212: 1 | AD212: 1 | AE212: 1 | AF212: 1 | AG212: 1 | AH212: 1 | AI212: 0 | AJ212: 0 | AK212: 0 | AL212: 0 | AM212: 0 | AN212: 0 | AO212: 0 | AP212: 0 | AQ212: 0 | AR212: 1 | AS212: 1 | AT212: 1 | AU212: 1 | AV212: 1 | AW212: 1 | AX212: 1 | AY212: 1 | AZ212: 1 | BA212: 1 | BB212: 0 | BC212: 0 | BD212: 0 | BE212: 0 | BF212: 0 | BG212: 0 | BH212: 1 | BI212: 1 | BJ212: 1 | BK212: 1 | BL212: 1 | BM212: 1 | BN212: 1 | BO212: 1 | BP212: 1 | BQ212: 1 | BR212: 1 | BS212: 1 | BT212: 1 | BU212: 1 | BV212: 1 | BW212: 1 | BX212: 1 | BY212: 1 | BZ212: 1 | CA212: 1 | CB212: 1 | CC212: 1 | CD212: 1 | CE212: 1 | CF212: 1 | CG212: 1 | CH212: 1 | CI212: 1 | CJ212: 50
A214: GD-7F and Serpent | B214: Nano 1 | C214: 1 | D214: 1 | E214: 1 | F214: 1 | G214: 1 | H214: 1 | I214: 1 | J214: 1 | K214: 1 | L214: 1 | M214: 1 | N214: 1 | O214: 1 | P214: 1 | Q214: 1 | R214: 0 | S214: 0 | T214: 0 | U214: 0 | V214: 0 | W214: 0 | X214: 0 | Y214: 0 | Z214: 1 | AA214: 1 | AB214: 1 | AC214: 1 | AD214: 1 | AE214: 1 | AF214: 1 | AG214: 1 | AH214: 1 | AI214: 1 | AJ214: 0 | AK214: 0 | AL214: 0 | AM214: 0 | AN214: 0 | AO214: 1 | AP214: 1 | AQ214: 1 | AR214: 1 | AS214: 1 | AT214: 1 | AU214: 1 | AV214: 1 | AW214: 1 | AX214: 1 | AY214: 0 | AZ214: 0 | BA214: 0 | BB214: 1 | BC214: 1 | BD214: 1 | BE214: 1 | BF214: 1 | BG214: 1 | BH214: 1 | BI214: 1 | BJ214: 1 | BK214: 1 | BL214: 1 | BM214: 1 | BN214: 1 | BO214: 1 | BP214: 1 | BQ214: 1 | BR214: 1 | BS214: 1 | BT214: 1 | BU214: 1 | BV214: 1 | BW214: 1 | BX214: 1 | BY214: 1 | BZ214: 1 | CA214: 1 | CB214: 1 | CC214: 1 | CD214: 1 | CE214: 1 | CF214: 1 | CG214: 1 | CH214: 1 | CI214: 1 | CJ214: =COUNTIF(C214:CI214,"1") -> 69
B215: Nano 2 | C215: 0 | D215: 0 | E215: 0 | F215: 0 | G215: 0 | H215: 0 | I215: 0 | J215: 0 | K215: 0 | L215: 0 | M215: 0 | N215: 0 | O215: 0 | P215: 0 | Q215: 0 | R215: 0 | S215: 0 | T215: 0 | U215: 0 | V215: 1 | W215: 1 | X215: 1 | Y215: 1 | Z215: 0 | AA215: 0 | AB215: 0 | AC215: 0 | AD215: 0 | AE215: 0 | AF215: 0 | AG215: 0 | AH215: 0 | AI215: 0 | AJ215: 0 | AK215: 0 | AL215: 1 | AM215: 1 | AN215: 1 | AO215: 0 | AP215: 0 | AQ215: 0 | AR215: 0 | AS215: 0 | AT215: 0 | AU215: 0 | AV215: 0 | AW215: 0 | AX215: 0 | AY215: 1 | AZ215: 1 | BA215: 1 | BB215: 0 | BC215: 0 | BD215: 0 | BE215: 0 | BF215: 0 | BG215: 0 | BH215: 0 | BI215: 1 | BJ215: 1 | BK215: 1 | BL215: 1 | BM215: 1 | BN215: 1 | BO215: 1 | BP215: 1 | BQ215: 1 | BR215: 1 | BS215: 1 | BT215: 1 | BU215: 1 | BV215: 1 | BW215: 1 | BX215: 1 | BY215: 1 | BZ215: 1 | CA215: 1 | CB215: 1 | CC215: 1 | CD215: 1 | CE215: 1 | CF215: 1 | CG215: 1 | CH215: 1 | CI215: 1 | CJ215: 37
B216: Nano 3 | C216: 0 | D216: 0 | E216: 0 | F216: 0 | G216: 0 | H216: 0 | I216: 0 | J216: 0 | K216: 0 | L216: 0 | M216: 0 | N216: 0 | O216: 0 | P216: 0 | Q216: 0 | R216: 1 | S216: 1 | T216: 1 | U216: 1 | V216: 0 | W216: 0 | X216: 0 | Y216: 0 | Z216: 0 | AA216: 0 | AB216: 0 | AC216: 0 | AD216: 0 | AE216: 0 | AF216: 0 | AG216: 0 | AH216: 1 | AI216: 1 | AJ216: 1 | AK216: 1 | AL216: 0 | AM216: 0 | AN216: 0 | AO216: 0 | AP216: 0 | AQ216: 0 | AR216: 0 | AS216: 0 | AT216: 0 | AU216: 0 | AV216: 1 | AW216: 1 | AX216: 1 | AY216: 0 | AZ216: 0 | BA216: 0 | BB216: 0 | BC216: 0 | BD216: 0 | BE216: 0 | BF216: 1 | BG216: 1 | BH216: 1 | BI216: 0 | BJ216: 0 | BK216: 0 | BL216: 0 | BM216: 0 | BN216: 0 | BO216: 0 | BP216: 0 | BQ216: 0 | BR216: 0 | BS216: 0 | BT216: 0 | BU216: 0 | BV216: 0 | BW216: 0 | BX216: 0 | BY216: 0 | BZ216: 0 | CA216: 0 | CB216: 0 | CC216: 0 | CD216: 0 | CE216: 0 | CF216: 0 | CG216: 0 | CH216: 0 | CI216: 0 | CJ216: 14
B217: Nano 4 | C217: 1 | D217: 1 | E217: 1 | F217: 1 | G217: 1 | H217: 1 | I217: 1 | J217: 1 | K217: 1 | L217: 1 | M217: 1 | N217: 1 | O217: 1 | P217: 1 | Q217: 1 | R217: 0 | S217: 0 | T217: 0 | U217: 0 | V217: 0 | W217: 0 | X217: 0 | Y217: 0 | Z217: 0 | AA217: 0 | AB217: 0 | AC217: 0 | AD217: 1 | AE217: 1 | AF217: 1 | AG217: 1 | AH217: 0 | AI217: 0 | AJ217: 0 | AK217: 0 | AL217: 0 | AM217: 0 | AN217: 0 | AO217: 0 | AP217: 0 | AQ217: 0 | AR217: 1 | AS217: 1 | AT217: 1 | AU217: 1 | AV217: 0 | AW217: 0 | AX217: 0 | AY217: 0 | AZ217: 0 | BA217: 0 | BB217: 0 | BC217: 1 | BD217: 1 | BE217: 1 | BF217: 0 | BG217: 0 | BH217: 0 | BI217: 0 | BJ217: 0 | BK217: 0 | BL217: 0 | BM217: 0 | BN217: 0 | BO217: 0 | BP217: 0 | BQ217: 0 | BR217: 0 | BS217: 0 | BT217: 0 | BU217: 0 | BV217: 0 | BW217: 0 | BX217: 0 | BY217: 0 | BZ217: 0 | CA217: 0 | CB217: 0 | CC217: 0 | CD217: 0 | CE217: 0 | CF217: 0 | CG217: 0 | CH217: 0 | CI217: 0 | CJ217: 26
B218: Nano 5 | C218: 0 | D218: 0 | E218: 0 | F218: 0 | G218: 0 | H218: 0 | I218: 0 | J218: 0 | K218: 0 | L218: 0 | M218: 0 | N218: 0 | O218: 0 | P218: 0 | Q218: 0 | R218: 0 | S218: 0 | T218: 0 | U218: 0 | V218: 1 | W218: 1 | X218: 1 | Y218: 1 | Z218: 1 | AA218: 1 | AB218: 1 | AC218: 1 | AD218: 0 | AE218: 0 | AF218: 0 | AG218: 0 | AH218: 0 | AI218: 0 | AJ218: 1 | AK218: 1 | AL218: 1 | AM218: 1 | AN218: 1 | AO218: 1 | AP218: 1 | AQ218: 1 | AR218: 0 | AS218: 0 | AT218: 0 | AU218: 0 | AV218: 1 | AW218: 1 | AX218: 1 | AY218: 1 | AZ218: 1 | BA218: 1 | BB218: 1 | BC218: 0 | BD218: 0 | BE218: 0 | BF218: 1 | BG218: 1 | BH218: 1 | BI218: 1 | BJ218: 1 | BK218: 1 | BL218: 1 | BM218: 1 | BN218: 1 | BO218: 1 | BP218: 1 | BQ218: 1 | BR218: 1 | BS218: 1 | BT218: 1 | BU218: 1 | BV218: 1 | BW218: 1 | BX218: 1 | BY218: 1 | BZ218: 1 | CA218: 1 | CB218: 1 | CC218: 1 | CD218: 1 | CE218: 1 | CF218: 1 | CG218: 1 | CH218: 1 | CI218: 1 | CJ218: 53
A220: 2nd gen SMGs | B220: Nano 1 | C220: 1 | D220: 1 | E220: 1 | F220: 1 | G220: 1 | H220: 1 | I220: 1 | J220: 1 | K220: 1 | L220: 1 | M220: 1 | N220: 1 | O220: 0 | P220: 0 | Q220: 0 | R220: 1 | S220: 1 | T220: 1 | U220: 1 | V220: 1 | W220: 1 | X220: 1 | Y220: 0 | Z220: 0 | AA220: 1 | AB220: 1 | AC220: 1 | AD220: 1 | AE220: 1 | AF220: 1 | AG220: 0 | AH220: 1 | AI220: 1 | AJ220: 1 | AK220: 1 | AL220: 1 | AM220: 0 | AN220: 1 | AO220: 1 | AP220: 1 | AQ220: 1 | AR220: 1 | AS220: 1 | AT220: 1 | AU220: 1 | AV220: 1 | AW220: 1 | AX220: 1 | AY220: 1 | AZ220: 1 | BA220: 1 | BB220: 1 | BC220: 1 | BD220: 1 | BE220: 1 | BF220: 1 | BG220: 1 | BH220: 1 | BI220: 1 | BJ220: 1 | BK220: 1 | BL220: 1 | BM220: 1 | BN220: 1 | BO220: 1 | BP220: 1 | BQ220: 1 | BR220: 1 | BS220: 1 | BT220: 1 | BU220: 1 | BV220: 1 | BW220: 1 | BX220: 1 | BY220: 1 | BZ220: 1 | CA220: 1 | CB220: 1 | CC220: 1 | CD220: 1 | CE220: 1 | CF220: 1 | CG220: 1 | CH220: 1 | CI220: 1 | CJ220: =COUNTIF(C220:CI220,"1") -> 78
B221: Nano 2 | C221: 0 | D221: 0 | E221: 0 | F221: 0 | G221: 0 | H221: 0 | I221: 0 | J221: 0 | K221: 0 | L221: 0 | M221: 0 | N221: 0 | O221: 0 | P221: 1 | Q221: 1 | R221: 0 | S221: 0 | T221: 0 | U221: 0 | V221: 0 | W221: 0 | X221: 0 | Y221: 1 | Z221: 1 | AA221: 0 | AB221: 0 | AC221: 0 | AD221: 0 | AE221: 0 | AF221: 1 | AG221: 1 | AH221: 0 | AI221: 0 | AJ221: 0 | AK221: 0 | AL221: 1 | AM221: 1 | AN221: 0 | AO221: 0 | AP221: 0 | AQ221: 1 | AR221: 1 | AS221: 1 | AT221: 1 | AU221: 1 | AV221: 1 | AW221: 1 | AX221: 1 | AY221: 1 | AZ221: 1 | BA221: 1 | BB221: 1 | BC221: 1 | BD221: 1 | BE221: 1 | BF221: 1 | BG221: 1 | BH221: 1 | BI221: 1 | BJ221: 1 | BK221: 1 | BL221: 1 | BM221: 1 | BN221: 1 | BO221: 1 | BP221: 1 | BQ221: 1 | BR221: 1 | BS221: 1 | BT221: 1 | BU221: 1 | BV221: 1 | BW221: 1 | BX221: 1 | BY221: 1 | BZ221: 1 | CA221: 1 | CB221: 1 | CC221: 1 | CD221: 1 | CE221: 1 | CF221: 1 | CG221: 1 | CH221: 1 | CI221: 1 | CJ221: 53
B222: Nano 3 | C222: 1 | D222: 1 | E222: 1 | F222: 1 | G222: 1 | H222: 1 | I222: 1 | J222: 1 | K222: 1 | L222: 1 | M222: 1 | N222: 1 | O222: 1 | P222: 0 | Q222: 0 | R222: 0 | S222: 0 | T222: 0 | U222: 0 | V222: 1 | W222: 1 | X222: 1 | Y222: 0 | Z222: 0 | AA222: 0 | AB222: 0 | AC222: 0 | AD222: 1 | AE222: 1 | AF222: 0 | AG222: 0 | AH222: 0 | AI222: 0 | AJ222: 1 | AK222: 1 | AL222: 0 | AM222: 0 | AN222: 0 | AO222: 0 | AP222: 1 | AQ222: 0 | AR222: 0 | AS222: 0 | AT222: 0 | AU222: 0 | AV222: 0 | AW222: 0 | AX222: 0 | AY222: 0 | AZ222: 0 | BA222: 0 | BB222: 0 | BC222: 0 | BD222: 0 | BE222: 0 | BF222: 0 | BG222: 0 | BH222: 0 | BI222: 0 | BJ222: 0 | BK222: 0 | BL222: 0 | BM222: 0 | BN222: 0 | BO222: 0 | BP222: 0 | BQ222: 0 | BR222: 0 | BS222: 0 | BT222: 0 | BU222: 0 | BV222: 0 | BW222: 0 | BX222: 0 | BY222: 0 | BZ222: 0 | CA222: 0 | CB222: 0 | CC222: 0 | CD222: 0 | CE222: 0 | CF222: 0 | CG222: 0 | CH222: 0 | CI222: 0 | CJ222: 21
B223: Nano 4 | C223: 0 | D223: 0 | E223: 0 | F223: 0 | G223: 0 | H223: 0 | I223: 0 | J223: 0 | K223: 0 | L223: 0 | M223: 0 | N223: 0 | O223: 0 | P223: 0 | Q223: 0 | R223: 0 | S223: 0 | T223: 1 | U223: 1 | V223: 0 | W223: 0 | X223: 0 | Y223: 0 | Z223: 0 | AA223: 0 | AB223: 1 | AC223: 1 | AD223: 0 | AE223: 0 | AF223: 0 | AG223: 0 | AH223: 1 | AI223: 1 | AJ223: 0 | AK223: 0 | AL223: 0 | AM223: 0 | AN223: 1 | AO223: 1 | AP223: 0 | AQ223: 0 | AR223: 1 | AS223: 1 | AT223: 1 | AU223: 1 | AV223: 1 | AW223: 1 | AX223: 1 | AY223: 1 | AZ223: 1 | BA223: 1 | BB223: 1 | BC223: 1 | BD223: 1 | BE223: 1 | BF223: 1 | BG223: 1 | BH223: 1 | BI223: 1 | BJ223: 1 | BK223: 1 | BL223: 1 | BM223: 1 | BN223: 1 | BO223: 1 | BP223: 1 | BQ223: 1 | BR223: 1 | BS223: 1 | BT223: 1 | BU223: 1 | BV223: 1 | BW223: 1 | BX223: 1 | BY223: 1 | BZ223: 1 | CA223: 1 | CB223: 1 | CC223: 1 | CD223: 1 | CE223: 1 | CF223: 1 | CG223: 1 | CH223: 1 | CI223: 1 | CJ223: 52
B224: Nano 5 | C224: 0 | D224: 0 | E224: 0 | F224: 0 | G224: 0 | H224: 0 | I224: 0 | J224: 0 | K224: 0 | L224: 0 | M224: 0 | N224: 0 | O224: 1 | P224: 1 | Q224: 1 | R224: 1 | S224: 1 | T224: 0 | U224: 0 | V224: 0 | W224: 1 | X224: 1 | Y224: 1 | Z224: 1 | AA224: 1 | AB224: 0 | AC224: 0 | AD224: 1 | AE224: 1 | AF224: 1 | AG224: 1 | AH224: 0 | AI224: 0 | AJ224: 1 | AK224: 1 | AL224: 1 | AM224: 1 | AN224: 0 | AO224: 1 | AP224: 1 | AQ224: 1 | AR224: 0 | AS224: 0 | AT224: 0 | AU224: 0 | AV224: 0 | AW224: 0 | AX224: 0 | AY224: 0 | AZ224: 0 | BA224: 0 | BB224: 0 | BC224: 0 | BD224: 0 | BE224: 0 | BF224: 0 | BG224: 0 | BH224: 0 | BI224: 0 | BJ224: 0 | BK224: 0 | BL224: 0 | BM224: 0 | BN224: 0 | BO224: 0 | BP224: 0 | BQ224: 0 | BR224: 0 | BS224: 0 | BT224: 0 | BU224: 0 | BV224: 0 | BW224: 0 | BX224: 0 | BY224: 0 | BZ224: 0 | CA224: 0 | CB224: 0 | CC224: 0 | CD224: 0 | CE224: 0 | CF224: 0 | CG224: 0 | CH224: 0 | CI224: 0 | CJ224: 21
B226: Range, m | C226: 1 | D226: 2 | E226: 3 | F226: 4 | G226: 5 | H226: 6 | I226: 7 | J226: 8 | K226: 9 | L226: 10 | M226: 11 | N226: 12 | O226: 13 | P226: 14 | Q226: 15 | R226: 16 | S226: 17 | T226: 18 | U226: 19 | V226: 20 | W226: 21 | X226: 22 | Y226: 23 | Z226: 24 | AA226: 25 | AB226: 26 | AC226: 27 | AD226: 28 | AE226: 29 | AF226: 30 | AG226: 31 | AH226: 32 | AI226: 33 | AJ226: 34 | AK226: 35 | AL226: 36 | AM226: 37 | AN226: 38 | AO226: 39 | AP226: 40 | AQ226: 41 | AR226: 42 | AS226: 43 | AT226: 44 | AU226: 45 | AV226: 46 | AW226: 47 | AX226: 48 | AY226: 49 | AZ226: 50 | BA226: 51 | BB226: 52 | BC226: 53 | BD226: 54 | BE226: 55 | BF226: 56 | BG226: 57 | BH226: 58 | BI226: 59 | BJ226: 60 | BK226: 61 | BL226: 62 | BM226: 63 | BN226: 64 | BO226: 65 | BP226: 66 | BQ226: 67 | BR226: 68 | BS226: 69 | BT226: 70 | BU226: 71 | BV226: 72 | BW226: 73 | BX226: 74 | BY226: 75 | BZ226: 76 | CA226: 77 | CB226: 78 | CC226: 79 | CD226: 80 | CE226: 81 | CF226: 82 | CG226: 83 | CH226: 84 | CI226: 85
B230: 1 to 20 | F230: 20 to 50 | J230: 50 to 85 | N230: All
B231: Sum | F231: Sum | J231: Sum | N231: Sum
A232: nano 1 | B232: 112 | C232: 12.44444444 | D232: 0.6222222222 | F232: 136 | G232: 15.11111111 | H232: 0.5037037037 | J232: 255 | K232: 31.875 | L232: 0.9107142857 | N232: 455 | O232: 50.55555556 | P232: 0.5947712418
A233: nano 2 | B233: 3 | C233: 0.3333333333 | D233: 0.01666666667 | F233: 86 | G233: 9.555555556 | H233: 0.3185185185 | J233: 48 | K233: 6 | L233: 0.1714285714 | N233: 116 | O233: 12.88888889 | P233: 0.1516339869
A234: nano 3 | B234: 40 | C234: 4.444444444 | D234: 0.2222222222 | F234: 72 | G234: 8 | H234: 0.2666666667 | J234: 111 | K234: 13.875 | L234: 0.3964285714 | N234: 195 | O234: 21.66666667 | P234: 0.2549019608
A235: nano 4 | B235: 103 | C235: 11.44444444 | D235: 0.5722222222 | F235: 60 | G235: 6.666666667 | H235: 0.2222222222 | J235: 66 | K235: 8.25 | L235: 0.2357142857 | N235: 207 | O235: 23 | P235: 0.2705882353
A236: nano 5 | B236: 38 | C236: 4.222222222 | D236: 0.2111111111 | F236: 135 | G236: 15 | H236: 0.5 | J236: 158 | K236: 19.75 | L236: 0.5642857143 | N236: 305 | O236: 33.88888889 | P236: 0.3986928105
